﻿Body Name,Supplier ID,Supplier Name,Transaction Number,Their Ref,Date,Gross Value ,VAT Amount,Service Label,Service Code,Expenditure Code,Expenditure Category,Service Division Label
Blackpool Council,1072081,Investec Asset Finance,482541,ML/1406095,01/06/2018,1500,250,FCADA,Customer Services,3801,Other Expenses,Resources
Blackpool Council,1043832,Denwire Limited,483579,IN210616,11/06/2018,2152.8,358.8,PJAA,"Erection, Operation & Dismantl",3041,Other Materials,Community & Env Services
Blackpool Council,1102627,Fresh Pastures Processing Ltd,483646,29204010418,13/06/2018,346.5,0,APDBBB,Arc,3101,Provisions,Adult & Families
Blackpool Council,1010667,Argos Business Solutions Ltd,483670,01639664,07/06/2018,529,88.17,APDBBB,Arc,3408,Services To Clients,Adult & Families
Blackpool Council,1059612,Bambach Saddle Seat (Eur) Ltd,483889,42997,01/06/2018,1131.96,188.66,CWAN,Children With Additional Needs,3008,Educational Equipment,Children'S Services
Blackpool Council,1053453,Brenntag Uk Ltd,484062,32SI 3265714,05/06/2018,399.12,66.52,LEISUR,Leisure Management,3060,Chemicals,Community & Env Services
Blackpool Council,1053453,Brenntag Uk Ltd,484063,32SI 3265713,05/06/2018,376.68,62.78,LEISUR,Leisure Management,3060,Chemicals,Community & Env Services
Blackpool Council,1089812,Rider Levett Bucknall Uk Limited,484222,118543,05/06/2018,960,160,PV7010,Create Loan,3413,Consultants,Budgets Outside Cash Limits
Blackpool Council,1043974,Plastic Omnium Urban Systems Limited,484488,45962,28/06/2018,668.4,111.4,DOMPFI,Domestic Waste & Waste Pfi,3041,Other Materials,Community & Env Services
Blackpool Council,1019678,G & S Smirthwaite Ltd,484589,157431,01/06/2018,1588.8,264.8,CWAN,Children With Additional Needs,3008,Educational Equipment,Children'S Services
Blackpool Council,1011779,Northern Security National Limited,484953,20684,18/06/2018,516.6,86.1,SECURE,Security Services,3401,General Services,Community & Env Services
Blackpool Council,1025240,Key Engineering Supplies Ltd,485054,3878,06/06/2018,273.72,45.62,ZM0018,Highways & Engineering,9511A,Stocks Efin,Blackpool Services
Blackpool Council,1011970,A1 Streamline Road Markings Ltd,485261,2643,21/06/2018,630,105,TRB,Maintenance & Works,4501,Private Contractors,Community & Env Services
Blackpool Council,1086788,Idox Software Ltd,485420,7020737,01/06/2018,600,100,PYLA,Licencing,3532,Comp-Running & License Costs,Community & Env Services
Blackpool Council,1043974,Plastic Omnium Urban Systems Limited,485422,45994,28/06/2018,596.4,99.4,DOMPFI,Domestic Waste & Waste Pfi,3041,Other Materials,Community & Env Services
Blackpool Council,1043974,Plastic Omnium Urban Systems Limited,485423,45993,28/06/2018,4053.6,675.6,DOMPFI,Domestic Waste & Waste Pfi,3041,Other Materials,Community & Env Services
Blackpool Council,1011779,Northern Security National Limited,485533,20776,18/06/2018,516.6,86.1,SECURE,Security Services,3401,General Services,Community & Env Services
Blackpool Council,1011779,Northern Security National Limited,485535,20774,18/06/2018,688.8,114.8,SECURE,Security Services,3401,General Services,Community & Env Services
Blackpool Council,1025240,Key Engineering Supplies Ltd,485538,4091,13/06/2018,678.24,0,ZM0018,Highways & Engineering,9773,Orders Received Not Invoiced,Blackpool Services
Blackpool Council,1025240,Key Engineering Supplies Ltd,485538,4091,13/06/2018,813.89,135.65,ZM0018,Highways & Engineering,9511A,Stocks Efin,Blackpool Services
Blackpool Council,1053453,Brenntag Uk Ltd,485581,32SI 3266848,07/06/2018,718.8,119.8,LEISUR,Leisure Management,3060,Chemicals,Community & Env Services
Blackpool Council,1043974,Plastic Omnium Urban Systems Limited,485583,46041,28/06/2018,6813,1135.5,DOMPFI,Domestic Waste & Waste Pfi,3041,Other Materials,Community & Env Services
Blackpool Council,1099704,Action On Hearing Loss (Products Only Acc),485661,SI0022695,12/06/2018,299.88,49.98,CWAN,Children With Additional Needs,3008,Educational Equipment,Children'S Services
Blackpool Council,1107790,Taylek Ltd,485701,INV-08342,12/06/2018,1002.96,167.16,PJRA,Electrical Infra - Places,3041,Other Materials,Community & Env Services
Blackpool Council,1008743,James Leckey Design Ltd T/A Vida Global,485746,OP/1135610,01/06/2018,2797.2,466.2,CWAN,Children With Additional Needs,3008,Educational Equipment,Children'S Services
Blackpool Council,1076555,Uk Container Maintenance Limited,485787,32748,01/06/2018,473.76,78.96,CWASTE,Commercial Waste,3041,Other Materials,Community & Env Services
Blackpool Council,1093815,Raydar Safety Ltd,485810,SI-280,12/06/2018,1800,300,TRB,Maintenance & Works,4501,Private Contractors,Community & Env Services
Blackpool Council,1092816,Cdec Limited,485846,22601,12/06/2018,19402.98,3233.83,AEF,Facilities,3531,Computer-H'Ware Purchase,Resources
Blackpool Council,1007987,Millercare Limited,485875,1/51520,08/06/2018,6540,1090,APDBBB,Arc,3012,Other Equipment,Adult & Families
Blackpool Council,1090871,Bksb Ltd,485903,SLINV/00004445,07/06/2018,339,56.5,EDDIV,Education Diversity,4101,Other Local Authorities,Children'S Services
Blackpool Council,1006351,Versalift Distributors (Uk) Ltd,485904,INV482272,05/06/2018,900,150,PJHA,"Depot, Management & Admin",3605,Confs & Short Courses,Community & Env Services
Blackpool Council,1049304,Insight Direct (Uk) Ltd,485966,3860040,12/06/2018,2462.68,410.45,FGAA,Ict Corporate Services,3532,Comp-Running & License Costs,Resources
Blackpool Council,1049304,Insight Direct (Uk) Ltd,486231,3869547,19/06/2018,281.9,46.98,CS0739,Ict Refresh,6525,I.T. Hardware Purchase,Capital - Resources
Blackpool Council,1068172,Northern Print Distribution Ltd,486282,10217,01/06/2018,270,45,PRG,Tourism General,3301,Printing,Places
Blackpool Council,1012839,George Cox & Sons Ltd,486295,9899,04/06/2018,300,50,TRB,Maintenance & Works,0911,Training Expenses,Community & Env Services
Blackpool Council,1093815,Raydar Safety Ltd,486310,SI-287,04/06/2018,2796,466,CTBRAA,Bridges (Growth Fund),6501,Contract Payments,Capital - Comm & Environ
Blackpool Council,1006419,Tunstall Healthcare (Uk) Ltd,486326,3IN/10317437,04/06/2018,1200,200,APFBAB,Vitaline,4501,Private Contractors,Adult & Families
Blackpool Council,1115477,REDACTED PERSONAL DATA,486329,20180503000600,01/06/2018,360,0,AHG,Art Gallery Summary,3456,Payment To Artists,Places
Blackpool Council,1049304,Insight Direct (Uk) Ltd,486331,3871569,19/06/2018,1872.65,312.11,CS0739,Ict Refresh,6525,I.T. Hardware Purchase,Capital - Resources
Blackpool Council,1057663,Wilde Recruitment Ltd,486337,32883,26/06/2018,517.86,86.31,CTAHHA,Tramway Emergency Works,6501,Contract Payments,Capital - Comm & Environ
Blackpool Council,1114664,REDACTED PERSONAL DATA,486340,005,04/06/2018,1750,0,HS0005,Whole School Approach,0911,Training Expenses,Children'S Services
Blackpool Council,1106616,Boingboing Resilience Cic,486341,417,04/06/2018,15550,2591.67,HS0003,Headstart Commissioning,3401,General Services,Children'S Services
Blackpool Council,1115472,REDACTED PERSONAL DATA,486486,134,01/06/2018,4018,0,AHG,Art Gallery Summary,3456,Payment To Artists,Places
Blackpool Council,1034680,Delineo,486499,M11703,01/06/2018,6354,1059,PBF,Communications,3301,Printing,Chief Executive
Blackpool Council,1091738,Wsm Engineering Facilities Ltd,486509,2889,11/06/2018,1331.56,221.93,PJHA,"Depot, Management & Admin",3041,Other Materials,Community & Env Services
Blackpool Council,1114832,Able 2 Occupational Therapy Services Ltd,486517,17714,01/06/2018,444.64,0,FC1404,Blue Badge Reform,3401,General Services,Resources
Blackpool Council,1071427,Ask Controls Limited,486522,12443,07/06/2018,4785.6,797.6,PJRA,Electrical Infra - Places,3041,Other Materials,Community & Env Services
Blackpool Council,1094424,The Networking People,486533,SI105070,07/06/2018,694.19,115.7,FGAA,Ict Corporate Services,3532,Comp-Running & License Costs,Resources
Blackpool Council,1008540,Konica Minolta Business (Uk) Ltd,486556,1137478912,07/06/2018,416.76,69.46,FGBA,Specific (Directorate)-Service,3305,Photocopying Charges,Resources
Blackpool Council,1025837,R Draper Ltd,486570,49610,22/06/2018,534.53,89.09,CEMCRE,Cems Crems Etc,3801,Other Expenses,Governance & Partnerships
Blackpool Council,1007562,Pennine Telecom Limited,486593,RB/I045263,12/06/2018,2080.8,346.8,FGAA,Ict Corporate Services,3525,Radio,Resources
Blackpool Council,1084671,Autocross Euroshel Limited,486594,7775,04/06/2018,11658,1943,TRC,Travel & Safety,4501,Private Contractors,Community & Env Services
Blackpool Council,1090587,M E S Marine Ltd,486595,465,08/06/2018,437.36,72.89,BEACHP,Beach Patrol,2002,Repairs And Maintenance,Places
Blackpool Council,1086156,Water Saving Techniques Limited,486596,3818,01/06/2018,1920,320,PARADE,Parades & Sea Wall,1012,Premises Maint-Priv.Contractor,Community & Env Services
Blackpool Council,1102823,Wilde Consultants Limited,486600,WPCON 16081,01/06/2018,7213.68,1202.28,CGOAAA,Quality Corridor,6501,Contract Payments,Capital - Places
Blackpool Council,1102823,Wilde Consultants Limited,486601,WPCON 16083,04/06/2018,5649.98,941.66,CTBRAA,Bridges (Growth Fund),6501,Contract Payments,Capital - Comm & Environ
Blackpool Council,1102823,Wilde Consultants Limited,486602,WPCON 16085,04/06/2018,4234.78,705.8,TRB,Maintenance & Works,4501,Private Contractors,Community & Env Services
Blackpool Council,1006586,H Jenkinson & Co Ltd,486610,SINV00804145,05/06/2018,584.58,97.43,SSDA,Social Services Direct,5403,Disabled Adaptations,Adult & Families
Blackpool Council,1007228,Rigby Taylor Ltd,486646,RSIN0258454,07/06/2018,6159.6,1026.6,SCLEAN,Street Cleaning,3041,Other Materials,Community & Env Services
Blackpool Council,1082146,Ascentis,486647,58106,08/06/2018,600,0,ALEARN,Adult Learning,3801,Other Expenses,Places
Blackpool Council,1011779,Northern Security National Limited,486650,20952,18/06/2018,516.6,86.1,SECURE,Security Services,3401,General Services,Community & Env Services
Blackpool Council,1011779,Northern Security National Limited,486652,20951,18/06/2018,762.6,127.1,SECURE,Security Services,3401,General Services,Community & Env Services
Blackpool Council,1101442,Mha & Mca Law Ltd,486653,17/18-A48,01/06/2018,1200,0,EM2003,Departmental Management,3711,Subscriptions,Adult & Families
Blackpool Council,1115226,Baker Lomax & Shackley Ltd,486654,B1236,25/06/2018,2502,417,BCA,Corp And Member Services,3413,Consultants,Governance & Partnerships
Blackpool Council,1038314,Century Plastics Ltd,486656,96018474,08/06/2018,6518.86,1086.48,TRB,Maintenance & Works,4501,Private Contractors,Community & Env Services
Blackpool Council,1057663,Wilde Recruitment Ltd,486657,32911,26/06/2018,556.67,92.78,CTAHHA,Tramway Emergency Works,6501,Contract Payments,Capital - Comm & Environ
Blackpool Council,1025240,Key Engineering Supplies Ltd,486659,4555,11/06/2018,335.09,55.85,PJHA,"Depot, Management & Admin",3801,Other Expenses,Community & Env Services
Blackpool Council,1096596,Highfield Pfi Spv Ltd,486661,SI10016,01/06/2018,384617.71,64102.95,EM1029,Highfield Pfi,4515,Contract Services,Children'S Services
Blackpool Council,1096596,Highfield Pfi Spv Ltd,486661,SI10016,01/06/2018,11169.44,1861.57,EM1029,Highfield Pfi,1202,Electricity,Children'S Services
Blackpool Council,1011779,Northern Security National Limited,486684,19486,18/06/2018,1728.16,288.03,SECURE,Security Services,3401,General Services,Community & Env Services
Blackpool Council,1009260,G S Brown,486687,10146,06/06/2018,536,0,TRCHIL,Integrated Transport Childrens,2201,Contract Hire,Community & Env Services
Blackpool Council,1006292,Vodafone Corporate Ltd,486688,LB07845,01/06/2018,276,46,FGAA,Ict Corporate Services,3531,Computer-H'Ware Purchase,Resources
Blackpool Council,1006292,Vodafone Corporate Ltd,486689,LB07844,01/06/2018,276,46,FGAA,Ict Corporate Services,3531,Computer-H'Ware Purchase,Resources
Blackpool Council,1006292,Vodafone Corporate Ltd,486690,LB07843,01/06/2018,276,46,FGAA,Ict Corporate Services,3531,Computer-H'Ware Purchase,Resources
Blackpool Council,1006292,Vodafone Corporate Ltd,486691,LB07842,01/06/2018,276,46,FGAA,Ict Corporate Services,3531,Computer-H'Ware Purchase,Resources
Blackpool Council,1006292,Vodafone Corporate Ltd,486692,LB07848,01/06/2018,276,46,FGAA,Ict Corporate Services,3531,Computer-H'Ware Purchase,Resources
Blackpool Council,1006292,Vodafone Corporate Ltd,486698,LB07856,01/06/2018,608.4,101.4,FGAA,Ict Corporate Services,3531,Computer-H'Ware Purchase,Resources
Blackpool Council,1006292,Vodafone Corporate Ltd,486699,LB07849,01/06/2018,276,46,FGAA,Ict Corporate Services,3531,Computer-H'Ware Purchase,Resources
Blackpool Council,1006292,Vodafone Corporate Ltd,486700,LB07852,01/06/2018,276,46,FGAA,Ict Corporate Services,3531,Computer-H'Ware Purchase,Resources
Blackpool Council,1006292,Vodafone Corporate Ltd,486701,LB07853,01/06/2018,276,46,FGAA,Ict Corporate Services,3531,Computer-H'Ware Purchase,Resources
Blackpool Council,1006292,Vodafone Corporate Ltd,486702,LB07854,01/06/2018,276,46,FGAA,Ict Corporate Services,3531,Computer-H'Ware Purchase,Resources
Blackpool Council,1006292,Vodafone Corporate Ltd,486703,LB07855,01/06/2018,276,46,FGAA,Ict Corporate Services,3531,Computer-H'Ware Purchase,Resources
Blackpool Council,1006292,Vodafone Corporate Ltd,486704,LB07857,01/06/2018,276,46,FGAA,Ict Corporate Services,3531,Computer-H'Ware Purchase,Resources
Blackpool Council,1006292,Vodafone Corporate Ltd,486705,LB07858,01/06/2018,276,46,FGAA,Ict Corporate Services,3531,Computer-H'Ware Purchase,Resources
Blackpool Council,1006292,Vodafone Corporate Ltd,486708,LB07850,01/06/2018,444,74,FGAA,Ict Corporate Services,3531,Computer-H'Ware Purchase,Resources
Blackpool Council,1006292,Vodafone Corporate Ltd,486709,LB07851,01/06/2018,444,74,FGAA,Ict Corporate Services,3531,Computer-H'Ware Purchase,Resources
Blackpool Council,1010300,Blacktax Radio Taxis T/A Blackpool Courier,486710,12345,06/06/2018,1280,0,TRCHIL,Integrated Transport Childrens,2201,Contract Hire,Community & Env Services
Blackpool Council,1009390,Firwood Timber & Plywood Co Ltd,486713,588914,13/06/2018,616.08,102.68,SCHEME,Highways Schemes,3041,Other Materials,Community & Env Services
Blackpool Council,1010300,Blacktax Radio Taxis T/A Blackpool Courier,486716,12356,06/06/2018,1040,0,TRCHIL,Integrated Transport Childrens,2201,Contract Hire,Community & Env Services
Blackpool Council,1045486,British Gymnastics Association,486719,SLIN/00001897,22/06/2018,619,0,LEISUR,Leisure Management,0911,Training Expenses,Community & Env Services
Blackpool Council,1039583,Invogue Incentives,486727,11835,05/06/2018,1590,265,EYT,Early Years Team,3806,Advertising-General,Children'S Services
Blackpool Council,1088961,Bristol Maid,486735,401094,08/06/2018,830.34,138.39,APDBBB,Arc,3408,Services To Clients,Adult & Families
Blackpool Council,1049304,Insight Direct (Uk) Ltd,486740,3882776,08/06/2018,721.08,120.18,CS0739,Ict Refresh,6525,I.T. Hardware Purchase,Capital - Resources
Blackpool Council,1019678,G & S Smirthwaite Ltd,486743,158281,07/06/2018,1155.6,192.6,CWAN,Children With Additional Needs,3008,Educational Equipment,Children'S Services
Blackpool Council,1013705,Stadia Sports/ Broxap Limited,486746,INV227946,08/06/2018,1533.6,255.6,PRKOP1,Parks Operational Manager  1,3455,Memorials Trees And Benches,Community & Env Services
Blackpool Council,1013705,Stadia Sports/ Broxap Limited,486747,INV227949,08/06/2018,549,0,ZM0018,Highways & Engineering,9773,Orders Received Not Invoiced,Blackpool Services
Blackpool Council,1013705,Stadia Sports/ Broxap Limited,486747,INV227949,08/06/2018,658.8,109.8,ZM0018,Highways & Engineering,9511A,Stocks Efin,Blackpool Services
Blackpool Council,1013705,Stadia Sports/ Broxap Limited,486748,INV227948,08/06/2018,1533.6,255.6,PRKOP1,Parks Operational Manager  1,3455,Memorials Trees And Benches,Community & Env Services
Blackpool Council,1013705,Stadia Sports/ Broxap Limited,486749,INV227947,08/06/2018,1533.6,255.6,PRKOP1,Parks Operational Manager  1,3455,Memorials Trees And Benches,Community & Env Services
Blackpool Council,1107493,Diane Neale Ltd,486752,DNL 211/2018,15/06/2018,2000,0,BSTPRJ,Better Start Projects,3401,General Services,Better Start Projects
Blackpool Council,1049304,Insight Direct (Uk) Ltd,486755,3882782,08/06/2018,1442.16,240.36,CS0739,Ict Refresh,6525,I.T. Hardware Purchase,Capital - Resources
Blackpool Council,1006471,T-Print Ltd,486762,0000425518,05/06/2018,697.68,116.28,BEACHP,Beach Patrol,0911,Training Expenses,Places
Blackpool Council,1110563,Rocksure Systems Ltd T/A Peoplesafe,486838,INV54494,08/06/2018,388.8,64.8,LM0420,Adults Training,3522,Landline - Call Charges,Adult & Families
Blackpool Council,1078141,Flagpole Express Limited,486851,32468,08/06/2018,643.2,107.2,BEACHP,Beach Patrol,3010,Safety Equipment,Places
Blackpool Council,1005071,Blackpool Transport Services Limited,486932,I0000428,01/06/2018,1643.83,0,TRCHIL,Integrated Transport Childrens,2201,Contract Hire,Community & Env Services
Blackpool Council,1058510,Lifeline Language Services Ltd,486938,0718117,13/06/2018,320.64,53.44,JEA,Senior Management,5507,Personal,Children'S Services
Blackpool Council,1007385,R S Components Ltd,486944,290008083,07/06/2018,901.2,150.2,PJOA,Commercial & Marketing,3041,Other Materials,Community & Env Services
Blackpool Council,1072627,Gb Sport And Leisure Uk Ltd,486945,574,14/06/2018,312,52,PRKTEC,Parks Terchnician Manager,3041,Other Materials,Community & Env Services
Blackpool Council,1054541,P&A Medical Ltd,486946,22823,13/06/2018,903.54,150.59,FK0013,Corporate Health,3065,Drugs & Medical Requisites,Chief Executive
Blackpool Council,1076264,Alliance Disposables Ltd,486949,I6786481,18/06/2018,1864.95,0,ZM0018,Highways & Engineering,9773,Orders Received Not Invoiced,Blackpool Services
Blackpool Council,1076264,Alliance Disposables Ltd,486949,I6786481,18/06/2018,2237.94,372.99,ZM0018,Highways & Engineering,9511A,Stocks Efin,Blackpool Services
Blackpool Council,1093815,Raydar Safety Ltd,486953,SI-293,14/06/2018,399.6,66.6,CGOAAA,Quality Corridor,6501,Contract Payments,Capital - Places
Blackpool Council,1073800,Tramshed Theatre Company,486957,TRAM-DIF1,05/06/2018,12500,0,HS0009,Digital Mentoring,3531,Computer-H'Ware Purchase,Children'S Services
Blackpool Council,1103543,Sailflags,486958,00103377,08/06/2018,3145.8,524.3,SCLEAN,Street Cleaning,3041,Other Materials,Community & Env Services
Blackpool Council,1011730,Metric Group Limited,486963,156411,13/06/2018,465.12,77.52,PARADM,Parking Administration,3012,Other Equipment,Budgets Outside Cash Limits
Blackpool Council,1058510,Lifeline Language Services Ltd,486966,0818048,13/06/2018,284.04,47.34,JEA,Senior Management,5507,Personal,Children'S Services
Blackpool Council,1023161,Suez Recycling And Recovery Uk Ltd,486969,80103947,01/06/2018,2236.68,372.78,CWASTE,Commercial Waste,4514,Contract 'E',Community & Env Services
Blackpool Council,1094603,Ncer Cic,486973,61682560,08/06/2018,5352.68,892.11,MNGMT,Central Management,5555,Educational Support,Children'S Services
Blackpool Council,1114857,University Of Brighton,486975,U0130592,08/06/2018,2880,0,HS0001,Headstart Central Expenditure,3605,Confs & Short Courses,Children'S Services
Blackpool Council,1090632,The Play Inspection Company Limited,486978,30619,14/06/2018,4182,697,PRKOP1,Parks Operational Manager  1,0911,Training Expenses,Community & Env Services
Blackpool Council,1020536,B & D Print Services Ltd,486980,149801,12/06/2018,884.4,147.4,PRC,Visitor Services,3301,Printing,Places
Blackpool Council,1006576,The Helping Hand Company,486982,318428,13/06/2018,686.88,114.48,SCLEAN,Street Cleaning,3401,General Services,Community & Env Services
Blackpool Council,1040346,Carechair Ltd,486988,31243,08/06/2018,8459.95,1409.99,APDBBB,Arc,3020,Furniture - Purchase,Adult & Families
Blackpool Council,1011779,Northern Security National Limited,486989,21046,18/06/2018,590.4,98.4,SECURE,Security Services,3401,General Services,Community & Env Services
Blackpool Council,1071546,Denis Rowlandson,486996,0084,14/06/2018,420,70,PRKOP1,Parks Operational Manager  1,4570,Football Turf Maintenance,Community & Env Services
Blackpool Council,1088636,Tarmac Building Products Ltd,487042,SI01353395,01/06/2018,2004.56,0,ZM0018,Highways & Engineering,9773,Orders Received Not Invoiced,Blackpool Services
Blackpool Council,1088636,Tarmac Building Products Ltd,487042,SI01353395,01/06/2018,2405.47,400.91,ZM0018,Highways & Engineering,9511A,Stocks Efin,Blackpool Services
Blackpool Council,1077963,Electricity Northwest Ltd,487047,990050806,07/06/2018,44489.21,7414.87,CXCNA,Tyldesley/Rigby Rd Redev,6511,Service Connections / Altera,Capital - Places
Blackpool Council,1042794,Carlton Fuels Limited,487158,9785556,05/06/2018,2729.5,0,ZF0001,"Insurance,Dso,Banking",9773,Orders Received Not Invoiced,Total Reconciliations
Blackpool Council,1042794,Carlton Fuels Limited,487158,9785556,05/06/2018,3275.4,545.9,ZF0001,"Insurance,Dso,Banking",9511A,Stocks Efin,Total Reconciliations
Blackpool Council,1006292,Vodafone Corporate Ltd,487206,LB17139,01/06/2018,276,46,PVA,Other External Funding,3531,Computer-H'Ware Purchase,Places
Blackpool Council,1006292,Vodafone Corporate Ltd,487208,LB17141,01/06/2018,276,46,OPAREA,Opportunity Areas,3531,Computer-H'Ware Purchase,Places
Blackpool Council,1028179,Caci Ltd,487211,ES09958,15/06/2018,3240,540,VA0010,Vah Management & Admin,3711,Subscriptions,Children'S Services
Blackpool Council,1106288,Blackpool Housing Company Ltd,487213,1065,04/06/2018,696,0,HJA,Growth,3801,Other Expenses,Places
Blackpool Council,1102823,Wilde Consultants Limited,487215,WPCON 16142,13/06/2018,439.74,73.29,CTBRAA,Bridges (Growth Fund),6501,Contract Payments,Capital - Comm & Environ
Blackpool Council,1102823,Wilde Consultants Limited,487216,WPCON 16143,13/06/2018,684.89,114.15,CTBRAA,Bridges (Growth Fund),6501,Contract Payments,Capital - Comm & Environ
Blackpool Council,1102823,Wilde Consultants Limited,487219,WPCON 16144,13/06/2018,302.4,50.4,CTBRAA,Bridges (Growth Fund),6501,Contract Payments,Capital - Comm & Environ
Blackpool Council,1006435,Keep Britain Tidy,487226,114752,15/06/2018,306,51,BEACHP,Beach Patrol,3003,Equipt-Mtce Repairs,Places
Blackpool Council,1102823,Wilde Consultants Limited,487230,WPCON 16082,15/06/2018,5960.7,993.45,CGOAAA,Quality Corridor,6501,Contract Payments,Capital - Places
Blackpool Council,1010104,Canon (Uk ) Ltd,487231,9220031,01/06/2018,251.57,41.93,POA,Office Services,3401,General Services,Places
Blackpool Council,1106577,Qls Ltd,487232,321,07/06/2018,6375,0,ALEARN,Adult Learning,0781,Contracted,Places
Blackpool Council,1025240,Key Engineering Supplies Ltd,487236,4805,15/06/2018,490.78,81.8,HOMECA,Homecare,3066,Personal Needs Of Clients,Adult & Families
Blackpool Council,1006292,Vodafone Corporate Ltd,487239,LB17138,01/06/2018,564,94,JBT,Looked After Children,3531,Computer-H'Ware Purchase,Children'S Services
Blackpool Council,1006460,Total Hygiene Ltd,487260,OP/I141008,15/06/2018,1554,259,CXAAA,Local Authority Dwellings,6502,Grants & Advances,Capital - Places
Blackpool Council,1035030,Wicksteed Leisure Ltd,487284,DU836321,15/06/2018,11400,1900,PRKOP1,Parks Operational Manager  1,3012,Other Equipment,Community & Env Services
Blackpool Council,1086788,Idox Software Ltd,487285,7021120,15/06/2018,1140,190,PYLA,Licencing,3413,Consultants,Community & Env Services
Blackpool Council,1114180,Uk Healthcare Chairs,487291,5897,14/06/2018,2451,408.5,APDBBB,Arc,3020,Furniture - Purchase,Adult & Families
Blackpool Council,1065071,Base,487292,302564,04/06/2018,360,60,ALEARN,Adult Learning,3711,Subscriptions,Places
Blackpool Council,1113794,Premier Advisory Group Limited,487293,BLA001,04/06/2018,12060,2010,OPAREA,Opportunity Areas,6273,Miscellaneous,Places
Blackpool Council,1086156,Water Saving Techniques Limited,487338,3821,01/06/2018,8109.6,1351.6,PARADE,Parades & Sea Wall,1012,Premises Maint-Priv.Contractor,Community & Env Services
Blackpool Council,1028022,Blue Diamond Stl,487339,0000233398,15/06/2018,292.8,0,ZM0018,Highways & Engineering,9773,Orders Received Not Invoiced,Blackpool Services
Blackpool Council,1028022,Blue Diamond Stl,487339,0000233398,15/06/2018,351.36,58.56,ZM0018,Highways & Engineering,9511A,Stocks Efin,Blackpool Services
Blackpool Council,1083903,Carley Consult,487344,TT18104,15/06/2018,540,90,PVA,Other External Funding,3711,Subscriptions,Places
Blackpool Council,1049304,Insight Direct (Uk) Ltd,487349,3890340,15/06/2018,573.58,95.6,FGAC,Ict Technical Support,3531,Computer-H'Ware Purchase,Resources
Blackpool Council,1107153,Landscape Supply Company,487352,76147,15/06/2018,261,43.5,ZM0018,Highways & Engineering,9511A,Stocks Efin,Blackpool Services
Blackpool Council,1008026,Metal Express (Fac083),487355,6337,15/06/2018,1094.4,182.4,PJNA,New Features / Schemes - C & E,3041,Other Materials,Community & Env Services
Blackpool Council,1093815,Raydar Safety Ltd,487358,SI-303,15/06/2018,2412,402,TRB,Maintenance & Works,0911,Training Expenses,Community & Env Services
Blackpool Council,1050319,Perspex Distribution Ltd,487369,960146782,15/06/2018,5477.9,912.98,PJNA,New Features / Schemes - C & E,3041,Other Materials,Community & Env Services
Blackpool Council,1042794,Carlton Fuels Limited,487401,9807060,05/06/2018,18103.67,0,ZF0001,"Insurance,Dso,Banking",9773,Orders Received Not Invoiced,Total Reconciliations
Blackpool Council,1042794,Carlton Fuels Limited,487401,9807060,05/06/2018,21724.4,3620.73,ZF0001,"Insurance,Dso,Banking",9511A,Stocks Efin,Total Reconciliations
Blackpool Council,1010314,Blackpool Grand Theatre,487411,AE 335,04/06/2018,3600,600,PU0001,Public Health Team,4501,Private Contractors,Public Health
Blackpool Council,1007206,Road Safety Services Ltd,487429,83530,05/06/2018,547.2,91.2,CGOAAA,Quality Corridor,6501,Contract Payments,Capital - Places
Blackpool Council,1111807,Costar Uk Limited,487434,106592772,05/06/2018,1275.02,212.51,AEE,Estates,3532,Comp-Running & License Costs,Resources
Blackpool Council,1006292,Vodafone Corporate Ltd,487435,LB51773,08/06/2018,276,46,FGAA,Ict Corporate Services,3531,Computer-H'Ware Purchase,Resources
Blackpool Council,1006292,Vodafone Corporate Ltd,487437,LB51775,08/06/2018,444,74,FGAA,Ict Corporate Services,3531,Computer-H'Ware Purchase,Resources
Blackpool Council,1006292,Vodafone Corporate Ltd,487439,LB71209,08/06/2018,444,74,FGAA,Ict Corporate Services,3531,Computer-H'Ware Purchase,Resources
Blackpool Council,1006292,Vodafone Corporate Ltd,487440,LB71210,08/06/2018,546,91,FGAA,Ict Corporate Services,3531,Computer-H'Ware Purchase,Resources
Blackpool Council,1013415,Drain Doctor Plumbing,487442,16-8173,11/06/2018,3150,525,PJAA,"Erection, Operation & Dismantl",3041,Other Materials,Community & Env Services
Blackpool Council,1010138,C Cabs,487444,02444,06/06/2018,279.12,0,TRCHIL,Integrated Transport Childrens,2201,Contract Hire,Community & Env Services
Blackpool Council,1053453,Brenntag Uk Ltd,487483,32SI 3268227,14/06/2018,345.12,57.52,LEISUR,Leisure Management,3060,Chemicals,Community & Env Services
Blackpool Council,1006716,Survey Operations Limited,487490,28866,12/06/2018,3540,590,PTA,Economic Development,3401,General Services,Places
Blackpool Council,1044756,Northgate Public Services (Uk) Ltd,487491,91407140,15/06/2018,1837.4,306.23,FBBEA,"Income, Recovery & Debtors",3532,Comp-Running & License Costs,Resources
Blackpool Council,1096722,Kirwin Maclean Associates Ltd,487497,MAY17,08/06/2018,350,58.33,LM0420,Adults Training,0911,Training Expenses,Adult & Families
Blackpool Council,1115367,Comma Press,487507,00780,08/06/2018,2000,0,AHM,Arts Miscellaneous,3819,Events Support,Places
Blackpool Council,1072652,Bootstrap Enterprises,487510,01056,07/06/2018,5000,0,PTA,Economic Development,0911,Training Expenses,Places
Blackpool Council,1063445,Cadline Limited,487511,1032798,20/06/2018,10842,1807,AEF,Facilities,3711,Subscriptions,Resources
Blackpool Council,1006292,Vodafone Corporate Ltd,487512,LB61924,08/06/2018,444,74,BAAA,Legal Services,3521,Landline - Line Rental,Governance & Partnerships
Blackpool Council,1006686,Target Trophies,487515,1365,04/06/2018,1170,0,WELLAT,Pupil Welfare & Attendance,3808,Souvenirs & Gifts,Children'S Services
Blackpool Council,1010667,Argos Business Solutions Ltd,487516,01653926,01/06/2018,427.58,71.17,FC1802,Social Fund - Client,5210,Community Care Support,Resources
Blackpool Council,1064012,Trueform Engineering Ltd,487519,INV02354,27/06/2018,8208.6,1368.1,TRB,Maintenance & Works,4501,Private Contractors,Community & Env Services
Blackpool Council,1006586,H Jenkinson & Co Ltd,487537,SINV00805510,15/06/2018,480,80,AEB,Buildings,3302,Stationery,Resources
Blackpool Council,1049304,Insight Direct (Uk) Ltd,487544,3878844,12/06/2018,2235.42,372.56,FGAA,Ict Corporate Services,3532,Comp-Running & License Costs,Resources
Blackpool Council,1011779,Northern Security National Limited,487591,20851,18/06/2018,516.6,86.1,SECURE,Security Services,3401,General Services,Community & Env Services
Blackpool Council,1011779,Northern Security National Limited,487592,20850,18/06/2018,1426.8,237.8,SECURE,Security Services,3401,General Services,Community & Env Services
Blackpool Council,1009906,Combined Precision Components Plc Cpc,487664,8253917,07/06/2018,275.77,45.96,FMAK,Acquisitions 9/10,1131,Electrical Equipment - Repairs,Places
Blackpool Council,1102336,Lancashire Women'S Centres,487672,1349,20/06/2018,700,0,ALEARN,Adult Learning,3801,Other Expenses,Places
Blackpool Council,1109521,Abaris International Limited,487680,37551,14/06/2018,601.72,100.29,LEISUR,Leisure Management,3007,Recreational Equipment,Community & Env Services
Blackpool Council,1062918,The Makaton Charity,487681,0000125488,11/06/2018,330.75,0,BSTPRJ,Better Start Projects,3401,General Services,Better Start Projects
Blackpool Council,1007228,Rigby Taylor Ltd,487684,RSIN0260627,21/06/2018,6159.6,1026.6,SCLEAN,Street Cleaning,3041,Other Materials,Community & Env Services
Blackpool Council,1049304,Insight Direct (Uk) Ltd,487685,3887190,14/06/2018,2509.79,418.3,FGAA,Ict Corporate Services,3532,Comp-Running & License Costs,Resources
Blackpool Council,1013064,Tarmac Lafarge Trading Limited,487687,9038058467,01/06/2018,571.95,95.32,ENGINE,Engineering,3041,Other Materials,Community & Env Services
Blackpool Council,1013064,Tarmac Lafarge Trading Limited,487688,9038058468,01/06/2018,944.92,157.48,ENGINE,Engineering,3041,Other Materials,Community & Env Services
Blackpool Council,1013064,Tarmac Lafarge Trading Limited,487689,9038049726,01/06/2018,861.45,143.57,ENGINE,Engineering,3041,Other Materials,Community & Env Services
Blackpool Council,1013064,Tarmac Lafarge Trading Limited,487690,9038049725,01/06/2018,809.58,134.93,ENGINE,Engineering,3041,Other Materials,Community & Env Services
Blackpool Council,1006196,Prism Medical Uk,487697,5263058,19/06/2018,1435,0,CXAAA,Local Authority Dwellings,6501,Contract Payments,Capital - Places
Blackpool Council,1025954,District Surveyors Association Ltd T/A Labc,487704,"210,126",20/06/2018,432,72,PLCAAA,Building Control,0915,Conferences,Places
Blackpool Council,1114522,The Oyster Partnership Ltd,487707,1032361,26/06/2018,826.14,137.69,AEE,Estates,0781,Contracted,Resources
Blackpool Council,1112992,Key To Independence Ltd,487710,AG200518/JM,11/06/2018,263.1,0,CX4002,Disabled Facilities Grants,6501,Contract Payments,Capital - Adult Social Care
Blackpool Council,1108315,REDACTED PERSONAL DATA,487723,BC07,11/06/2018,1360,0,PLCAAA,Building Control,3401,General Services,Places
Blackpool Council,1115446,Keith Keeley Urban Planning,487724,INV91,19/06/2018,2700,450,PKAAA,Head Of Planning & Trans,3413,Consultants,Places
Blackpool Council,1097449,Maxwell Amenity Ltd,487731,INV467041,22/06/2018,682.42,113.74,SCLEAN,Street Cleaning,3041,Other Materials,Community & Env Services
Blackpool Council,1013064,Tarmac Lafarge Trading Limited,487739,9038049727,01/06/2018,900,150,ENGINE,Engineering,3041,Other Materials,Community & Env Services
Blackpool Council,1114522,The Oyster Partnership Ltd,487741,1032741,26/06/2018,835.86,139.31,AEE,Estates,0781,Contracted,Resources
Blackpool Council,1025087,Arranpaul Audio Ltd,487746,9171,05/06/2018,1890,315,AHM,Arts Miscellaneous,3819,Events Support,Places
Blackpool Council,1011779,Northern Security National Limited,487749,21141,18/06/2018,799.5,133.25,SECURE,Security Services,3401,General Services,Community & Env Services
Blackpool Council,1011779,Northern Security National Limited,487751,21143,18/06/2018,516.6,86.1,SECURE,Security Services,3401,General Services,Community & Env Services
Blackpool Council,1110563,Rocksure Systems Ltd T/A Peoplesafe,487759,INV54828,22/06/2018,2106,351,LM0420,Adults Training,3522,Landline - Call Charges,Adult & Families
Blackpool Council,1051151,Fisc Healthcare Llp,487763,226775,13/06/2018,414,69,APDBBB,Arc,3408,Services To Clients,Adult & Families
Blackpool Council,1094424,The Networking People,487766,SI105106,22/06/2018,2460,410,FGAA,Ict Corporate Services,3531,Computer-H'Ware Purchase,Resources
Blackpool Council,1094424,The Networking People,487767,SI105107,22/06/2018,720,120,FGAA,Ict Corporate Services,3527,Communication Lines,Resources
Blackpool Council,1006944,Siemens Financial Services Ltd,487770,244/18/0189037,14/06/2018,853.75,142.29,APFBAB,Vitaline,4501,Private Contractors,Adult & Families
Blackpool Council,1006944,Siemens Financial Services Ltd,487771,244/18/0186323,11/06/2018,3285.36,547.55,APFBAB,Vitaline,4501,Private Contractors,Adult & Families
Blackpool Council,1006419,Tunstall Healthcare (Uk) Ltd,487772,3IN/10318210,28/06/2018,2854.8,475.8,APFBAB,Vitaline,4501,Private Contractors,Adult & Families
Blackpool Council,1007385,R S Components Ltd,487780,290084729,15/06/2018,844.4,140.74,FMAK,Acquisitions 9/10,1131,Electrical Equipment - Repairs,Places
Blackpool Council,1012789,Advanced Business Solutions (Fka Coa),487782,ARCMIN/99067650,05/06/2018,96462.8,16077.13,FBBCA,Accountancy,3532,Comp-Running & License Costs,Resources
Blackpool Council,1006944,Siemens Financial Services Ltd,487783,244/18/0188160,13/06/2018,1600.53,266.75,APFBAB,Vitaline,4501,Private Contractors,Adult & Families
Blackpool Council,1006586,H Jenkinson & Co Ltd,487785,SINV00805916,21/06/2018,831.6,138.6,AEB,Buildings,3020,Furniture - Purchase,Resources
Blackpool Council,1114727,Elliott Wood Partnership Ltd,487790,INV006234,11/06/2018,3512.48,585.41,FMAK,Acquisitions 9/10,3801,Other Expenses,Places
Blackpool Council,1004842,Hilton Blackpool,487832,NBDSA,28/06/2018,600,0,BSTPRJ,Better Start Projects,3108,Refreshments - Mtgs @ Prog,Better Start Projects
Blackpool Council,1114127,Derbyshire Specialist Aggregates Ltd,487835,RB037320,20/06/2018,4108.56,684.76,SCHEME,Highways Schemes,4501,Private Contractors,Community & Env Services
Blackpool Council,1110465,Spindrift Limited,487836,36406,08/06/2018,319.3,53.22,ENGINE,Engineering,4501,Private Contractors,Community & Env Services
Blackpool Council,1013064,Tarmac Lafarge Trading Limited,487837,J039/1261,08/06/2018,26213.38,4368.9,SCHEME,Highways Schemes,1012,Premises Maint-Priv.Contractor,Community & Env Services
Blackpool Council,1013064,Tarmac Lafarge Trading Limited,487838,J039/1260,08/06/2018,13970.88,2328.48,SCHEME,Highways Schemes,1012,Premises Maint-Priv.Contractor,Community & Env Services
Blackpool Council,1013064,Tarmac Lafarge Trading Limited,487839,9038064493,01/06/2018,677.18,112.86,ENGINE,Engineering,3041,Other Materials,Community & Env Services
Blackpool Council,1013064,Tarmac Lafarge Trading Limited,487846,9038073163,06/06/2018,381.3,63.55,ENGINE,Engineering,3041,Other Materials,Community & Env Services
Blackpool Council,1013064,Tarmac Lafarge Trading Limited,487850,9038087184,08/06/2018,1011.37,168.56,ENGINE,Engineering,3041,Other Materials,Community & Env Services
Blackpool Council,1013064,Tarmac Lafarge Trading Limited,487851,9038073164,06/06/2018,654.48,109.08,ENGINE,Engineering,3041,Other Materials,Community & Env Services
Blackpool Council,1071702,Links Signs & Graphics Ltd,487854,LSGI24343,04/06/2018,450,75,PU0001,Public Health Team,4501,Private Contractors,Public Health
Blackpool Council,1071702,Links Signs & Graphics Ltd,487857,LSGI24138,04/06/2018,1650,275,CGOAAA,Quality Corridor,6501,Contract Payments,Capital - Places
Blackpool Council,1007341,Rapid Electronics Ltd,487862,2615380,15/06/2018,804,134,PJOA,Commercial & Marketing,3041,Other Materials,Community & Env Services
Blackpool Council,1049105,Led Projects Ltd,487864,4868,11/06/2018,360,60,FMAK,Acquisitions 9/10,1131,Electrical Equipment - Repairs,Places
Blackpool Council,1008141,Martin Brown Paints Ltd,487865,HCO025044,01/06/2018,295.87,49.31,SCHEME,Highways Schemes,4501,Private Contractors,Community & Env Services
Blackpool Council,1007987,Millercare Limited,487874,1/51762,08/06/2018,280.76,46.8,APDBBB,Arc,3408,Services To Clients,Adult & Families
Blackpool Council,1115854,Scarborough  Borough Council,487876,613121,22/06/2018,5040,840,BGA,Electoral Services,3801,Other Expenses,Governance & Partnerships
Blackpool Council,1112636,Robinson Low Francis Llp,487877,SIN049461,21/06/2018,945,157.5,PRKOP1,Parks Operational Manager  1,1012,Premises Maint-Priv.Contractor,Community & Env Services
Blackpool Council,1083754,Ahr Architects Ltd,487913,89846,08/06/2018,23730,3955,HJA,Growth,3413,Consultants,Places
Blackpool Council,1115470,REDACTED PERSONAL DATA,487962,18/19-03,04/06/2018,2000,0,AHG,Art Gallery Summary,3456,Payment To Artists,Places
Blackpool Council,1048821,Plum Publishing Ltd,487964,PPX-27743,01/06/2018,456,76,PRA,Conferences,3315,Marketing,Places
Blackpool Council,1018184,Blackpool Skip Hire,487965,005209,08/06/2018,708,118,SCLEAN,Street Cleaning,4501,Private Contractors,Community & Env Services
Blackpool Council,1088013,Hm Land Registry - Nw,487966,6000048227,01/06/2018,334.8,55.8,FBBEA,"Income, Recovery & Debtors",3401,General Services,Resources
Blackpool Council,1088013,Hm Land Registry - Nw,487967,6000048228,01/06/2018,370.8,61.8,FBBEA,"Income, Recovery & Debtors",3401,General Services,Resources
Blackpool Council,1102336,Lancashire Women'S Centres,487968,1331,01/06/2018,700,0,ALEARN,Adult Learning,3801,Other Expenses,Places
Blackpool Council,1009107,Halfords,487969,1800001804,14/06/2018,572,27.24,INTRAD,Integrated Transport Admin,3010,Safety Equipment,Community & Env Services
Blackpool Council,1094277,Aitkens Sportsturf Ltd,487970,2759,13/06/2018,450,0,PRKOP1,Parks Operational Manager  1,4570,Football Turf Maintenance,Community & Env Services
Blackpool Council,1102148,Amberol Ltd,487972,0000017227,26/06/2018,2685.41,447.57,PRKOP1,Parks Operational Manager  1,3020,Furniture - Purchase,Community & Env Services
Blackpool Council,1113301,Swarco Traffic Ltd,487976,90011388,22/06/2018,35952,5992,CTABVA,Ltp Scheme 16/17,6501,Contract Payments,Capital - Places
Blackpool Council,1061733,Northpoint Publishing Ltd (Fac005),487979,2010213,01/06/2018,1200,200,PRA,Conferences,3315,Marketing,Places
Blackpool Council,1076264,Alliance Disposables Ltd,487984,I6818330,22/06/2018,749,0,ZM0018,Highways & Engineering,9773,Orders Received Not Invoiced,Blackpool Services
Blackpool Council,1076264,Alliance Disposables Ltd,487984,I6818330,22/06/2018,898.8,149.8,ZM0018,Highways & Engineering,9511A,Stocks Efin,Blackpool Services
Blackpool Council,1006940,Smiths Equipment Hire Ltd,487987,V07-619777,07/06/2018,468,78,PJNA,New Features / Schemes - C & E,3041,Other Materials,Community & Env Services
Blackpool Council,1051753,Fylde Borough Council,487989,18/0238,01/06/2018,462,0,MPB,Edc - Economic Dev Company,3413,Consultants,Places
Blackpool Council,1008644,Jonathan Lynch T/A The Studio,487990,1921,04/06/2018,580,0,AHG,Art Gallery Summary,3456,Payment To Artists,Places
Blackpool Council,1110649,Aimedia Limited T/A Vuelio,487991,SIN020150,22/06/2018,1140,190,PRL,Marketing,3315,Marketing,Places
Blackpool Council,1011779,Northern Security National Limited,487992,21221,18/06/2018,516.6,86.1,SECURE,Security Services,3401,General Services,Community & Env Services
Blackpool Council,1011779,Northern Security National Limited,487994,21219,18/06/2018,492,82,SECURE,Security Services,3401,General Services,Community & Env Services
Blackpool Council,1012789,Advanced Business Solutions (Fka Coa),487996,ARXI/00003113,22/06/2018,268.69,44.78,FBBCA,Accountancy,3532,Comp-Running & License Costs,Resources
Blackpool Council,1115697,Hangar 3 Blackpool Ltd,487998,2595/2018,01/06/2018,1200,200,MPB,Edc - Economic Dev Company,3819,Events Support,Places
Blackpool Council,1090812,Imperial Polythene Products Ltd,488000,SIN095585,28/06/2018,5220,870,CWASTE,Commercial Waste,3041,Other Materials,Community & Env Services
Blackpool Council,1093815,Raydar Safety Ltd,488001,SI-311,28/06/2018,399.6,66.6,CGOAAA,Quality Corridor,6501,Contract Payments,Capital - Places
Blackpool Council,1058510,Lifeline Language Services Ltd,488002,0818084,29/06/2018,262.2,43.7,JEA,Senior Management,5507,Personal,Children'S Services
Blackpool Council,1076264,Alliance Disposables Ltd,488004,I6825133,28/06/2018,262.8,43.8,ZM0018,Highways & Engineering,9511A,Stocks Efin,Blackpool Services
Blackpool Council,1015172,Yandell Publishing Ltd (Fac062),488007,WB40554,21/06/2018,420,70,PRA,Conferences,3315,Marketing,Places
Blackpool Council,1007341,Rapid Electronics Ltd,488009,2621732,26/06/2018,811.2,135.2,PJOA,Commercial & Marketing,3041,Other Materials,Community & Env Services
Blackpool Council,1098823,Risual Limited,488010,108974,27/06/2018,4560,760,FGAA,Ict Corporate Services,3532,Comp-Running & License Costs,Resources
Blackpool Council,1110202,Preston Bus Ltd,488011,103529,01/06/2018,1663.2,277.2,TRCHIL,Integrated Transport Childrens,4501,Private Contractors,Community & Env Services
Blackpool Council,1110202,Preston Bus Ltd,488012,103528,14/06/2018,1598.4,266.4,TRCHIL,Integrated Transport Childrens,4501,Private Contractors,Community & Env Services
Blackpool Council,1114704,Morson Human Resources Ltd,488013,HS177001,06/06/2018,1980,330,CTAHHA,Tramway Emergency Works,6506,Consultants Fees,Capital - Comm & Environ
Blackpool Council,1057663,Wilde Recruitment Ltd,488014,32987,26/06/2018,517.86,86.31,CTAHHA,Tramway Emergency Works,6501,Contract Payments,Capital - Comm & Environ
Blackpool Council,1057663,Wilde Recruitment Ltd,488015,32947,26/06/2018,517.86,86.31,CTAHHA,Tramway Emergency Works,6501,Contract Payments,Capital - Comm & Environ
Blackpool Council,1010667,Argos Business Solutions Ltd,488019,01656160,08/06/2018,355.44,59.17,FC1802,Social Fund - Client,5210,Community Care Support,Resources
Blackpool Council,1080659,William J Marshall & Partners Llp,488020,16/8470,06/06/2018,9068.03,1511.34,CTAHHA,Tramway Emergency Works,6506,Consultants Fees,Capital - Comm & Environ
Blackpool Council,1063755,Park Retail Ltd,488051,24478980,01/06/2018,400,0,PU2022,Specialist Sexual Health Serv,4501,Private Contractors,Public Health
Blackpool Council,1011675,Bambers Remedial Contractors Limited,488053,14775,04/06/2018,4152.5,0,CX4002,Disabled Facilities Grants,6501,Contract Payments,Capital - Adult Social Care
Blackpool Council,1053198,Robinson Mitchell Ltd  (Refbla044),488109,0000083827,22/06/2018,276,46,DOMPFI,Domestic Waste & Waste Pfi,4501,Private Contractors,Community & Env Services
Blackpool Council,1062069,Cles Ltd,488110,15090,19/06/2018,4926.37,821.06,LHAP,Housing Projects,4004,Management Fees,Chief Executive
Blackpool Council,1045794,Amion Consulting Limited,488112,AVL2250,20/06/2018,1800,300,EC7011,Museum - Professional Fees,3413,Consultants,Places
Blackpool Council,1115471,REDACTED PERSONAL DATA,488113,RB226,05/06/2018,3928.47,0,AHG,Art Gallery Summary,3456,Payment To Artists,Places
Blackpool Council,1115939,REDACTED PERSONAL DATA,488116,20,25/06/2018,2500,0,AHHBA,Blackpool Museum,0981,Professional Fees,Places
Blackpool Council,1094424,The Networking People,488119,SI105116,28/06/2018,513.32,85.55,TSICT,Transforming Schools Ict,3532,Comp-Running & License Costs,Resources
Blackpool Council,1094424,The Networking People,488120,SI105115,28/06/2018,8400,1400,FGAA,Ict Corporate Services,3532,Comp-Running & License Costs,Resources
Blackpool Council,1022781,Moore Readymix Ltd,488121,89575,22/06/2018,331.92,55.32,ENGINE,Engineering,3041,Other Materials,Community & Env Services
Blackpool Council,1006586,H Jenkinson & Co Ltd,488123,SINV00806303,22/06/2018,480,80,AEB,Buildings,3302,Stationery,Resources
Blackpool Council,1060631,Rossendales Limited,488124,C 571701,25/06/2018,302.01,50.34,FC3001,Housing Benefits,3401,General Services,Budgets Outside Cash Limits
Blackpool Council,1112198,Kkc Engineering Consultants Limited,488126,833/18,29/06/2018,7872,1312,CTAHHA,Tramway Emergency Works,6506,Consultants Fees,Capital - Comm & Environ
Blackpool Council,1007562,Pennine Telecom Limited,488128,OP/I044336,29/06/2018,650.64,108.44,APFBAB,Vitaline,4501,Private Contractors,Adult & Families
Blackpool Council,1025240,Key Engineering Supplies Ltd,488132,5197,29/06/2018,834.9,139.15,HOMECA,Homecare,3201,Clothing & Uniforms,Adult & Families
Blackpool Council,1006449,Tmp (Uk) Ltd,488133,100001180530,22/06/2018,283.97,47.33,TRA,Traffic Management,4501,Private Contractors,Community & Env Services
Blackpool Council,1025240,Key Engineering Supplies Ltd,488135,5198,29/06/2018,678.24,0,ZM0018,Highways & Engineering,9773,Orders Received Not Invoiced,Blackpool Services
Blackpool Council,1025240,Key Engineering Supplies Ltd,488135,5198,29/06/2018,813.89,135.65,ZM0018,Highways & Engineering,9511A,Stocks Efin,Blackpool Services
Blackpool Council,1058510,Lifeline Language Services Ltd,488136,0818017,15/06/2018,269.28,44.88,SBOARD,Springboard,4501,Private Contractors,Children'S Services
Blackpool Council,1066729,Equis Associates Limited,488140,12-37-PG-BC,14/06/2018,16200,2700,CTAHHA,Tramway Emergency Works,6506,Consultants Fees,Capital - Comm & Environ
Blackpool Council,1070177,The Noisy Drinks Co. North West Ltd,488146,57766,20/06/2018,348.8,58.13,CATERG,Catering Services,3101,Provisions,Community & Env Services
Blackpool Council,1008525,Kingswood Office Supplies Limited,488152,320952,05/06/2018,2795.63,465.94,AEB,Buildings,3012,Other Equipment,Resources
Blackpool Council,1066073,Blackpool Coastal Housing,488154,30001378,12/06/2018,1500,0,PJW,Management - Places - Illumina,3041,Other Materials,Places
Blackpool Council,1007228,Rigby Taylor Ltd,488156,RSIN0261628,29/06/2018,1020,170,PRKOP1,Parks Operational Manager  1,3060,Chemicals,Community & Env Services
Blackpool Council,1056006,Woody'S Group,488159,I0001523,05/06/2018,480,80,PRKDEV,Parks Development,3041,Other Materials,Community & Env Services
Blackpool Council,1080563,Bay Media,488161,14614,29/06/2018,1430.4,238.4,PRL,Marketing,3401,General Services,Places
Blackpool Council,1012839,George Cox & Sons Ltd,488162,9936,20/06/2018,156750,26125,CGOAAA,Quality Corridor,6501,Contract Payments,Capital - Places
Blackpool Council,1094424,The Networking People,488163,SI105120,29/06/2018,1592.83,265.47,FGAA,Ict Corporate Services,3532,Comp-Running & License Costs,Resources
Blackpool Council,1094424,The Networking People,488164,SI105119,29/06/2018,1015.04,169.17,FGAA,Ict Corporate Services,3532,Comp-Running & License Costs,Resources
Blackpool Council,1094424,The Networking People,488165,SI105118,29/06/2018,4052.72,675.45,FGAA,Ict Corporate Services,3532,Comp-Running & License Costs,Resources
Blackpool Council,1006586,H Jenkinson & Co Ltd,488167,SINV00806525,29/06/2018,480,80,AEB,Buildings,3302,Stationery,Resources
Blackpool Council,1016238,Pentland Plants Limited,488169,82158,20/06/2018,1482.43,247.07,CEMCRE,Cems Crems Etc,3801,Other Expenses,Governance & Partnerships
Blackpool Council,1071928,Civica Uk Limited,488170,C/CM165976,29/06/2018,414.86,69.14,PARADM,Parking Administration,2002,Repairs And Maintenance,Budgets Outside Cash Limits
Blackpool Council,1049304,Insight Direct (Uk) Ltd,488173,3905874,29/06/2018,721.15,120.19,CS0739,Ict Refresh,6525,I.T. Hardware Purchase,Capital - Resources
Blackpool Council,1093815,Raydar Safety Ltd,488179,SI-315,29/06/2018,1800,300,CTBRAA,Bridges (Growth Fund),6501,Contract Payments,Capital - Comm & Environ
Blackpool Council,1099886,Red Box Recorders Limited,488180,0000014984,28/06/2018,2161.66,360.28,FGAC,Ict Technical Support,3532,Comp-Running & License Costs,Resources
Blackpool Council,1082067,Squire Patton Boggs (Uk) Llp,488184,2627004,27/06/2018,32149.08,5358.18,CTAHHA,Tramway Emergency Works,6506,Consultants Fees,Capital - Comm & Environ
Blackpool Council,1087234,Aitch Tools & Fasteners Ltd,488189,033027,29/06/2018,258.61,43.11,PJOA,Commercial & Marketing,3041,Other Materials,Community & Env Services
Blackpool Council,1008052,Midland Signs (Leicester) Ltd T/A G & G Signs,488197,38356,28/06/2018,495.24,82.54,ENGINE,Engineering,3041,Other Materials,Community & Env Services
Blackpool Council,1005067,Blackpool Pleasure Beach Ltd,488204,17036,12/06/2018,570,95,PJW,Management - Places - Illumina,3803,Hospitality,Places
Blackpool Council,1112696,REDACTED PERSONAL DATA,488206,BPL280518,05/06/2018,590,0,LEISUR,Leisure Management,0911,Training Expenses,Community & Env Services
Blackpool Council,1102627,Fresh Pastures Processing Ltd,488209,29204290418,07/06/2018,304.92,0,APDBBB,Arc,3107,Milk For Drinking,Adult & Families
Blackpool Council,1033140,P J Combustion Solutions,488211,3740,29/06/2018,720,120,CEMCRE,Cems Crems Etc,1111,Cremators,Governance & Partnerships
Blackpool Council,1012839,George Cox & Sons Ltd,488213,9932,13/06/2018,11150.88,1858.48,TRB,Maintenance & Works,4501,Private Contractors,Community & Env Services
Blackpool Council,1006292,Vodafone Corporate Ltd,488216,LC29508,20/06/2018,276,46,JAH,Duty And Assessment,3531,Computer-H'Ware Purchase,Children'S Services
Blackpool Council,1006292,Vodafone Corporate Ltd,488217,LC54623,22/06/2018,444,74,CORDEV,Corporate Delivery Unit,3531,Computer-H'Ware Purchase,Chief Executive
Blackpool Council,1114704,Morson Human Resources Ltd,488218,HS177962,06/06/2018,1980,330,CTAHHA,Tramway Emergency Works,6506,Consultants Fees,Capital - Comm & Environ
Blackpool Council,1027733,William Smith & Sons (Barnard Castle) Ltd,488220,461769,18/06/2018,4310.22,718.37,SCHEME,Highways Schemes,3041,Other Materials,Community & Env Services
Blackpool Council,1006292,Vodafone Corporate Ltd,488221,LC29509,20/06/2018,552,92,FGAA,Ict Corporate Services,3531,Computer-H'Ware Purchase,Resources
Blackpool Council,1006292,Vodafone Corporate Ltd,488222,87946069,21/06/2018,35888.89,5678.74,FGAA,Ict Corporate Services,3523,Mobile Phones - Line Rental,Resources
Blackpool Council,1060724,J A Dickens Property Developer,488257,BCH-1557,05/06/2018,943.17,0,MVB,65-74,5401,Aids To Daily Living,Adult & Families
Blackpool Council,1060724,J A Dickens Property Developer,488258,BCH-1558,05/06/2018,876.48,0,MVB,65-74,5401,Aids To Daily Living,Adult & Families
Blackpool Council,1060724,J A Dickens Property Developer,488259,BCH-1559,05/06/2018,888.96,0,MVB,65-74,5401,Aids To Daily Living,Adult & Families
Blackpool Council,1060724,J A Dickens Property Developer,488260,BCH-1563,05/06/2018,564.2,0,MVB,65-74,5401,Aids To Daily Living,Adult & Families
Blackpool Council,1060724,J A Dickens Property Developer,488261,BCH-1564,05/06/2018,540.2,0,CXAAA,Local Authority Dwellings,6501,Contract Payments,Capital - Places
Blackpool Council,1060724,J A Dickens Property Developer,488263,BCH-1556,05/06/2018,978.32,0,MVB,65-74,5401,Aids To Daily Living,Adult & Families
Blackpool Council,1083256,Community Lighting Partnership (Bpool) Ltd,488265,101,05/06/2018,496058.59,82676.43,FL1259,Pfi Management Costs,4501,Private Contractors,Community & Env Services
Blackpool Council,1060724,J A Dickens Property Developer,488267,BCH-1571,05/06/2018,301.11,0,MVB,65-74,5401,Aids To Daily Living,Adult & Families
Blackpool Council,1060724,J A Dickens Property Developer,488268,BCH-1549,05/06/2018,362.8,0,MVB,65-74,5401,Aids To Daily Living,Adult & Families
Blackpool Council,1060724,J A Dickens Property Developer,488269,BCH-1551,05/06/2018,362.8,0,MVA,18-64,5401,Aids To Daily Living,Adult & Families
Blackpool Council,1060724,J A Dickens Property Developer,488270,BCH-1552,05/06/2018,362.8,0,MVB,65-74,5401,Aids To Daily Living,Adult & Families
Blackpool Council,1090124,REDACTED PERSONAL DATA,488275,18052,29/06/2018,500,0,LEISUR,Leisure Management,3801,Other Expenses,Community & Env Services
Blackpool Council,1097997,Szpunar & Associates Ltd,488277,20/014/0004,22/06/2018,560,0,LM0420,Adults Training,0911,Training Expenses,Adult & Families
Blackpool Council,1100367,Curve Learning And Development Ltd,488278,8461,29/06/2018,878.4,146.4,LM0420,Adults Training,0911,Training Expenses,Adult & Families
Blackpool Council,1095113,Pearce Clinical Psychology Services Ltd,488279,818,14/06/2018,500,0,FK0071,Corporate Training,0911,Training Expenses,Chief Executive
Blackpool Council,1071925,Groundwork Cheshire Lancs And Merseyside,488280,0000001573,13/06/2018,8062.2,1343.7,AEB,Buildings,3401,General Services,Resources
Blackpool Council,1087683,A & C Weber Uk Ltd,488284,2018-010289,07/06/2018,281.52,46.92,CWASTE,Commercial Waste,3041,Other Materials,Community & Env Services
Blackpool Council,1011714,Michael Hope Haulage Limited,488285,001339,06/06/2018,1152,192,SCHEME,Highways Schemes,1012,Premises Maint-Priv.Contractor,Community & Env Services
Blackpool Council,1011714,Michael Hope Haulage Limited,488286,001341,06/06/2018,1152,192,SCHEME,Highways Schemes,1012,Premises Maint-Priv.Contractor,Community & Env Services
Blackpool Council,1011714,Michael Hope Haulage Limited,488287,001343,06/06/2018,1152,192,SCHEME,Highways Schemes,1012,Premises Maint-Priv.Contractor,Community & Env Services
Blackpool Council,1095408,Jay Salisbury Equipment Services,488288,13497,25/06/2018,345,57.5,ENGINE,Engineering,3041,Other Materials,Community & Env Services
Blackpool Council,1115870,Traffic Direct Limited,488292,8308,22/06/2018,840,140,SCHEME,Highways Schemes,1012,Premises Maint-Priv.Contractor,Community & Env Services
Blackpool Council,1013064,Tarmac Lafarge Trading Limited,488293,9038108022,13/06/2018,411.46,68.57,ENGINE,Engineering,3041,Other Materials,Community & Env Services
Blackpool Council,1013064,Tarmac Lafarge Trading Limited,488295,9038108020,13/06/2018,542.2,90.36,ENGINE,Engineering,3041,Other Materials,Community & Env Services
Blackpool Council,1013064,Tarmac Lafarge Trading Limited,488298,9038133255,15/06/2018,376.72,62.78,ENGINE,Engineering,3041,Other Materials,Community & Env Services
Blackpool Council,1013064,Tarmac Lafarge Trading Limited,488299,9038133256,15/06/2018,629.3,104.88,ENGINE,Engineering,3041,Other Materials,Community & Env Services
Blackpool Council,1087936,P H Timber Ltd,488300,P35775,18/06/2018,256.55,42.76,ENGINE,Engineering,3041,Other Materials,Community & Env Services
Blackpool Council,1025087,Arranpaul Audio Ltd,488301,9209,11/06/2018,2280,380,PU2050,Dancing With Dementia,4501,Private Contractors,Public Health
Blackpool Council,1053261,Ad Systems (Uk) Limited,488302,4324,25/06/2018,3432,572,CCTV,Cctv,4501,Private Contractors,Places
Blackpool Council,1107153,Landscape Supply Company,488306,76425,29/06/2018,310.18,51.7,PRKOP1,Parks Operational Manager  1,3041,Other Materials,Community & Env Services
Blackpool Council,1006292,Vodafone Corporate Ltd,488310,LC63388,22/06/2018,444,74,CORDEV,Corporate Delivery Unit,3531,Computer-H'Ware Purchase,Chief Executive
Blackpool Council,1010311,Boc Limited,488321,3047482054,21/06/2018,324.28,54.05,LEISUR,Leisure Management,3060,Chemicals,Community & Env Services
Blackpool Council,1006143,Yorkshire Purchasing Organisation,488380,231154255,06/06/2018,685.44,114.24,MUSIC,Music & Cultural Education,3008,Educational Equipment,Children'S Services
Blackpool Council,1007211,Robert Pinkus Property Management Ltd,488381,46242,14/06/2018,270,45,AEB,Buildings,3401,General Services,Resources
Blackpool Council,1007211,Robert Pinkus Property Management Ltd,488382,46240,14/06/2018,687,114.5,AEB,Buildings,3401,General Services,Resources
Blackpool Council,1007211,Robert Pinkus Property Management Ltd,488383,46239,14/06/2018,4350,725,AEB,Buildings,3401,General Services,Resources
Blackpool Council,1010619,Askews And Holts Library Services Ltd,488401,5715424,27/06/2018,305.36,0,LBB,Central Library,3304,Books And Periodicals,Places
Blackpool Council,1010619,Askews And Holts Library Services Ltd,488403,5738301,27/06/2018,392.21,0,LBB,Central Library,3304,Books And Periodicals,Places
Blackpool Council,1082067,Squire Patton Boggs (Uk) Llp,488405,2626561,15/06/2018,10000,0,CTAHHA,Tramway Emergency Works,6501,Contract Payments,Capital - Comm & Environ
Blackpool Council,1049304,Insight Direct (Uk) Ltd,488406,3905975,29/06/2018,27551.4,4591.9,CS0739,Ict Refresh,6525,I.T. Hardware Purchase,Capital - Resources
Blackpool Council,1071702,Links Signs & Graphics Ltd,488409,LSGI24552,28/06/2018,276,46,PRC,Visitor Services,3301,Printing,Places
Blackpool Council,1060135,Happy Creative Ltd,488410,H4561,08/06/2018,588,98,PU0001,Public Health Team,4501,Private Contractors,Public Health
Blackpool Council,1013011,Tennant Uk Cleaning Solutions Ltd,488411,963760814,29/06/2018,4003.2,667.2,SCLEAN,Street Cleaning,3401,General Services,Community & Env Services
Blackpool Council,1011970,A1 Streamline Road Markings Ltd,488417,2865,11/06/2018,300,50,TRA,Traffic Management,4501,Private Contractors,Community & Env Services
Blackpool Council,1008743,James Leckey Design Ltd T/A Vida Global,488419,OP/I136825,21/06/2018,589.2,98.2,CWAN,Children With Additional Needs,3008,Educational Equipment,Children'S Services
Blackpool Council,1071928,Civica Uk Limited,488420,X/LE31090,11/06/2018,306.12,51.02,LIFEVE,Life Events Reg & Care,3801,Other Expenses,Governance & Partnerships
Blackpool Council,1071928,Civica Uk Limited,488421,X/LE31099,11/06/2018,464.52,77.42,LIFEVE,Life Events Reg & Care,3801,Other Expenses,Governance & Partnerships
Blackpool Council,1044867,Jay Law Ltd,488438,INV-L4770,08/06/2018,500,0,CX4024,Winter Warmth Grant,6502,Grants & Advances,Capital - Adult Social Care
Blackpool Council,1060724,J A Dickens Property Developer,488439,BCH-1565,08/06/2018,594.36,0,MVB,65-74,5401,Aids To Daily Living,Adult & Families
Blackpool Council,1060724,J A Dickens Property Developer,488440,BCH-1566,08/06/2018,453.52,0,MVA,18-64,5401,Aids To Daily Living,Adult & Families
Blackpool Council,1060724,J A Dickens Property Developer,488441,BCH-1567,08/06/2018,301.76,0,MVB,65-74,5401,Aids To Daily Living,Adult & Families
Blackpool Council,1078418,Lisclare Limited,488442,SINV03081206,08/06/2018,2539.36,423.23,MTE,Undefined Age Group,5401,Aids To Daily Living,Adult & Families
Blackpool Council,1060724,J A Dickens Property Developer,488443,BCH-1519,08/06/2018,362.8,0,MVA,18-64,5401,Aids To Daily Living,Adult & Families
Blackpool Council,1006576,The Helping Hand Company,488444,318566,15/06/2018,759.72,126.62,MTE,Undefined Age Group,5401,Aids To Daily Living,Adult & Families
Blackpool Council,1060724,J A Dickens Property Developer,488448,BCH-1547,08/06/2018,272.2,0,MVA,18-64,5401,Aids To Daily Living,Adult & Families
Blackpool Council,1060724,J A Dickens Property Developer,488449,BCH-1548,08/06/2018,272.2,0,MVB,65-74,5401,Aids To Daily Living,Adult & Families
Blackpool Council,1006196,Prism Medical Uk,488460,5264276,26/06/2018,1499,0,CX4002,Disabled Facilities Grants,6501,Contract Payments,Capital - Adult Social Care
Blackpool Council,1112303,Access-Able (Uk) Limited,488461,2778,28/06/2018,2916,0,CX4002,Disabled Facilities Grants,6501,Contract Payments,Capital - Adult Social Care
Blackpool Council,1008096,Mellor Architects Ltd,488462,6226,08/06/2018,1692.49,0,CX4002,Disabled Facilities Grants,6501,Contract Payments,Capital - Adult Social Care
Blackpool Council,1008096,Mellor Architects Ltd,488463,6224,08/06/2018,312,0,CX4002,Disabled Facilities Grants,6501,Contract Payments,Capital - Adult Social Care
Blackpool Council,1002210,Read & Errington,488465,MRC106/24ALCON,08/06/2018,2711.32,0,CX4002,Disabled Facilities Grants,6518,Miscellaneous - Capital,Capital - Adult Social Care
Blackpool Council,1011675,Bambers Remedial Contractors Limited,488466,14995,08/06/2018,5663.44,0,CX4002,Disabled Facilities Grants,6501,Contract Payments,Capital - Adult Social Care
Blackpool Council,1019678,G & S Smirthwaite Ltd,488468,158816,28/06/2018,2841.6,473.6,MTE,Undefined Age Group,5401,Aids To Daily Living,Adult & Families
Blackpool Council,1044867,Jay Law Ltd,488472,INV-L4789,08/06/2018,400,66.67,CX4005,Care & Repair Grants,6502,Grants & Advances,Capital - Adult Social Care
Blackpool Council,1008743,James Leckey Design Ltd T/A Vida Global,488477,OP/I135213,08/06/2018,2524.8,420.8,MTE,Undefined Age Group,5401,Aids To Daily Living,Adult & Families
Blackpool Council,1026811,Stannah Lift Services Ltd,488478,R040028882,08/06/2018,1030.45,171.74,CXAAA,Local Authority Dwellings,6501,Contract Payments,Capital - Places
Blackpool Council,1116118,Psr & Sons Joiners & Building Contractors Ltd,488479,897,11/06/2018,5767.87,961.31,MTE,Undefined Age Group,5401,Aids To Daily Living,Adult & Families
Blackpool Council,1058751,Emo Oil Ltd,488518,9845308,20/06/2018,4125.69,0,ZF0001,"Insurance,Dso,Banking",9773,Orders Received Not Invoiced,Total Reconciliations
Blackpool Council,1058751,Emo Oil Ltd,488518,9845308,20/06/2018,4950.83,825.14,ZF0001,"Insurance,Dso,Banking",9511A,Stocks Efin,Total Reconciliations
Blackpool Council,1096218,Hague,488521,10112203,27/06/2018,2994,499,FB0062,Payments & Processing,3532,Comp-Running & License Costs,Resources
Blackpool Council,1087118,Ps & P Limited,488522,100433,29/06/2018,1809.26,301.54,FC3001,Housing Benefits,3401,General Services,Budgets Outside Cash Limits
Blackpool Council,1006985,Servicemaster  Cs West Lancs,488523,10002,29/06/2018,473.56,78.93,AEB,Buildings,3401,General Services,Resources
Blackpool Council,1031656,Wigan Council,488528,71251403203,29/06/2018,330,0,EYT,Early Years Team,3304,Books And Periodicals,Children'S Services
Blackpool Council,1006449,Tmp (Uk) Ltd,488531,100001181297,29/06/2018,319.46,53.24,TRA,Traffic Management,4501,Private Contractors,Community & Env Services
Blackpool Council,1006449,Tmp (Uk) Ltd,488532,100001180528,22/06/2018,319.46,53.24,TRA,Traffic Management,4501,Private Contractors,Community & Env Services
Blackpool Council,1018184,Blackpool Skip Hire,488533,5539,15/06/2018,1512,252,DOMPFI,Domestic Waste & Waste Pfi,4514,Contract 'E',Community & Env Services
Blackpool Council,1018184,Blackpool Skip Hire,488534,5538,11/06/2018,25832.59,4305.43,CWASTE,Commercial Waste,4514,Contract 'E',Community & Env Services
Blackpool Council,1114541,Integrity Print Ltd,488541,1222150,12/06/2018,756,126,PARADM,Parking Administration,3301,Printing,Budgets Outside Cash Limits
Blackpool Council,1081237,The Speech Bubble Ltd,488542,TSBI-2160,11/06/2018,4730,0,EDDIV,Education Diversity,3412,Therapeutic Work,Children'S Services
Blackpool Council,1052237,Elite Cleaning & Environmental Svcs Ltd,488543,52382,11/06/2018,6771.54,1128.59,EDDIV,Education Diversity,1601,Consumable Supplies,Children'S Services
Blackpool Council,1052237,Elite Cleaning & Environmental Svcs Ltd,488544,52538,11/06/2018,6771.54,1128.59,EDDIV,Education Diversity,1601,Consumable Supplies,Children'S Services
Blackpool Council,1006940,Smiths Equipment Hire Ltd,488548,V07-613397,11/06/2018,790.78,131.8,PJLA,Maintenance,2211,Casual Hire,Community & Env Services
Blackpool Council,1006940,Smiths Equipment Hire Ltd,488550,V07-606374,11/06/2018,828.43,138.07,PJLA,Maintenance,2211,Casual Hire,Community & Env Services
Blackpool Council,1006940,Smiths Equipment Hire Ltd,488551,V07-621705,11/06/2018,866.09,144.35,PJLA,Maintenance,2211,Casual Hire,Community & Env Services
Blackpool Council,1112366,S J Mcbride Ltd T/A Warefence,488553,13458,08/06/2018,690,115,AEV,Vacant & Under Used,1064,Delegated Maintenance,Resources
Blackpool Council,1060135,Happy Creative Ltd,488566,H4539,11/06/2018,2670,445,PU0001,Public Health Team,4501,Private Contractors,Public Health
Blackpool Council,1060990,Kantar Uk Ltd T/A Kantar Tns,488567,401092381,21/06/2018,3300,550,PPA,Head Of Tourism Services,3401,General Services,Places
Blackpool Council,1092789,P T Winchester Ltd,488576,241238,29/06/2018,338.1,56.35,PJOA,Commercial & Marketing,3041,Other Materials,Community & Env Services
Blackpool Council,1011121,Fylde Coast Gate Ltd,488577,27811,19/06/2018,1200,200,SCHEME,Highways Schemes,1012,Premises Maint-Priv.Contractor,Community & Env Services
Blackpool Council,1077963,Electricity Northwest Ltd,488585,990051612,27/06/2018,566.12,94.35,TRC,Travel & Safety,7301,General Fees & Charges,Community & Env Services
Blackpool Council,1011896,Capita Business Services Ltd,488645,6003781144,29/06/2018,2154,359,MPB,Edc - Economic Dev Company,3533,Computer S/W Purchases,Places
Blackpool Council,1011896,Capita Business Services Ltd,488646,6003781143,28/06/2018,600,100,FBBEA,"Income, Recovery & Debtors",3533,Computer S/W Purchases,Resources
Blackpool Council,1011896,Capita Business Services Ltd,488647,6003782774,19/06/2018,900,150,FBBEA,"Income, Recovery & Debtors",3533,Computer S/W Purchases,Resources
Blackpool Council,1011896,Capita Business Services Ltd,488647,6003782774,19/06/2018,900,150,FCACA,Benefits - Admin,3533,Computer S/W Purchases,Resources
Blackpool Council,1114180,Uk Healthcare Chairs,488652,6329,22/06/2018,862.8,143.8,APBBAD,Keats Day Centre,3020,Furniture - Purchase,Adult & Families
Blackpool Council,1101771,Ati Environment Uk Ltd,488653,ATI130518,11/06/2018,5916,986,CEMCRE,Cems Crems Etc,3401,General Services,Governance & Partnerships
Blackpool Council,1101771,Ati Environment Uk Ltd,488654,ATI030418,11/06/2018,5881.2,980.2,CEMCRE,Cems Crems Etc,3313,General Expenses,Governance & Partnerships
Blackpool Council,1044756,Northgate Public Services (Uk) Ltd,488658,91407754,29/06/2018,1247.52,207.92,FC1404,Blue Badge Reform,3401,General Services,Resources
Blackpool Council,1028641,New Mind Internet Consultancy Ltd,488659,NM32139,25/06/2018,720,120,PRJAAA,Website Team,3535,Website Costs,Places
Blackpool Council,1009295,Autolines Graphics Ltd,488661,B6468,11/06/2018,1368,228,CWASTE,Commercial Waste,3041,Other Materials,Community & Env Services
Blackpool Council,1008878,Cipfa Business Limited,488670,3136431,11/06/2018,300,50,FBBBA,Audit & Investigations,0917,Other Exps,Resources
Blackpool Council,1087953,Blackpool Local Education Partnership Ltd,488677,SI10017,11/06/2018,10825.98,1804.33,EM1028,St Marys,4515,Contract Services,Children'S Services
Blackpool Council,1010311,Boc Limited,488679,3047524653,21/06/2018,263.1,43.85,BEACHP,Beach Patrol,3010,Safety Equipment,Places
Blackpool Council,1010314,Blackpool Grand Theatre,488680,AE 333,12/06/2018,21600,3600,HS0003,Headstart Commissioning,3401,General Services,Children'S Services
Blackpool Council,1114664,REDACTED PERSONAL DATA,488681,006,12/06/2018,1950,0,HS0005,Whole School Approach,0911,Training Expenses,Children'S Services
Blackpool Council,1107790,Taylek Ltd,488685,INV-08683,21/06/2018,583.2,97.2,PJOA,Commercial & Marketing,3041,Other Materials,Community & Env Services
Blackpool Council,1106616,Boingboing Resilience Cic,488688,421,29/06/2018,15550,2591.67,HS0003,Headstart Commissioning,3401,General Services,Children'S Services
Blackpool Council,1006099,Blackpool Teaching Hospitals Nhs Ft,488689,1110037884,12/06/2018,13718,0,HS0003,Headstart Commissioning,3401,General Services,Children'S Services
Blackpool Council,1006099,Blackpool Teaching Hospitals Nhs Ft,488690,1110038328,12/06/2018,13718,0,HS0003,Headstart Commissioning,3401,General Services,Children'S Services
Blackpool Council,1115254,Tonic Consultancy Ltd,488694,1022,11/06/2018,28800,4800,TRC,Travel & Safety,4501,Private Contractors,Community & Env Services
Blackpool Council,1108315,REDACTED PERSONAL DATA,488695,BC06,11/06/2018,1360,0,PLCAAA,Building Control,3401,General Services,Places
Blackpool Council,1090774,Richardson Traction Limited,488696,20385,11/06/2018,900,150,PJAA,"Erection, Operation & Dismantl",2211,Casual Hire,Community & Env Services
Blackpool Council,1100004,Zoggs International Ltd,488698,I-0509961,12/06/2018,1833.6,305.6,LEISUR,Leisure Management,3048,Cost Of Goods Sold,Community & Env Services
Blackpool Council,1100004,Zoggs International Ltd,488699,I-0497583,12/06/2018,1672.8,278.8,LEISUR,Leisure Management,3101,Provisions,Community & Env Services
Blackpool Council,1100004,Zoggs International Ltd,488700,I-0481815,12/06/2018,820.74,136.79,LEISUR,Leisure Management,3101,Provisions,Community & Env Services
Blackpool Council,1100004,Zoggs International Ltd,488701,I-0508801,12/06/2018,1533.9,255.65,LEISUR,Leisure Management,3048,Cost Of Goods Sold,Community & Env Services
Blackpool Council,1100004,Zoggs International Ltd,488702,I-0502556,12/06/2018,1519.2,253.2,LEISUR,Leisure Management,3101,Provisions,Community & Env Services
Blackpool Council,1100542,Caroline Horn T/A Bentley Training,488750,BEN/343,13/06/2018,1381,0,LEISUR,Leisure Management,0911,Training Expenses,Community & Env Services
Blackpool Council,1100542,Caroline Horn T/A Bentley Training,488751,BEN/340,12/06/2018,520,0,LEISUR,Leisure Management,0911,Training Expenses,Community & Env Services
Blackpool Council,1100542,Caroline Horn T/A Bentley Training,488752,BEN/341,12/06/2018,260,0,LEISUR,Leisure Management,0911,Training Expenses,Community & Env Services
Blackpool Council,1100542,Caroline Horn T/A Bentley Training,488753,BEN/342,12/06/2018,713.5,0,LEISUR,Leisure Management,0911,Training Expenses,Community & Env Services
Blackpool Council,1042794,Carlton Fuels Limited,488755,9896941,12/06/2018,18260.03,0,ZF0001,"Insurance,Dso,Banking",9773,Orders Received Not Invoiced,Total Reconciliations
Blackpool Council,1042794,Carlton Fuels Limited,488755,9896941,12/06/2018,21912.04,3652.01,ZF0001,"Insurance,Dso,Banking",9511A,Stocks Efin,Total Reconciliations
Blackpool Council,1042794,Carlton Fuels Limited,488757,9845301,12/06/2018,16641.31,0,ZF0001,"Insurance,Dso,Banking",9773,Orders Received Not Invoiced,Total Reconciliations
Blackpool Council,1042794,Carlton Fuels Limited,488757,9845301,12/06/2018,19969.57,3328.26,ZF0001,"Insurance,Dso,Banking",9511A,Stocks Efin,Total Reconciliations
Blackpool Council,1078147,Bristol Oilskin & Overall Co Ltd,488763,115954,22/06/2018,503.64,83.94,FVFAA,Street Crossing Patrols,3201,Clothing & Uniforms,Community & Env Services
Blackpool Council,1110090,REDACTED PERSONAL DATA,488767,704,28/06/2018,760,0,AHM,Arts Miscellaneous,3456,Payment To Artists,Places
Blackpool Council,1098105,Brightprint Ltd(Non Factor Payments Only),488768,25952,15/06/2018,349,0,AHH,Heritage,3301,Printing,Places
Blackpool Council,1076264,Alliance Disposables Ltd,488773,I6680851,12/06/2018,261.75,43.62,HOMECA,Homecare,3101,Provisions,Adult & Families
Blackpool Council,1059387,Mediaprint Solutions Ltd,488782,10436,12/06/2018,2522,172,AHM,Arts Miscellaneous,3301,Printing,Places
Blackpool Council,1107790,Taylek Ltd,488786,INV-08703,22/06/2018,648.72,108.12,PJOA,Commercial & Marketing,3041,Other Materials,Community & Env Services
Blackpool Council,1116052,Ibstock Plc,488789,SPEC 2052246,12/06/2018,47894.82,7982.47,CTBRAA,Bridges (Growth Fund),6501,Contract Payments,Capital - Comm & Environ
Blackpool Council,1010311,Boc Limited,488791,3047482053,21/06/2018,349.28,58.21,LEISUR,Leisure Management,3060,Chemicals,Community & Env Services
Blackpool Council,1114727,Elliott Wood Partnership Ltd,488792,INV006474,13/06/2018,1748.49,291.41,FMAK,Acquisitions 9/10,3801,Other Expenses,Places
Blackpool Council,1006944,Siemens Financial Services Ltd,488803,244/18/0203529,29/06/2018,4398.15,733.02,APFBAB,Vitaline,4501,Private Contractors,Adult & Families
Blackpool Council,1006944,Siemens Financial Services Ltd,488805,244/18/0203530,29/06/2018,2265.24,377.54,APFBAB,Vitaline,4501,Private Contractors,Adult & Families
Blackpool Council,1008026,Metal Express (Fac083),488806,6366,15/06/2018,834,139,PJNA,New Features / Schemes - C & E,3041,Other Materials,Community & Env Services
Blackpool Council,1113183,Hemisphere West Europe Limited,488808,70972,29/06/2018,1641.6,273.6,LBF,Library Management,2008,Running Costs-Licences,Places
Blackpool Council,1006944,Siemens Financial Services Ltd,488816,244/18/0197593,22/06/2018,2383.84,397.3,APFBAB,Vitaline,4501,Private Contractors,Adult & Families
Blackpool Council,1006419,Tunstall Healthcare (Uk) Ltd,488817,3IN/10318891,29/06/2018,1893.6,315.6,APFBAB,Vitaline,4501,Private Contractors,Adult & Families
Blackpool Council,1006944,Siemens Financial Services Ltd,488818,244/18/0203531,29/06/2018,2251.5,375.25,APFBAB,Vitaline,4501,Private Contractors,Adult & Families
Blackpool Council,1006944,Siemens Financial Services Ltd,488821,244/18/0198938,26/06/2018,3285.68,547.61,APFBAB,Vitaline,4501,Private Contractors,Adult & Families
Blackpool Council,1006944,Siemens Financial Services Ltd,488822,244/18/0192426,18/06/2018,2956.77,492.79,APFBAB,Vitaline,4501,Private Contractors,Adult & Families
Blackpool Council,1005071,Blackpool Transport Services Limited,488823,APR/MAY2018,15/06/2018,3068.76,0,OTHL,Other Learning,2001,Purchases,Children'S Services
Blackpool Council,1006944,Siemens Financial Services Ltd,488824,244/18/0199818,27/06/2018,2718.16,453.02,APFBAB,Vitaline,4501,Private Contractors,Adult & Families
Blackpool Council,1027733,William Smith & Sons (Barnard Castle) Ltd,488825,462767,28/06/2018,493.2,82.2,SCHEME,Highways Schemes,3041,Other Materials,Community & Env Services
Blackpool Council,1027733,William Smith & Sons (Barnard Castle) Ltd,488826,462768,28/06/2018,1502.08,250.35,SCHEME,Highways Schemes,3041,Other Materials,Community & Env Services
Blackpool Council,1057663,Wilde Recruitment Ltd,488827,33060,29/06/2018,517.86,86.31,CTAHHA,Tramway Emergency Works,6501,Contract Payments,Capital - Comm & Environ
Blackpool Council,1037831,Turner & Townsend Contract Services Ltd,488828,000109500,29/06/2018,8814,1469,CP0511,Anchorsholme Seawall Scheme,6506,Consultants Fees,Capital - Comm & Environ
Blackpool Council,1090628,The Furniture Recycling Group,488829,INV14999,14/06/2018,274.56,45.76,CWASTE,Commercial Waste,4514,Contract 'E',Community & Env Services
Blackpool Council,1090628,The Furniture Recycling Group,488830,INV15125,14/06/2018,264,44,CWASTE,Commercial Waste,4514,Contract 'E',Community & Env Services
Blackpool Council,1113243,Mclaughlin & Harvey Ltd,488831,21811,12/06/2018,1000006.25,166667.71,CGTBBB,Conference Centre,6501,Contract Payments,Capital - Places
Blackpool Council,1113243,Mclaughlin & Harvey Ltd,488831,21811,12/06/2018,25773.36,0,ZF0001,"Insurance,Dso,Banking",97B6,Retention Monies - Cap Trsfr,Total Reconciliations
Blackpool Council,1087316,Lovell Partnership Ltd,488832,INTERIM 30,12/06/2018,387218.71,0,CXB01,Hra Capital Programme 2011/12,6501,Contract Payments,Capital - Places
Blackpool Council,1087316,Lovell Partnership Ltd,488832,INTERIM 30,12/06/2018,31771.59,0,ZH0001,Housing Revenue Account,97A6,Retention Monies - Capital,Housing Revenue Account
Blackpool Council,1040364,Conlon Construction Ltd,488833,10366,12/06/2018,117149.8,19524.97,CGTABA,Spanish Hall & Cs Façade,6501,Contract Payments,Capital - Places
Blackpool Council,1040364,Conlon Construction Ltd,488833,10366,12/06/2018,3019.32,0,ZF0001,"Insurance,Dso,Banking",97B6,Retention Monies - Cap Trsfr,Total Reconciliations
Blackpool Council,1006940,Smiths Equipment Hire Ltd,488871,V07-610302,14/06/2018,588,98,PJQ,Brilliance,3041,Other Materials,Places
Blackpool Council,1006940,Smiths Equipment Hire Ltd,488872,V07-609125,14/06/2018,384,64,PJQ,Brilliance,3041,Other Materials,Places
Blackpool Council,1006940,Smiths Equipment Hire Ltd,488873,V07-606375,13/06/2018,1452,242,PJQ,Brilliance,3041,Other Materials,Places
Blackpool Council,1071925,Groundwork Cheshire Lancs And Merseyside,488876,0000001596,29/06/2018,8062.2,1343.7,AEB,Buildings,3401,General Services,Resources
Blackpool Council,1006944,Siemens Financial Services Ltd,488877,244/18/0200677,28/06/2018,4815.66,802.6,APFBAB,Vitaline,4501,Private Contractors,Adult & Families
Blackpool Council,1095165,Tower Learning Centre Ltd,488893,290-651,13/06/2018,3456,576,EDDIV,Education Diversity,4101,Other Local Authorities,Children'S Services
Blackpool Council,1110860,Clearwater Technology Ltd,488906,SIN170560,29/06/2018,673.92,112.32,LEISUR,Leisure Management,3308,Servicing,Community & Env Services
Blackpool Council,1009980,Choices Furniture Ltd,488908,10372,29/06/2018,259,43.17,JBR,Lac - Placements,4812,Initial Loan Equipment,Children'S Services
Blackpool Council,1093421,Effective Pedagogy Solutions Cic,488912,2501189,15/06/2018,24500,0,EDDIV,Education Diversity,4101,Other Local Authorities,Children'S Services
Blackpool Council,1093421,Effective Pedagogy Solutions Cic,488913,2501189,15/06/2018,3000,0,EDDIV,Education Diversity,4101,Other Local Authorities,Children'S Services
Blackpool Council,1008817,Radio J  Cabs,488915,515188,13/06/2018,1210.58,0,EDDIV,Education Diversity,2201,Contract Hire,Children'S Services
Blackpool Council,1107790,Taylek Ltd,488918,INV-08345,29/06/2018,403.2,67.2,PJOA,Commercial & Marketing,3041,Other Materials,Community & Env Services
Blackpool Council,1009306,Brm Engineering Supplies Ltd,488926,53596,28/06/2018,409.8,68.3,PARADE,Parades & Sea Wall,4501,Private Contractors,Community & Env Services
Blackpool Council,1080418,Skv Communications Limited,488930,61692,29/06/2018,2088,348,CGTBBB,Conference Centre,6501,Contract Payments,Capital - Places
Blackpool Council,1060135,Happy Creative Ltd,488943,H4568,28/06/2018,1950,325,PTA,Economic Development,3315,Marketing,Places
Blackpool Council,1110996,Philip Holmes T/A Dragon Creative,488944,BC0009,18/06/2018,2000,0,PJW,Management - Places - Illumina,3413,Consultants,Places
Blackpool Council,1082709,The Key Support Services Limited,488951,KEY238370,15/06/2018,714,119,EDDIV,Education Diversity,3711,Subscriptions,Children'S Services
Blackpool Council,1090902,Anderson & Sons Contracting & Turf Care,488952,203,19/06/2018,2000,0,PRKOP1,Parks Operational Manager  1,1012,Premises Maint-Priv.Contractor,Community & Env Services
Blackpool Council,1105296,Nlp In The Northwest,488954,515,28/06/2018,1450,0,EDDIV,Education Diversity,3605,Confs & Short Courses,Children'S Services
Blackpool Council,1110336,Gillian Fennel,488955,11,15/06/2018,3500,0,EDDIV,Education Diversity,3413,Consultants,Children'S Services
Blackpool Council,1005067,Blackpool Pleasure Beach Ltd,488958,16805,15/06/2018,376,62.67,PESPRT,Pe And Sport Team,3315,Marketing,Community & Env Services
Blackpool Council,1100004,Zoggs International Ltd,488967,I-0514009,28/06/2018,749.4,124.9,LEISUR,Leisure Management,3048,Cost Of Goods Sold,Community & Env Services
Blackpool Council,1053261,Ad Systems (Uk) Limited,488973,4341,25/06/2018,964.8,160.8,CCTV,Cctv,3012,Other Equipment,Places
Blackpool Council,1114389,Service Sport,488974,115398,20/06/2018,355.71,59.27,SPORTY,Sports & Physical Activity,3003,Equipt-Mtce Repairs,Community & Env Services
Blackpool Council,1006449,Tmp (Uk) Ltd,488993,100001180529,22/06/2018,319.46,53.24,TRA,Traffic Management,4501,Private Contractors,Community & Env Services
Blackpool Council,1006449,Tmp (Uk) Ltd,488994,100001181298,29/06/2018,319.46,53.24,TRA,Traffic Management,4501,Private Contractors,Community & Env Services
Blackpool Council,1086156,Water Saving Techniques Limited,488995,3861,28/06/2018,1920,320,PARADE,Parades & Sea Wall,1012,Premises Maint-Priv.Contractor,Community & Env Services
Blackpool Council,1006449,Tmp (Uk) Ltd,488997,100001181299,29/06/2018,281.57,46.93,TRA,Traffic Management,4501,Private Contractors,Community & Env Services
Blackpool Council,1094424,The Networking People,488998,SI105066,22/06/2018,47568.34,7928.06,TRB,Maintenance & Works,4501,Private Contractors,Community & Env Services
Blackpool Council,1010667,Argos Business Solutions Ltd,489002,01660087,22/06/2018,1359.3,226.48,FC1802,Social Fund - Client,5210,Community Care Support,Resources
Blackpool Council,1035017,Newauto Ltd T/A Mogo Uk,489007,T28291,15/06/2018,1068.6,178.1,PYLA,Licencing,3041,Other Materials,Community & Env Services
Blackpool Council,1109820,Klein Imaging Limited,489059,14649,14/06/2018,592.55,98.76,AHG,Art Gallery Summary,3817,Artwork,Places
Blackpool Council,1084141,Gillett Environmental Ltd,489062,OUT-11738,14/06/2018,1755.6,292.6,CWASTE,Commercial Waste,4514,Contract 'E',Community & Env Services
Blackpool Council,1075164,G4s Secure Solutions (Uk) Ltd,489063,90284565,29/06/2018,21706.54,3617.76,FMAB,Commercial Propereties,3418,Security Services,Resources
Blackpool Council,1096596,Highfield Pfi Spv Ltd,489064,SI10018,18/06/2018,384617.7,64102.94,EM1029,Highfield Pfi,4515,Contract Services,Children'S Services
Blackpool Council,1096596,Highfield Pfi Spv Ltd,489064,SI10018,18/06/2018,9759.76,1626.63,EM1029,Highfield Pfi,1202,Electricity,Children'S Services
Blackpool Council,1025336,Sefton Council,489065,1195454,14/06/2018,51539.12,0,FN2631,Nw Coastal Group,3401,General Services,Community & Env Services
Blackpool Council,1053191,Veolia Es (Uk) Limited,489066,OP/I525865,20/06/2018,398118.65,66353.11,DOMPFI,Domestic Waste & Waste Pfi,4501,Private Contractors,Community & Env Services
Blackpool Council,1013064,Tarmac Lafarge Trading Limited,489072,9038185866,20/06/2018,1237.29,206.21,ENGINE,Engineering,3041,Other Materials,Community & Env Services
Blackpool Council,1113660,Cc2i Limited,489073,INV-0074,14/06/2018,2970,495,FGAA,Ict Corporate Services,3533,Computer S/W Purchases,Resources
Blackpool Council,1013977,Spaldings Uk Ltd,489075,SI-2313261,20/06/2018,1872,312,CEMCRE,Cems Crems Etc,3801,Other Expenses,Governance & Partnerships
Blackpool Council,1085660,Bisset Adams Ltd,489082,07265,29/06/2018,17282.28,2880.38,FMAK,Acquisitions 9/10,3801,Other Expenses,Places
Blackpool Council,1018025,Lanceshire Limited,489085,001,14/06/2018,11386.8,1897.8,MPB,Edc - Economic Dev Company,2002,Repairs And Maintenance,Places
Blackpool Council,1082585,"""Parks""",489149,1071,20/06/2018,1385.88,230.98,AHM,Arts Miscellaneous,3819,Events Support,Places
Blackpool Council,1089812,Rider Levett Bucknall Uk Limited,489150,118825,29/06/2018,960,160,PV7010,Create Loan,3413,Consultants,Budgets Outside Cash Limits
Blackpool Council,1094424,The Networking People,489152,SI105173,29/06/2018,34494,5749,FGAA,Ict Corporate Services,3532,Comp-Running & License Costs,Resources
Blackpool Council,1008540,Konica Minolta Business (Uk) Ltd,489153,1137281410,15/06/2018,322.24,53.71,FGBA,Specific (Directorate)-Service,3305,Photocopying Charges,Resources
Blackpool Council,1093679,Outdoor Education Advisers Panel Limited,489154,2657,15/06/2018,384,64,LNOUCL,Learning Outside The Classroom,5555,Educational Support,Children'S Services
Blackpool Council,1006940,Smiths Equipment Hire Ltd,489157,V01-622288,15/06/2018,318.42,53.07,ENGINE,Engineering,3041,Other Materials,Community & Env Services
Blackpool Council,1090661,Genecon Limited,489158,GEN989G,29/06/2018,6300,1050,MPB,Edc - Economic Dev Company,3413,Consultants,Places
Blackpool Council,1060253,John Ball,489159,310,18/06/2018,2740.8,456.8,CEMCRE,Cems Crems Etc,3454,Remove And Refix Memorials,Governance & Partnerships
Blackpool Council,1008165,Manchester City Council,489160,8500542749,15/06/2018,960,160,PBC,Strategy Team,3711,Subscriptions,Chief Executive
Blackpool Council,1006292,Vodafone Corporate Ltd,489162,LC71969,22/06/2018,444,74,FGAA,Ict Corporate Services,3531,Computer-H'Ware Purchase,Resources
Blackpool Council,1116164,REDACTED PERSONAL DATA,489164,UN061801,18/06/2018,900,0,PRA,Conferences,3801,Other Expenses,Places
Blackpool Council,1041157,5-Am Contact Contract Cleaning Ltd,489167,1894,26/06/2018,450,75,AEB,Buildings,1608,Other Cleaning Works,Resources
Blackpool Council,1080418,Skv Communications Limited,489169,61663,19/06/2018,2340,390,CGTBBB,Conference Centre,6501,Contract Payments,Capital - Places
Blackpool Council,1116160,The Neon Sign Store,489173,3804A,15/06/2018,480,80,AHG,Art Gallery Summary,3456,Payment To Artists,Places
Blackpool Council,1005071,Blackpool Transport Services Limited,489177,I0000531,22/06/2018,430,0,VA0010,Vah Management & Admin,2301,Bus & Tram Fares,Children'S Services
Blackpool Council,1005071,Blackpool Transport Services Limited,489178,I0000530,22/06/2018,1233.6,0,VA0010,Vah Management & Admin,3408,Services To Clients,Children'S Services
Blackpool Council,1103450,Blackpool Entertainment Company Limited,489190,140G0009,22/06/2018,450,75,PPA,Head Of Tourism Services,3801,Other Expenses,Places
Blackpool Council,1009313,Taylors Of Cleveleys Ltd,489235,WORDPOOL1/18,18/06/2018,262.5,43.75,AHM,Arts Miscellaneous,3819,Events Support,Places
Blackpool Council,1114704,Morson Human Resources Ltd,489236,HS180174,20/06/2018,3564,594,CTAHHA,Tramway Emergency Works,6506,Consultants Fees,Capital - Comm & Environ
Blackpool Council,1012116,Commercial Kitchen Services Ltd,489241,86143,19/06/2018,551.26,91.88,APDBBB,Arc,3012,Other Equipment,Adult & Families
Blackpool Council,1110406,Simone Griffin T/A Caffe C Ltd,489249,SO824,26/06/2018,667.2,111.2,AEB,Buildings,0915,Conferences,Resources
Blackpool Council,1006627,The Award Scheme Ltd,489250,SIN062159,18/06/2018,1236,206,MNGMT,Central Management,5555,Educational Support,Children'S Services
Blackpool Council,1114120,Timotay Landscapes Ltd,489254,12388,20/06/2018,573.65,95.61,PRKDEV,Parks Development,1012,Premises Maint-Priv.Contractor,Community & Env Services
Blackpool Council,1106892,REDACTED PERSONAL DATA,489255,00008,18/06/2018,375,0,BEACHP,Beach Patrol,0911,Training Expenses,Places
Blackpool Council,1017867,British Telecommunications Plc,489328,21330270Q06601,18/06/2018,19660.74,3276.79,FGAA,Ict Corporate Services,3521,Landline - Line Rental,Resources
Blackpool Council,1096714,Computer Futures,489329,01008000776122,27/06/2018,24780,4130,FGAA,Ict Corporate Services,0791,Temp/Relief (Bureau Staff),Resources
Blackpool Council,1009755,D Kirkham,489334,BC/25/001MAY18,18/06/2018,812,0,TRCHIL,Integrated Transport Childrens,2201,Contract Hire,Community & Env Services
Blackpool Council,1009234,Gary Roy Kirkham,489335,BC/02/018MAY18,18/06/2018,312,0,TRCHIL,Integrated Transport Childrens,4501,Private Contractors,Community & Env Services
Blackpool Council,1009234,Gary Roy Kirkham,489336,BC/44/002MAY18,18/06/2018,388,0,TRADUL,Integrated Transport Adults,4501,Private Contractors,Community & Env Services
Blackpool Council,1027764,Colins Travel,489338,BC/01/014MAY18,18/06/2018,1266.5,0,TRCHIL,Integrated Transport Childrens,4501,Private Contractors,Community & Env Services
Blackpool Council,1027764,Colins Travel,489339,BC/01/016MAY18,18/06/2018,1275,0,TRCHIL,Integrated Transport Childrens,4501,Private Contractors,Community & Env Services
Blackpool Council,1027764,Colins Travel,489340,BC/01/013MAY18,18/06/2018,1241,0,TRCHIL,Integrated Transport Childrens,4501,Private Contractors,Community & Env Services
Blackpool Council,1091050,Howard Palmer T/A Trojan Travel,489341,BC/02/002MAY18,18/06/2018,1235,0,TRCHIL,Integrated Transport Childrens,4501,Private Contractors,Community & Env Services
Blackpool Council,1006096,Autism Initiatives Uk,489342,0000137003,18/06/2018,630,0,JA0505,Children'S Training,0911,Training Expenses,Children'S Services
Blackpool Council,1076342,Ramboll Uk Limited,489344,1620024364,18/06/2018,4740,790,COBAAA,Town Hall & Municl Buildings,6506,Consultants Fees,Capital - Resources
Blackpool Council,1104132,Geoplace Llp,489348,98001777,18/06/2018,450,0,TRA,Traffic Management,4501,Private Contractors,Community & Env Services
Blackpool Council,1090402,Swann Training & Consultancy Ltd,489349,BLACKPOOL06/18,20/06/2018,2316.97,0,JA0505,Children'S Training,0911,Training Expenses,Children'S Services
Blackpool Council,1064236,Lifestyle Media Group Ltd,489351,096621,18/06/2018,839.16,139.86,PRG,Tourism General,3301,Printing,Places
Blackpool Council,1064236,Lifestyle Media Group Ltd,489352,097318,18/06/2018,312.58,52.1,PRG,Tourism General,3301,Printing,Places
Blackpool Council,1103450,Blackpool Entertainment Company Limited,489356,INV003682,22/06/2018,30000,5000,PRA,Conferences,3701,Grants,Places
Blackpool Council,1103450,Blackpool Entertainment Company Limited,489357,INV003683,22/06/2018,12000,2000,PRA,Conferences,3701,Grants,Places
Blackpool Council,1076636,Chicken Joes Ltd,489361,482411,22/06/2018,265.71,0,CATERG,Catering Services,3101,Provisions,Community & Env Services
Blackpool Council,1010830,Ace Radio Cabs Limited,489365,BC/63/008MAY18,18/06/2018,1332,0,TRCHIL,Integrated Transport Childrens,4501,Private Contractors,Community & Env Services
Blackpool Council,1010830,Ace Radio Cabs Limited,489366,BC/42/002MAY18,18/06/2018,1054,0,TRADUL,Integrated Transport Adults,4501,Private Contractors,Community & Env Services
Blackpool Council,1010830,Ace Radio Cabs Limited,489367,F.P 03/2018,29/06/2018,416,0,TRCHIL,Integrated Transport Childrens,2201,Contract Hire,Community & Env Services
Blackpool Council,1010300,Blacktax Radio Taxis T/A Blackpool Courier,489368,12403,18/06/2018,1105,0,TRCHIL,Integrated Transport Childrens,2201,Contract Hire,Community & Env Services
Blackpool Council,1008817,Radio J  Cabs,489369,BC/27/004MAY18,18/06/2018,396,0,TRCHIL,Integrated Transport Childrens,4501,Private Contractors,Community & Env Services
Blackpool Council,1008817,Radio J  Cabs,489370,BC/04/002MAY18,18/06/2018,780,0,TRCHIL,Integrated Transport Childrens,4501,Private Contractors,Community & Env Services
Blackpool Council,1008817,Radio J  Cabs,489371,BC/58/001MAY18,18/06/2018,845,0,TRCHIL,Integrated Transport Childrens,4501,Private Contractors,Community & Env Services
Blackpool Council,1009260,G S Brown,489373,10147,21/06/2018,640,0,TRCHIL,Integrated Transport Childrens,2201,Contract Hire,Community & Env Services
Blackpool Council,1051299,Leisure Travel,489374,BC/01/025MAY18,18/06/2018,1152,0,TRCHIL,Integrated Transport Childrens,4501,Private Contractors,Community & Env Services
Blackpool Council,1051299,Leisure Travel,489375,BC/42/003MAY18,18/06/2018,2295,0,TRADUL,Integrated Transport Adults,4501,Private Contractors,Community & Env Services
Blackpool Council,1051299,Leisure Travel,489376,BC/01/024MAY18,18/06/2018,1440,0,TRCHIL,Integrated Transport Childrens,4501,Private Contractors,Community & Env Services
Blackpool Council,1072848,Peter Rhodes,489377,BC/01/001MAY18,18/06/2018,1241,0,TRCHIL,Integrated Transport Childrens,4501,Private Contractors,Community & Env Services
Blackpool Council,1072848,Peter Rhodes,489378,BC/01/008MAY18,18/06/2018,1241,0,TRCHIL,Integrated Transport Childrens,4501,Private Contractors,Community & Env Services
Blackpool Council,1019622,Stephen  Floweth,489379,BC/01/010MAY18,18/06/2018,714,0,TRCHIL,Integrated Transport Childrens,4501,Private Contractors,Community & Env Services
Blackpool Council,1019622,Stephen  Floweth,489380,BC/02/011MAY18,18/06/2018,572,0,TRCHIL,Integrated Transport Childrens,4501,Private Contractors,Community & Env Services
Blackpool Council,1019622,Stephen  Floweth,489381,BC/02/004MAY18,18/06/2018,585,0,TRCHIL,Integrated Transport Childrens,4501,Private Contractors,Community & Env Services
Blackpool Council,1088636,Tarmac Building Products Ltd,489383,SI01337071,18/06/2018,475.28,0,ZM0018,Highways & Engineering,9773,Orders Received Not Invoiced,Blackpool Services
Blackpool Council,1088636,Tarmac Building Products Ltd,489383,SI01337071,18/06/2018,570.33,95.05,ZM0018,Highways & Engineering,9511A,Stocks Efin,Blackpool Services
Blackpool Council,1008817,Radio J  Cabs,489393,515291,18/06/2018,404.48,0,TRCHIL,Integrated Transport Childrens,2201,Contract Hire,Community & Env Services
Blackpool Council,1011896,Capita Business Services Ltd,489394,6003765235,19/06/2018,132034.8,22005.8,SYSDEV,Systems Development,3532,Comp-Running & License Costs,Resources
Blackpool Council,1007206,Road Safety Services Ltd,489397,83522,29/06/2018,336,56,CTAHHI,Tramway Extention,6511,Service Connections / Altera,Capital - Comm & Environ
Blackpool Council,1007206,Road Safety Services Ltd,489398,83524,29/06/2018,336,56,CTAHHI,Tramway Extention,6511,Service Connections / Altera,Capital - Comm & Environ
Blackpool Council,1007206,Road Safety Services Ltd,489399,83526,29/06/2018,19380,3230,CTAHHI,Tramway Extention,6511,Service Connections / Altera,Capital - Comm & Environ
Blackpool Council,1008817,Radio J  Cabs,489417,515206,19/06/2018,1639.58,0,TRCHIL,Integrated Transport Childrens,2201,Contract Hire,Community & Env Services
Blackpool Council,1008817,Radio J  Cabs,489418,515271,19/06/2018,2513.62,0,TRCHIL,Integrated Transport Childrens,2201,Contract Hire,Community & Env Services
Blackpool Council,1008817,Radio J  Cabs,489419,515273,19/06/2018,2936.47,0,TRCHIL,Integrated Transport Childrens,2201,Contract Hire,Community & Env Services
Blackpool Council,1008817,Radio J  Cabs,489421,515272,19/06/2018,1838.55,0,TRCHIL,Integrated Transport Childrens,2201,Contract Hire,Community & Env Services
Blackpool Council,1026738,Cassidy + Ashton,489422,16180,19/06/2018,4421.59,736.93,CORSAA,Remodelling Clc Gr Park,6506,Consultants Fees,Capital - Resources
Blackpool Council,1007206,Road Safety Services Ltd,489425,83527,29/06/2018,18613.38,3102.23,CTAHHI,Tramway Extention,6511,Service Connections / Altera,Capital - Comm & Environ
Blackpool Council,1007206,Road Safety Services Ltd,489426,83521,29/06/2018,26853.05,4475.51,CTAHHI,Tramway Extention,6511,Service Connections / Altera,Capital - Comm & Environ
Blackpool Council,1007206,Road Safety Services Ltd,489427,83523,29/06/2018,4177.79,696.3,CTAHHI,Tramway Extention,6511,Service Connections / Altera,Capital - Comm & Environ
Blackpool Council,1008817,Radio J  Cabs,489429,515288,19/06/2018,3057.7,0,EDDIV,Education Diversity,2201,Contract Hire,Children'S Services
Blackpool Council,1102627,Fresh Pastures Processing Ltd,489430,BLACKPOOL310518,29/06/2018,556.24,0,CATERG,Catering Services,3101,Provisions,Community & Env Services
Blackpool Council,1008817,Radio J  Cabs,489431,515255,19/06/2018,2103.6,0,EDDIV,Education Diversity,2201,Contract Hire,Children'S Services
Blackpool Council,1090236,C & J Inspection Services Limited,489473,857,20/06/2018,4368,728,FMAK,Acquisitions 9/10,1131,Electrical Equipment - Repairs,Places
Blackpool Council,1115977,Dayex,489474,SO-068725,20/06/2018,6112.8,1018.8,APDBBB,Arc,3020,Furniture - Purchase,Adult & Families
Blackpool Council,1112477,Big Wave Media (Fac060),489476,58553,20/06/2018,315.16,52.53,LEISUR,Leisure Management,3801,Other Expenses,Community & Env Services
Blackpool Council,1066577,Take One Media Ltd,489502,LF/1023216,22/06/2018,1320,220,PRL,Marketing,3315,Marketing,Places
Blackpool Council,1005071,Blackpool Transport Services Limited,489503,I0000540,26/06/2018,1130,0,PVA,Other External Funding,2301,Bus & Tram Fares,Places
Blackpool Council,1112477,Big Wave Media (Fac060),489516,58805,29/06/2018,820.56,136.76,LEISUR,Leisure Management,3801,Other Expenses,Community & Env Services
Blackpool Council,1106798,Cd Chauffeur Hire,489523,246,20/06/2018,1885.5,0,BCA,Corp And Member Services,2211,Casual Hire,Governance & Partnerships
Blackpool Council,1113970,Jack Coupe & Sons Ltd T/A Coupe Line,489527,21571,21/06/2018,2519.4,419.9,CTBRAA,Bridges (Growth Fund),6501,Contract Payments,Capital - Comm & Environ
Blackpool Council,1113970,Jack Coupe & Sons Ltd T/A Coupe Line,489528,21286,21/06/2018,637.68,106.28,TRA,Traffic Management,4501,Private Contractors,Community & Env Services
Blackpool Council,1010138,C Cabs,489530,02341,20/06/2018,6443.6,0,TRCHIL,Integrated Transport Childrens,2201,Contract Hire,Community & Env Services
Blackpool Council,1010667,Argos Business Solutions Ltd,489531,01662374,29/06/2018,754.58,125.61,FC1802,Social Fund - Client,5210,Community Care Support,Resources
Blackpool Council,1010138,C Cabs,489534,BC/01/027MAY18,21/06/2018,1105,0,TRCHIL,Integrated Transport Childrens,4501,Private Contractors,Community & Env Services
Blackpool Council,1010138,C Cabs,489535,BC/01/004MAY18,21/06/2018,765,0,TRCHIL,Integrated Transport Childrens,4501,Private Contractors,Community & Env Services
Blackpool Council,1010138,C Cabs,489536,BC/01/003MAY18,21/06/2018,336,0,TRCHIL,Integrated Transport Childrens,4501,Private Contractors,Community & Env Services
Blackpool Council,1010138,C Cabs,489537,BC/01/007MAY18,21/06/2018,748,0,TRCHIL,Integrated Transport Childrens,4501,Private Contractors,Community & Env Services
Blackpool Council,1010138,C Cabs,489538,BC/01/018MAY18,21/06/2018,495,0,TRCHIL,Integrated Transport Childrens,4501,Private Contractors,Community & Env Services
Blackpool Council,1010138,C Cabs,489539,BC/01/019MAY18,21/06/2018,850,0,TRCHIL,Integrated Transport Childrens,4501,Private Contractors,Community & Env Services
Blackpool Council,1010138,C Cabs,489540,BC/01/022MAY18,21/06/2018,986,0,TRCHIL,Integrated Transport Childrens,4501,Private Contractors,Community & Env Services
Blackpool Council,1010138,C Cabs,489541,BC/01/023MAY18,21/06/2018,765,0,TRCHIL,Integrated Transport Childrens,4501,Private Contractors,Community & Env Services
Blackpool Council,1010138,C Cabs,489542,BC/01/041MAY18,21/06/2018,640,0,TRCHIL,Integrated Transport Childrens,4501,Private Contractors,Community & Env Services
Blackpool Council,1010138,C Cabs,489543,BC/02/009MAR18,21/06/2018,1008,0,TRCHIL,Integrated Transport Childrens,4501,Private Contractors,Community & Env Services
Blackpool Council,1010138,C Cabs,489544,BC/02/010MAR18,21/06/2018,1008,0,TRCHIL,Integrated Transport Childrens,4501,Private Contractors,Community & Env Services
Blackpool Council,1010138,C Cabs,489545,BC/01/027MAR18,21/06/2018,1115,0,TRCHIL,Integrated Transport Childrens,4501,Private Contractors,Community & Env Services
Blackpool Council,1010138,C Cabs,489546,BC/01/041MAR18,21/06/2018,680,0,TRCHIL,Integrated Transport Childrens,4501,Private Contractors,Community & Env Services
Blackpool Council,1010138,C Cabs,489547,BC/01/023MAR18,21/06/2018,765,0,TRCHIL,Integrated Transport Childrens,4501,Private Contractors,Community & Env Services
Blackpool Council,1010138,C Cabs,489548,BC/02/022MAR18,21/06/2018,945,0,TRCHIL,Integrated Transport Childrens,4501,Private Contractors,Community & Env Services
Blackpool Council,1010138,C Cabs,489549,BC/23/001MAR18,21/06/2018,918,0,TRCHIL,Integrated Transport Childrens,4501,Private Contractors,Community & Env Services
Blackpool Council,1010138,C Cabs,489550,BC/02/014MAR18,21/06/2018,966,0,TRCHIL,Integrated Transport Childrens,4501,Private Contractors,Community & Env Services
Blackpool Council,1010138,C Cabs,489551,BC/21/001MAR18,21/06/2018,680,0,TRCHIL,Integrated Transport Childrens,4501,Private Contractors,Community & Env Services
Blackpool Council,1010138,C Cabs,489552,BC/44/003MAR18,21/06/2018,912,0,TRADUL,Integrated Transport Adults,4501,Private Contractors,Community & Env Services
Blackpool Council,1010138,C Cabs,489553,BC/02/009MAY18,21/06/2018,624,0,TRCHIL,Integrated Transport Childrens,4501,Private Contractors,Community & Env Services
Blackpool Council,1010138,C Cabs,489555,BC/02/010MAY18,21/06/2018,624,0,TRCHIL,Integrated Transport Childrens,4501,Private Contractors,Community & Env Services
Blackpool Council,1010138,C Cabs,489556,BC/02/014MAY18,21/06/2018,598,0,TRCHIL,Integrated Transport Childrens,4501,Private Contractors,Community & Env Services
Blackpool Council,1010138,C Cabs,489557,BC/02/022MAY18,21/06/2018,585,0,TRCHIL,Integrated Transport Childrens,4501,Private Contractors,Community & Env Services
Blackpool Council,1010138,C Cabs,489558,BC/21/001MAY18,21/06/2018,720,0,TRCHIL,Integrated Transport Childrens,4501,Private Contractors,Community & Env Services
Blackpool Council,1010138,C Cabs,489559,BC/02/015MAY18,21/06/2018,702,0,TRCHIL,Integrated Transport Childrens,4501,Private Contractors,Community & Env Services
Blackpool Council,1010138,C Cabs,489560,BC/23/001MAY18,21/06/2018,729,0,TRCHIL,Integrated Transport Childrens,4501,Private Contractors,Community & Env Services
Blackpool Council,1010138,C Cabs,489561,BC/71/003MAY18,21/06/2018,1260,0,TRCHIL,Integrated Transport Childrens,4501,Private Contractors,Community & Env Services
Blackpool Council,1010138,C Cabs,489562,BC/44/003MAY18,21/06/2018,969,0,TRADUL,Integrated Transport Adults,4501,Private Contractors,Community & Env Services
Blackpool Council,1010138,C Cabs,489563,BC/63/002MAY18,21/06/2018,1800,0,TRCHIL,Integrated Transport Childrens,4501,Private Contractors,Community & Env Services
Blackpool Council,1010138,C Cabs,489564,BC/75/001MAY18,21/06/2018,900,0,TRCHIL,Integrated Transport Childrens,4501,Private Contractors,Community & Env Services
Blackpool Council,1010138,C Cabs,489565,BC/76/001MAY18,21/06/2018,1920,0,TRCHIL,Integrated Transport Childrens,4501,Private Contractors,Community & Env Services
Blackpool Council,1026181,Blackpool Sixth Form College,489568,5100561,22/06/2018,20000,0,OPAREA,Opportunity Areas,4515,Contract Services,Places
Blackpool Council,1010138,C Cabs,489622,02596,21/06/2018,307.8,0,INTRAD,Integrated Transport Admin,2201,Contract Hire,Community & Env Services
Blackpool Council,1010138,C Cabs,489624,02594,21/06/2018,366.72,0,TRCHIL,Integrated Transport Childrens,2201,Contract Hire,Community & Env Services
Blackpool Council,1010138,C Cabs,489625,02607,21/06/2018,6200.4,0,TRCHIL,Integrated Transport Childrens,2201,Contract Hire,Community & Env Services
Blackpool Council,1063986,York Aviation Llp,489626,A-03-18-06,21/06/2018,35979,5996.5,MPB,Edc - Economic Dev Company,3413,Consultants,Places
Blackpool Council,1005071,Blackpool Transport Services Limited,489627,I0000504,26/06/2018,1698.63,0,TRCHIL,Integrated Transport Childrens,2201,Contract Hire,Community & Env Services
Blackpool Council,1108764,Fitsense Ltd T/A Premier Sports,489628,SI-1000336,21/06/2018,1080,180,LEISUR,Leisure Management,3801,Other Expenses,Community & Env Services
Blackpool Council,1108764,Fitsense Ltd T/A Premier Sports,489629,SI-1000337,21/06/2018,1080,180,LEISUR,Leisure Management,3801,Other Expenses,Community & Env Services
Blackpool Council,1006944,Siemens Financial Services Ltd,489632,212/18/0133116,29/06/2018,5118,853,CWASTE,Commercial Waste,4514,Contract 'E',Community & Env Services
Blackpool Council,1102220,Southfield Stationers Ltd,489633,00083216,21/06/2018,428.11,71.35,PRC,Visitor Services,3808,Souvenirs & Gifts,Places
Blackpool Council,1090902,Anderson & Sons Contracting & Turf Care,489634,204,21/06/2018,5100,0,TRB,Maintenance & Works,4501,Private Contractors,Community & Env Services
Blackpool Council,1096607,Cutlers Property Consultancy (Services),489638,0070422,21/06/2018,3055,0,AEE,Estates,0781,Contracted,Resources
Blackpool Council,1006099,Blackpool Teaching Hospitals Nhs Ft,489646,1110038552,21/06/2018,4256.6,0,SBOARD,Springboard,3801,Other Expenses,Children'S Services
Blackpool Council,1049553,Dwp Rm Receipts And Sdp,489648,3935908,21/06/2018,1832.59,305.43,SBOARD,Springboard,3801,Other Expenses,Children'S Services
Blackpool Council,1103450,Blackpool Entertainment Company Limited,489650,INV003684,22/06/2018,36000,6000,PRA,Conferences,3701,Grants,Places
Blackpool Council,1030730,Springfield Methodist Church,489651,618,21/06/2018,666.66,0,FC1802,Social Fund - Client,5209,Crisis/Emergency Support,Resources
Blackpool Council,1012839,George Cox & Sons Ltd,489652,9970,21/06/2018,250937.82,41822.97,CGOAAA,Quality Corridor,6501,Contract Payments,Capital - Places
Blackpool Council,1010138,C Cabs,489653,BC/02/008MAY18,21/06/2018,520,0,TRCHIL,Integrated Transport Childrens,2201,Contract Hire,Community & Env Services
Blackpool Council,1116023,Ajp Logistics Ltd,489657,AJP001416,28/06/2018,4362,727,SCHEME,Highways Schemes,3041,Other Materials,Community & Env Services
Blackpool Council,1011714,Michael Hope Haulage Limited,489665,001345,22/06/2018,672,112,SCHEME,Highways Schemes,1012,Premises Maint-Priv.Contractor,Community & Env Services
Blackpool Council,1011868,W H Tarmacadam Limited,489667,4527,22/06/2018,15120,2520,SCHEME,Highways Schemes,1012,Premises Maint-Priv.Contractor,Community & Env Services
Blackpool Council,1011121,Fylde Coast Gate Ltd,489671,27830,29/06/2018,540,90,PRKTEC,Parks Terchnician Manager,2002,Repairs And Maintenance,Community & Env Services
Blackpool Council,1053261,Ad Systems (Uk) Limited,489675,4372,25/06/2018,1542,257,CCTV,Cctv,3012,Other Equipment,Places
Blackpool Council,1005071,Blackpool Transport Services Limited,489676,I0000551,29/06/2018,1820,0,JEA,Senior Management,5552,Bus Pass / Travel,Children'S Services
Blackpool Council,1086156,Water Saving Techniques Limited,489684,3871,22/06/2018,2400,400,CGOAAA,Quality Corridor,6501,Contract Payments,Capital - Places
Blackpool Council,1005071,Blackpool Transport Services Limited,489687,I0000554,29/06/2018,1300,0,VA0010,Vah Management & Admin,2301,Bus & Tram Fares,Children'S Services
Blackpool Council,1089205,REDACTED PERSONAL DATA,489737,00000018,29/06/2018,540,0,AHG,Art Gallery Summary,3456,Payment To Artists,Places
Blackpool Council,1021686,North West Tree Services,489740,B501,26/06/2018,474,79,PRKOP1,Parks Operational Manager  1,1021,Growing,Community & Env Services
Blackpool Council,1006644,Telewest/Virgin Media Payments Ltd,489747,078850001547,22/06/2018,438,73,FGAA,Ict Corporate Services,3521,Landline - Line Rental,Resources
Blackpool Council,1006644,Telewest/Virgin Media Payments Ltd,489749,080868701864,22/06/2018,269.38,44.9,FGAA,Ict Corporate Services,3521,Landline - Line Rental,Resources
Blackpool Council,1006644,Telewest/Virgin Media Payments Ltd,489752,081127901504,22/06/2018,887.4,147.9,FGAA,Ict Corporate Services,3521,Landline - Line Rental,Resources
Blackpool Council,1006644,Telewest/Virgin Media Payments Ltd,489754,067437901003,22/06/2018,4663.46,777.24,FGAA,Ict Corporate Services,3521,Landline - Line Rental,Resources
Blackpool Council,1006644,Telewest/Virgin Media Payments Ltd,489757,067437901506,22/06/2018,2899.31,483.2,FGAA,Ict Corporate Services,3521,Landline - Line Rental,Resources
Blackpool Council,1111349,Raymond Wilding,489761,8197,22/06/2018,462,0,APBBAC,Gloucester Ave,3041,Other Materials,Adult & Families
Blackpool Council,1071702,Links Signs & Graphics Ltd,489765,LSGI23448,29/06/2018,1476,246,PU0001,Public Health Team,4501,Private Contractors,Public Health
Blackpool Council,1008039,Woodswaste Ltd,489767,028695,22/06/2018,756.48,126.08,CEMCRE,Cems Crems Etc,3454,Remove And Refix Memorials,Governance & Partnerships
Blackpool Council,1103650,Westec,489771,16667,29/06/2018,865.52,144.25,PJHA,"Depot, Management & Admin",3041,Other Materials,Community & Env Services
Blackpool Council,1010619,Askews And Holts Library Services Ltd,489811,5738304,27/06/2018,533.2,0,LBB,Central Library,3304,Books And Periodicals,Places
Blackpool Council,1044218,Apcoa Parking Uk Ltd,489825,267761,29/06/2018,12034.16,2005.69,AEV,Vacant & Under Used,3413,Consultants,Resources
Blackpool Council,1114704,Morson Human Resources Ltd,489839,HS181058,27/06/2018,1980,330,CTAHHA,Tramway Emergency Works,6506,Consultants Fees,Capital - Comm & Environ
Blackpool Council,1011868,W H Tarmacadam Limited,489842,5003,27/06/2018,37140,6190,SCHEME,Highways Schemes,1012,Premises Maint-Priv.Contractor,Community & Env Services
Blackpool Council,1060724,J A Dickens Property Developer,489928,BCH-1603,25/06/2018,362.8,0,MVB,65-74,5401,Aids To Daily Living,Adult & Families
Blackpool Council,1060724,J A Dickens Property Developer,489930,BCH-1602,25/06/2018,362.8,0,CXAAA,Local Authority Dwellings,6502,Grants & Advances,Capital - Places
Blackpool Council,1060724,J A Dickens Property Developer,489932,BCH-1606,25/06/2018,362.8,0,MVB,65-74,5401,Aids To Daily Living,Adult & Families
Blackpool Council,1060724,J A Dickens Property Developer,489933,BCH-1601,25/06/2018,362.8,0,MVB,65-74,5401,Aids To Daily Living,Adult & Families
Blackpool Council,1060724,J A Dickens Property Developer,489934,BCH-1596,25/06/2018,272.8,0,MVB,65-74,5401,Aids To Daily Living,Adult & Families
Blackpool Council,1060724,J A Dickens Property Developer,489935,BCH-1561,25/06/2018,763,0,MVA,18-64,5401,Aids To Daily Living,Adult & Families
Blackpool Council,1060724,J A Dickens Property Developer,489936,BCH-1562,25/06/2018,816.3,0,MVB,65-74,5401,Aids To Daily Living,Adult & Families
Blackpool Council,1060724,J A Dickens Property Developer,489937,BCH-1550,25/06/2018,362.8,0,MVA,18-64,5401,Aids To Daily Living,Adult & Families
Blackpool Council,1060724,J A Dickens Property Developer,489942,BCH-1560,25/06/2018,943.96,0,MVA,18-64,5401,Aids To Daily Living,Adult & Families
Blackpool Council,1115226,Baker Lomax & Shackley Ltd,489945,B1219,25/06/2018,5004,834,BCA,Corp And Member Services,3413,Consultants,Governance & Partnerships
Blackpool Council,1096493,REDACTED PERSONAL DATA,489965,LY15442,28/06/2018,255,42.5,JEA,Senior Management,5551,Rent & Rent Bonds,Children'S Services
Blackpool Council,1008733,REDACTED PERSONAL DATA,489978,35318,26/06/2018,260,0,EM1031,Refugee Funding,3901,Contributions To Funds,Adult & Families
Blackpool Council,1011702,J & J Decorating Services,489980,7701,27/06/2018,1800,300,PJNA,New Features / Schemes - C & E,3041,Other Materials,Community & Env Services
Blackpool Council,1115907,Synergie Training Limited,489990,PI005087,26/06/2018,4124.64,687.44,TRB,Maintenance & Works,4501,Private Contractors,Community & Env Services
Blackpool Council,1018041,Tom Lucas Partnership Limited,489991,L17038,26/06/2018,3000,500,CORSAA,Remodelling Clc Gr Park,6506,Consultants Fees,Capital - Resources
Blackpool Council,1116132,REDACTED PERSONAL DATA,489992,1,28/06/2018,2500,0,EC7011,Museum - Professional Fees,0981,Professional Fees,Places
Blackpool Council,1012990,Gladstone Mrm Limited,490003,04007509,26/06/2018,449.54,74.92,LEISUR,Leisure Management,3801,Other Expenses,Community & Env Services
Blackpool Council,1012990,Gladstone Mrm Limited,490004,04007710,26/06/2018,449.54,74.92,LEISUR,Leisure Management,3801,Other Expenses,Community & Env Services
Blackpool Council,1009079,Pearson Education Ltd,490012,161945-Z1806,28/06/2018,608,0,EDDIV,Education Diversity,3404,Exam Fees & Exps (Sch),Children'S Services
Blackpool Council,1009079,Pearson Education Ltd,490020,150961-Z1805,26/06/2018,319.2,0,EDDIV,Education Diversity,3404,Exam Fees & Exps (Sch),Children'S Services
Blackpool Council,1011896,Capita Business Services Ltd,490026,6003790810,28/06/2018,2400,400,SYSDEV,Systems Development,3532,Comp-Running & License Costs,Resources
Blackpool Council,1109682,Entertainment Concepts Ltd,490040,127,26/06/2018,799.99,133.33,FMAK,Acquisitions 9/10,1012,Premises Maint-Priv.Contractor,Places
Blackpool Council,1071288,Wyg Environment Planning Transport Ltd,490048,850609,26/06/2018,20292.5,3382.08,PKAAA,Head Of Planning & Trans,3413,Consultants,Places
Blackpool Council,1086714,Liveasy Ltd,490050,BK0432A,26/06/2018,40904.98,6817.5,MTE,Undefined Age Group,5401,Aids To Daily Living,Adult & Families
Blackpool Council,1090236,C & J Inspection Services Limited,490051,851,26/06/2018,6995.52,1165.92,FMAK,Acquisitions 9/10,1131,Electrical Equipment - Repairs,Places
Blackpool Council,1086714,Liveasy Ltd,490053,BV0432B,26/06/2018,19975.68,3329.28,MTE,Undefined Age Group,5401,Aids To Daily Living,Adult & Families
Blackpool Council,1086714,Liveasy Ltd,490054,BK0432C,26/06/2018,17105.74,2850.96,MTE,Undefined Age Group,5401,Aids To Daily Living,Adult & Families
Blackpool Council,1086714,Liveasy Ltd,490055,BK0432D,26/06/2018,14393.38,2398.9,MTE,Undefined Age Group,5401,Aids To Daily Living,Adult & Families
Blackpool Council,1006196,Prism Medical Uk,490056,5521236,28/06/2018,2021.06,336.84,MTE,Undefined Age Group,5401,Aids To Daily Living,Adult & Families
Blackpool Council,1114118,Medequip Assistive Technology Limited,490058,42259A,29/06/2018,2492.4,415.4,MTE,Undefined Age Group,5401,Aids To Daily Living,Adult & Families
Blackpool Council,1114118,Medequip Assistive Technology Limited,490059,42257A,29/06/2018,4770.6,795.1,MTE,Undefined Age Group,5401,Aids To Daily Living,Adult & Families
Blackpool Council,1114118,Medequip Assistive Technology Limited,490060,42258,29/06/2018,1303.12,217.19,MTE,Undefined Age Group,5401,Aids To Daily Living,Adult & Families
Blackpool Council,1114118,Medequip Assistive Technology Limited,490063,42260,29/06/2018,336,56,MTE,Undefined Age Group,5401,Aids To Daily Living,Adult & Families
Blackpool Council,1114118,Medequip Assistive Technology Limited,490065,42256,29/06/2018,696.9,116.15,MTE,Undefined Age Group,5401,Aids To Daily Living,Adult & Families
Blackpool Council,1006196,Prism Medical Uk,490067,5265324,28/06/2018,8484,1414,MTE,Undefined Age Group,5401,Aids To Daily Living,Adult & Families
Blackpool Council,1060724,J A Dickens Property Developer,490080,BCH-1600,27/06/2018,362.8,0,MVB,65-74,5401,Aids To Daily Living,Adult & Families
Blackpool Council,1060724,J A Dickens Property Developer,490081,BCH-1605,27/06/2018,362.8,0,MVB,65-74,5401,Aids To Daily Living,Adult & Families
Blackpool Council,1060724,J A Dickens Property Developer,490082,BCH-1599,27/06/2018,272.8,0,MVB,65-74,5401,Aids To Daily Living,Adult & Families
Blackpool Council,1060724,J A Dickens Property Developer,490083,BCH-1598,27/06/2018,272.8,0,MVA,18-64,5401,Aids To Daily Living,Adult & Families
Blackpool Council,1060724,J A Dickens Property Developer,490084,BCH-1608,27/06/2018,453.5,0,MVB,65-74,5401,Aids To Daily Living,Adult & Families
Blackpool Council,1060724,J A Dickens Property Developer,490087,BCH-1614,27/06/2018,302.11,0,MVB,65-74,5401,Aids To Daily Living,Adult & Families
Blackpool Council,1060724,J A Dickens Property Developer,490088,BCH-1615,27/06/2018,513.22,0,MVB,65-74,5401,Aids To Daily Living,Adult & Families
Blackpool Council,1060724,J A Dickens Property Developer,490089,BCH-1611,27/06/2018,936.42,0,MVB,65-74,5401,Aids To Daily Living,Adult & Families
Blackpool Council,1060724,J A Dickens Property Developer,490090,BCH-1616,27/06/2018,735.6,0,MVB,65-74,5401,Aids To Daily Living,Adult & Families
Blackpool Council,1060724,J A Dickens Property Developer,490092,BCH-1617,27/06/2018,451.78,0,MVA,18-64,5401,Aids To Daily Living,Adult & Families
Blackpool Council,1060724,J A Dickens Property Developer,490094,BCH-1604,27/06/2018,362.8,0,MVB,65-74,5401,Aids To Daily Living,Adult & Families
Blackpool Council,1116262,Dza Technical Ltd,490155,INV-01216,29/06/2018,378,63,PJLA,Maintenance,3041,Other Materials,Community & Env Services
Blackpool Council,1094578,Hampson Solutions Ltd,490161,10958,28/06/2018,3348,558,LEISUR,Leisure Management,3801,Other Expenses,Community & Env Services
Blackpool Council,1042794,Carlton Fuels Limited,490162,9937519,28/06/2018,18622.8,0,ZF0001,"Insurance,Dso,Banking",9773,Orders Received Not Invoiced,Total Reconciliations
Blackpool Council,1042794,Carlton Fuels Limited,490162,9937519,28/06/2018,22347.36,3724.56,ZF0001,"Insurance,Dso,Banking",9511A,Stocks Efin,Total Reconciliations
Blackpool Council,1011714,Michael Hope Haulage Limited,490172,001346,29/06/2018,1872,312,SCHEME,Highways Schemes,1012,Premises Maint-Priv.Contractor,Community & Env Services
Blackpool Council,1112477,Big Wave Media (Fac060),490182,58657,28/06/2018,7018,1169.67,LEISUR,Leisure Management,3801,Other Expenses,Community & Env Services
Blackpool Council,1108315,REDACTED PERSONAL DATA,490198,BC07,29/06/2018,680,0,PLCAAA,Building Control,3401,General Services,Places
Blackpool Council,1060024,Concerto Support Services Ltd,490204,03911,28/06/2018,17220,2870,AEE,Estates,3532,Comp-Running & License Costs,Resources
Blackpool Council,1060724,J A Dickens Property Developer,490205,BCH-1594,28/06/2018,282.8,0,MVB,65-74,5401,Aids To Daily Living,Adult & Families
Blackpool Council,1060724,J A Dickens Property Developer,490227,BCH-1591,28/06/2018,282.8,0,MVB,65-74,5401,Aids To Daily Living,Adult & Families
Blackpool Council,1060724,J A Dickens Property Developer,490230,BCH-1592,28/06/2018,282.8,0,MVB,65-74,5401,Aids To Daily Living,Adult & Families
Blackpool Council,1060724,J A Dickens Property Developer,490242,BCH-1595,28/06/2018,282.8,0,MVB,65-74,5401,Aids To Daily Living,Adult & Families
Blackpool Council,1106471,Mayne Special Needs,490249,MSN-BES312,28/06/2018,500,0,MTE,Undefined Age Group,5401,Aids To Daily Living,Adult & Families
Blackpool Council,1060253,John Ball,490293,312,29/06/2018,2920.8,486.8,CEMCRE,Cems Crems Etc,3454,Remove And Refix Memorials,Governance & Partnerships
Blackpool Council,1090236,C & J Inspection Services Limited,490309,853,29/06/2018,3744,624,FMAK,Acquisitions 9/10,1131,Electrical Equipment - Repairs,Places
Blackpool Council,1016258,M J Teale Plant Hire Ltd,490315,B7904,29/06/2018,1382.21,230.37,ENGINE,Engineering,1012,Premises Maint-Priv.Contractor,Community & Env Services
Blackpool Council,1012071,Bethell Construction Limited,490318,15271,29/06/2018,1687.19,281.2,ENGINE,Engineering,1012,Premises Maint-Priv.Contractor,Community & Env Services
Blackpool Council,1012071,Bethell Construction Limited,490320,15270,29/06/2018,1526,254.33,ENGINE,Engineering,1012,Premises Maint-Priv.Contractor,Community & Env Services
Blackpool Council,1012071,Bethell Construction Limited,490321,15269,29/06/2018,1667.92,277.99,ENGINE,Engineering,1012,Premises Maint-Priv.Contractor,Community & Env Services
Blackpool Council,1012071,Bethell Construction Limited,490322,15268,29/06/2018,2748.96,458.16,ENGINE,Engineering,1012,Premises Maint-Priv.Contractor,Community & Env Services
Blackpool Council,1012071,Bethell Construction Limited,490323,15267,29/06/2018,4393.24,732.21,ENGINE,Engineering,1012,Premises Maint-Priv.Contractor,Community & Env Services
Blackpool Council,1012071,Bethell Construction Limited,490324,15266,29/06/2018,1732.9,288.82,ENGINE,Engineering,1012,Premises Maint-Priv.Contractor,Community & Env Services
Blackpool Council,1012071,Bethell Construction Limited,490325,15265,29/06/2018,1278.64,213.11,ENGINE,Engineering,1012,Premises Maint-Priv.Contractor,Community & Env Services
Blackpool Council,1022793,Scottish Hydro Electric,3847221,751687259/0016,13/06/2018,861.24,41.01,AEZ,To Be Recharged,1202,Electricity,Resources
Blackpool Council,1022793,Scottish Hydro Electric,3847246,11727931/0001,13/06/2018,266.49,12.69,CGHBBB,Place Miscellaneous,6511,Service Connections / Altera,Capital - Places
Blackpool Council,1114461,Prospects For Young People Limited,3860923,PYP0000009342,26/06/2018,5004.9,0,JEA,Senior Management,4501,Private Contractors,Children'S Services
Blackpool Council,1114461,Prospects For Young People Limited,3860924,PYP0000009361,26/06/2018,5171.73,0,JEA,Senior Management,4501,Private Contractors,Children'S Services
Blackpool Council,1107224,Smith Craven Chartered Accountants,3861190,42057/KA7600,29/06/2018,540,90,FMAK,Acquisitions 9/10,3413,Consultants,Places
Blackpool Council,1096663,Feng Shui House Care Home,3870906,165769I,20/06/2018,1905.96,0,MVD,85+,4505,Residential Homes,Adult & Families
Blackpool Council,1096663,Feng Shui House Care Home,3870908,165792I,20/06/2018,2200,0,MGC,75-84,4505,Residential Homes,Adult & Families
Blackpool Council,1096663,Feng Shui House Care Home,3870910,165631,20/06/2018,868.28,0,MVC,75-84,4505,Residential Homes,Adult & Families
Blackpool Council,1096663,Feng Shui House Care Home,3870912,165722I,20/06/2018,1736.56,0,MVD,85+,4505,Residential Homes,Adult & Families
Blackpool Council,1096663,Feng Shui House Care Home,3870914,165730I,20/06/2018,1905.96,0,MVD,85+,4505,Residential Homes,Adult & Families
Blackpool Council,1096663,Feng Shui House Care Home,3870916,165333I,20/06/2018,2239.16,0,MFC,75-84,4505,Residential Homes,Adult & Families
Blackpool Council,1096663,Feng Shui House Care Home,3870918,165352I,20/06/2018,2262.44,0,MVC,75-84,4505,Residential Homes,Adult & Families
Blackpool Council,1096663,Feng Shui House Care Home,3870920,165140I,20/06/2018,1736.56,0,MVD,85+,4505,Residential Homes,Adult & Families
Blackpool Council,1096663,Feng Shui House Care Home,3870922,164960I,20/06/2018,2239.16,0,MGC,75-84,4505,Residential Homes,Adult & Families
Blackpool Council,1096663,Feng Shui House Care Home,3870923,165008,20/06/2018,1905.96,0,MGC,75-84,4505,Residential Homes,Adult & Families
Blackpool Council,1096663,Feng Shui House Care Home,3870925,165041I,20/06/2018,1905.96,0,MGC,75-84,4505,Residential Homes,Adult & Families
Blackpool Council,1096663,Feng Shui House Care Home,3870927,164798I,20/06/2018,1905.96,0,MSD,85+,4505,Residential Homes,Adult & Families
Blackpool Council,1096663,Feng Shui House Care Home,3870929,164799I,20/06/2018,1905.96,0,MVD,85+,4505,Residential Homes,Adult & Families
Blackpool Council,1096663,Feng Shui House Care Home,3870931,165752I,20/06/2018,2262.44,0,MGB,65-74,4505,Residential Homes,Adult & Families
Blackpool Council,1096663,Feng Shui House Care Home,3882658,170396I,20/06/2018,2267.48,0,MGC,75-84,4505,Residential Homes,Adult & Families
Blackpool Council,1096663,Feng Shui House Care Home,3882660,170276I,20/06/2018,1796.2,0,MVD,85+,4505,Residential Homes,Adult & Families
Blackpool Council,1096663,Feng Shui House Care Home,3882662,170284I,20/06/2018,1973.44,0,MVD,85+,4505,Residential Homes,Adult & Families
Blackpool Council,1096663,Feng Shui House Care Home,3882664,170333I,20/06/2018,2306.64,0,MFC,75-84,4505,Residential Homes,Adult & Families
Blackpool Council,1096663,Feng Shui House Care Home,3882666,170352I,20/06/2018,2329.92,0,MVC,75-84,4505,Residential Homes,Adult & Families
Blackpool Council,1096663,Feng Shui House Care Home,3882668,170364I,20/06/2018,2329.92,0,MGB,65-74,4505,Residential Homes,Adult & Families
Blackpool Council,1096663,Feng Shui House Care Home,3882670,170381I,20/06/2018,1973.44,0,MVD,85+,4505,Residential Homes,Adult & Families
Blackpool Council,1096663,Feng Shui House Care Home,3882672,169923I,20/06/2018,1905.96,0,MSD,85+,7582,Indep Sect Residential Homes,Adult & Families
Blackpool Council,1096663,Feng Shui House Care Home,3882672,169923I,20/06/2018,408.42,0,MSD,85+,4505,Residential Homes,Adult & Families
Blackpool Council,1096663,Feng Shui House Care Home,3882674,169924I,20/06/2018,1973.44,0,MVD,85+,4505,Residential Homes,Adult & Families
Blackpool Council,1096663,Feng Shui House Care Home,3882676,169964I,20/06/2018,1796.2,0,MVD,85+,4505,Residential Homes,Adult & Families
Blackpool Council,1096663,Feng Shui House Care Home,3882678,170658I,20/06/2018,1973.44,0,MGC,75-84,4505,Residential Homes,Adult & Families
Blackpool Council,1096663,Feng Shui House Care Home,3882679,169848I,20/06/2018,2306.64,0,MGC,75-84,4505,Residential Homes,Adult & Families
Blackpool Council,1096663,Feng Shui House Care Home,3882680,170627,20/06/2018,1973.44,0,MGC,75-84,4505,Residential Homes,Adult & Families
Blackpool Council,1007183,Royal Mail Group Ltd,3883221,9056418677,12/06/2018,341.94,56.99,PBC,Strategy Team,3511,Postages,Chief Executive
Blackpool Council,1007814,Water Plus Limited,3886416,INV03378896,05/06/2018,5893.84,0,AEZ,To Be Recharged,1401,Water Charges-Metered,Resources
Blackpool Council,1040140,Scottish Power,3886824,614001603273,26/06/2018,945.24,157.54,AEZ,To Be Recharged,1202,Electricity,Resources
Blackpool Council,1022793,Scottish Hydro Electric,3886826,11727931/0003,26/06/2018,298.81,14.22,AEZ,To Be Recharged,1202,Electricity,Resources
Blackpool Council,1058544,Opus Energy Limited,3886957,63750450,26/06/2018,400.3,66.72,FMAA,Retail Units,1202,Electricity,Resources
Blackpool Council,1082504,Total Id,3888076,15820,01/06/2018,413.4,68.9,PRINTS,Corporate Print Services,3343,Admin Materials,Places
Blackpool Council,1082504,Total Id,3888076,15820,01/06/2018,359.94,59.99,PRINTS,Corporate Print Services,3345,Print Stocks,Places
Blackpool Council,1079749,Total Gas & Power Ltd,3888360,168367480/18,26/06/2018,487,81.16,FMAB,Commercial Propereties,1203,Gas,Resources
Blackpool Council,1006238,Walton Summit Truck Centre Ltd,3888373,30200514,01/06/2018,995.88,165.98,CVMU,Cvmu,3041,Other Materials,Community & Env Services
Blackpool Council,1007753,Probrush T/A Northern Municipal Spares Ltd,3888377,18074,01/06/2018,1373.74,228.96,CVMU,Cvmu,3041,Other Materials,Community & Env Services
Blackpool Council,1075175,Waterman Environmental Services Limited,3888532,8416,01/06/2018,1809.78,301.63,AEB,Buildings,1012,Premises Maint-Priv.Contractor,Resources
Blackpool Council,1058544,Opus Energy Limited,3888546,63925050,26/06/2018,456.47,76.08,FMAA,Retail Units,1202,Electricity,Resources
Blackpool Council,1022793,Scottish Hydro Electric,3888576,11727931/0004,13/06/2018,1033.76,172.29,AEZ,To Be Recharged,1202,Electricity,Resources
Blackpool Council,1077392,Reed Specialist Recruitment Ltd,3888591,E0232587529,05/06/2018,1156.18,192.7,ALDA,Learning Disability Team,0791,Temp/Relief (Bureau Staff),Adult & Families
Blackpool Council,1077392,Reed Specialist Recruitment Ltd,3888591,E0232587529,05/06/2018,561.63,93.61,BLCLEA,Building Cleaning,0791,Temp/Relief (Bureau Staff),Community & Env Services
Blackpool Council,1077392,Reed Specialist Recruitment Ltd,3888591,E0232587529,05/06/2018,331.28,55.22,JA0502,Principal Social Worker,0791,Temp/Relief (Bureau Staff),Children'S Services
Blackpool Council,1077392,Reed Specialist Recruitment Ltd,3888591,E0232587529,05/06/2018,1665.36,277.56,JA1531,Independent Reviewing Officers,0791,Temp/Relief (Bureau Staff),Children'S Services
Blackpool Council,1077392,Reed Specialist Recruitment Ltd,3888591,E0232587529,05/06/2018,1532.16,255.36,JAB,Locality,0791,Temp/Relief (Bureau Staff),Children'S Services
Blackpool Council,1077392,Reed Specialist Recruitment Ltd,3888591,E0232587529,05/06/2018,1532.16,255.36,JBT,Looked After Children,0791,Temp/Relief (Bureau Staff),Children'S Services
Blackpool Council,1077392,Reed Specialist Recruitment Ltd,3888591,E0232587529,05/06/2018,1532.16,255.36,JEA,Senior Management,0791,Temp/Relief (Bureau Staff),Children'S Services
Blackpool Council,1077392,Reed Specialist Recruitment Ltd,3888591,E0232587529,05/06/2018,1077.5,179.58,SSDA,Social Services Direct,0791,Temp/Relief (Bureau Staff),Adult & Families
Blackpool Council,1077392,Reed Specialist Recruitment Ltd,3888591,E0232587529,05/06/2018,1247.34,207.89,VA0010,Vah Management & Admin,0791,Temp/Relief (Bureau Staff),Children'S Services
Blackpool Council,1006099,Blackpool Teaching Hospitals Nhs Ft,3888604,1110038025,11/06/2018,2982,0,SSDA,Social Services Direct,0781,Contracted,Adult & Families
Blackpool Council,1091777,Nhs Property Services Ltd,3889640,NAVS03583,26/06/2018,75888.96,0,AEB,Buildings,1202,Electricity,Resources
Blackpool Council,1017728,Quartzelec Ltd,3889716,7134886,01/06/2018,1927.2,321.2,AEB,Buildings,1012,Premises Maint-Priv.Contractor,Resources
Blackpool Council,1105003,Socal Healthcare Ltd,3890073,0518-159-163,12/06/2018,701.71,0,JDEAAA,Safeguarding Adults,4501,Private Contractors,Adult & Families
Blackpool Council,1096493,REDACTED PERSONAL DATA,3890087,LY15155-1,01/06/2018,350,0,HOPB,Housing Options,1301,Rent & Hire Of Premises,Chief Executive
Blackpool Council,1096493,REDACTED PERSONAL DATA,3890093,LY15155-2,01/06/2018,450,0,HOPB,Housing Options,1301,Rent & Hire Of Premises,Chief Executive
Blackpool Council,1007516,Phoenix Commercial Collections Ltd,3890278,99957,01/06/2018,541.2,90.2,FBBEA,"Income, Recovery & Debtors",3807,Legal & Court Costs,Resources
Blackpool Council,1007516,Phoenix Commercial Collections Ltd,3890279,99956,01/06/2018,12549.8,2091.6,FBBEA,"Income, Recovery & Debtors",3807,Legal & Court Costs,Resources
Blackpool Council,1106537,Pj Fire Safety Risk Assessments Limited,3890313,2323,01/06/2018,342,57,CXB71,Hra Capital Programme 2018/19,6501,Contract Payments,Capital - Places
Blackpool Council,1010423,Child Action Northwest,3891201,YJ/2917,19/06/2018,2037.81,0,VA0010,Vah Management & Admin,3401,General Services,Children'S Services
Blackpool Council,1077392,Reed Specialist Recruitment Ltd,3891221,E020723370M,05/06/2018,974.5,162.42,ALDA,Learning Disability Team,0791,Temp/Relief (Bureau Staff),Adult & Families
Blackpool Council,1077392,Reed Specialist Recruitment Ltd,3891221,E020723370M,05/06/2018,544.74,90.79,JA0502,Principal Social Worker,0791,Temp/Relief (Bureau Staff),Children'S Services
Blackpool Council,1077392,Reed Specialist Recruitment Ltd,3891221,E020723370M,05/06/2018,1496.58,249.43,JA1531,Independent Reviewing Officers,0791,Temp/Relief (Bureau Staff),Children'S Services
Blackpool Council,1077392,Reed Specialist Recruitment Ltd,3891221,E020723370M,05/06/2018,1532.16,255.36,JAB,Locality,0791,Temp/Relief (Bureau Staff),Children'S Services
Blackpool Council,1077392,Reed Specialist Recruitment Ltd,3891221,E020723370M,05/06/2018,1532.16,255.36,JBT,Looked After Children,0791,Temp/Relief (Bureau Staff),Children'S Services
Blackpool Council,1077392,Reed Specialist Recruitment Ltd,3891221,E020723370M,05/06/2018,1532.16,255.36,JEA,Senior Management,0791,Temp/Relief (Bureau Staff),Children'S Services
Blackpool Council,1077392,Reed Specialist Recruitment Ltd,3891221,E020723370M,05/06/2018,1077.5,179.58,SSDA,Social Services Direct,0791,Temp/Relief (Bureau Staff),Adult & Families
Blackpool Council,1077392,Reed Specialist Recruitment Ltd,3891221,E020723370M,05/06/2018,1204.93,200.82,VA0010,Vah Management & Admin,0791,Temp/Relief (Bureau Staff),Children'S Services
Blackpool Council,1088102,Whistl Uk Limited,3891223,IN18US18003635,05/06/2018,4570.48,761.75,FCADA,Customer Services,3511,Postages,Resources
Blackpool Council,1059217,Blackpool Carers Centre Ltd,3891275,786,05/06/2018,2147.5,0,JA2010,"Acute, Maternity & Palliative",7189,Other Misc Income - No Orders,Children'S Services
Blackpool Council,1102497,REDACTED PERSONAL DATA,3891337,2018/014,01/06/2018,766.6,0,JEA,Senior Management,3807,Legal & Court Costs,Children'S Services
Blackpool Council,1007345,Mobile Mini Uk Limited,3891365,7000834937,13/06/2018,336.48,56.08,CEMCRE,Cems Crems Etc,1012,Premises Maint-Priv.Contractor,Governance & Partnerships
Blackpool Council,1011973,Automatic Alarms Ltd,3891368,316187,06/06/2018,379.98,63.33,PTA,Economic Development,1171,Alarms,Places
Blackpool Council,1017728,Quartzelec Ltd,3891374,7135356,13/06/2018,3002.4,500.4,AEB,Buildings,1012,Premises Maint-Priv.Contractor,Resources
Blackpool Council,1020179,The James Mercer Group Ltd,3891375,112500,08/06/2018,295.2,49.2,AEB,Buildings,1121,Heating & Ventilation,Resources
Blackpool Council,1071462,Equita Limited,3891527,1029834,08/06/2018,328.76,54.79,FV6702,Equita,7366,Car Parking Fees,Budgets Outside Cash Limits
Blackpool Council,1007516,Phoenix Commercial Collections Ltd,3891530,100084,08/06/2018,2890.97,481.83,FV6705,Phoenix Commercial Collection,7366,Car Parking Fees,Budgets Outside Cash Limits
Blackpool Council,1007516,Phoenix Commercial Collections Ltd,3891532,99958,01/06/2018,6772.06,1128.68,FV6705,Phoenix Commercial Collection,7366,Car Parking Fees,Budgets Outside Cash Limits
Blackpool Council,1007516,Phoenix Commercial Collections Ltd,3891538,100083,08/06/2018,438.23,73.01,FBBEA,"Income, Recovery & Debtors",3807,Legal & Court Costs,Resources
Blackpool Council,1115825,Horizons Specialist Academy Trust,3891653,1000351,08/06/2018,3933.33,0,CWAN,Children With Additional Needs,4501,Private Contractors,Children'S Services
Blackpool Council,1111328,Hadley Fraser Ltd,3891654,BLA066,13/06/2018,5850,975,JDEAAA,Safeguarding Adults,4501,Private Contractors,Adult & Families
Blackpool Council,1109708,Efaflex Uk Ltd,3891744,60002901,14/06/2018,420,70,AEB,Buildings,1012,Premises Maint-Priv.Contractor,Resources
Blackpool Council,1010138,C Cabs,3891750,02500,06/06/2018,284.6,0,CWAN,Children With Additional Needs,2211,Casual Hire,Children'S Services
Blackpool Council,1100221,Forensic Testing Service Ltd,3891755,27237,08/06/2018,1000.8,166.8,JEA,Senior Management,3807,Legal & Court Costs,Children'S Services
Blackpool Council,1088102,Whistl Uk Limited,3891760,IN18US18003833,11/06/2018,5515.93,919.32,FCADA,Customer Services,3511,Postages,Resources
Blackpool Council,1017728,Quartzelec Ltd,3892673,7134567,01/06/2018,11772.02,1962,AEB,Buildings,1012,Premises Maint-Priv.Contractor,Resources
Blackpool Council,1115840,Paul Marshall T/A Stronghold Preservation,3892677,7784,01/06/2018,29644.8,4940.8,CGTBBB,Conference Centre,6501,Contract Payments,Capital - Places
Blackpool Council,1020179,The James Mercer Group Ltd,3892721,112502,08/06/2018,458.74,76.46,CWASTE,Commercial Waste,1012,Premises Maint-Priv.Contractor,Community & Env Services
Blackpool Council,1029067,Johnston Sweepers Limited,3892765,61617670,08/06/2018,3253.83,542.31,CVMU,Cvmu,3041,Other Materials,Community & Env Services
Blackpool Council,1047310,Teletrac Navman (Uk) Ltd,3892777,91304099,01/06/2018,270,45,CVMU,Cvmu,4501,Private Contractors,Community & Env Services
Blackpool Council,1051417,North West Power Washer Ltd,3892778,9267,08/06/2018,791.04,131.84,CVMU,Cvmu,4501,Private Contractors,Community & Env Services
Blackpool Council,1077392,Reed Specialist Recruitment Ltd,3893115,E020724753M,05/06/2018,1222.25,203.71,ALDA,Learning Disability Team,0791,Temp/Relief (Bureau Staff),Adult & Families
Blackpool Council,1077392,Reed Specialist Recruitment Ltd,3893115,E020724753M,05/06/2018,1123.26,187.22,BLCLEA,Building Cleaning,0791,Temp/Relief (Bureau Staff),Community & Env Services
Blackpool Council,1077392,Reed Specialist Recruitment Ltd,3893115,E020724753M,05/06/2018,544.74,90.79,JA0502,Principal Social Worker,0791,Temp/Relief (Bureau Staff),Children'S Services
Blackpool Council,1077392,Reed Specialist Recruitment Ltd,3893115,E020724753M,05/06/2018,1282.78,213.8,JA1531,Independent Reviewing Officers,0791,Temp/Relief (Bureau Staff),Children'S Services
Blackpool Council,1077392,Reed Specialist Recruitment Ltd,3893115,E020724753M,05/06/2018,1532.16,255.36,JAB,Locality,0791,Temp/Relief (Bureau Staff),Children'S Services
Blackpool Council,1077392,Reed Specialist Recruitment Ltd,3893115,E020724753M,05/06/2018,1532.16,255.36,JBT,Looked After Children,0791,Temp/Relief (Bureau Staff),Children'S Services
Blackpool Council,1077392,Reed Specialist Recruitment Ltd,3893115,E020724753M,05/06/2018,384.82,64.14,JEA,Senior Management,0791,Temp/Relief (Bureau Staff),Children'S Services
Blackpool Council,1077392,Reed Specialist Recruitment Ltd,3893115,E020724753M,05/06/2018,1254.4,209.06,VA0010,Vah Management & Admin,0791,Temp/Relief (Bureau Staff),Children'S Services
Blackpool Council,1100221,Forensic Testing Service Ltd,3893120,27306,08/06/2018,253.9,42.32,JEA,Senior Management,3807,Legal & Court Costs,Children'S Services
Blackpool Council,1004960,Drugline Lancashire Ltd,3893262,985,07/06/2018,3333.33,0,EP8105,Domestic Abuse Dclg / Lcc,7011,Government Grants,Children'S Services
Blackpool Council,1006202,I Care Gb Limited,3893266,BPLEX/1305,01/06/2018,6455.98,0,MVB,65-74,4512,Other Care Block Payments,Adult & Families
Blackpool Council,1006202,I Care Gb Limited,3893267,BPLEX/0605,01/06/2018,6534.08,0,MVB,65-74,4512,Other Care Block Payments,Adult & Families
Blackpool Council,1034533,Richmond Fellowship,3893269,SI/00020478,01/06/2018,12309.5,0,MFA,Adults Under 65 With Mh,4512,Other Care Block Payments,Adult & Families
Blackpool Council,1110326,REDACTED PERSONAL DATA,3894626,392152,01/06/2018,1140,190,JEA,Senior Management,3807,Legal & Court Costs,Children'S Services
Blackpool Council,1105889,3d Environmental Limited,3894663,BPCASC-0003,12/06/2018,342,57,MVB,65-74,4501,Private Contractors,Adult & Families
Blackpool Council,1087549,Merlin Entertainments (Blackpool) Ltd,3894664,BC-S05592,04/06/2018,8092.64,1348.77,ZX0501,"Tourism,Promotions & Conferen.",9687,Tourism Sale Of Tickets,Place Directorate
Blackpool Council,1113252,REDACTED PERSONAL DATA,3894666,406719,08/06/2018,660,110,JEA,Senior Management,3807,Legal & Court Costs,Children'S Services
Blackpool Council,1099154,REDACTED PERSONAL DATA,3894670,403353,01/06/2018,570,95,JEA,Senior Management,3807,Legal & Court Costs,Children'S Services
Blackpool Council,1024640,REDACTED PERSONAL DATA,3894671,397801,08/06/2018,1440,240,JEA,Senior Management,3807,Legal & Court Costs,Children'S Services
Blackpool Council,1008630,REDACTED PERSONAL DATA,3894672,406342,08/06/2018,1230,205,JEA,Senior Management,3807,Legal & Court Costs,Children'S Services
Blackpool Council,1007158,Rosewood Lodge,3894859,175068I,20/06/2018,2337.4,0,MSA,18-64,4505,Residential Homes,Adult & Families
Blackpool Council,1007158,Rosewood Lodge,3894861,175450,20/06/2018,2032.56,0,MVD,85+,4505,Residential Homes,Adult & Families
Blackpool Council,1008551,R G & C Hepwood T/A Glengarry Court,3895155,175525,20/06/2018,1424,0,MVD,85+,7583,Indep Sect Nursing Homes,Adult & Families
Blackpool Council,1008551,R G & C Hepwood T/A Glengarry Court,3895155,175525,20/06/2018,1973.44,0,MVD,85+,4505,Residential Homes,Adult & Families
Blackpool Council,1009809,Bupa Care Services - Bank House Care Home,3895340,174676,05/06/2018,2231.65,0,MGD,85+,7583,Indep Sect Nursing Homes,Adult & Families
Blackpool Council,1036598,Royal Air Forces Association,3895683,175588,06/06/2018,1026.4,0,MSD,85+,4505,Residential Homes,Adult & Families
Blackpool Council,1052711,Bupa Dove Court Care Home,3895692,174582,05/06/2018,21373.45,0,MGC,75-84,4505,Residential Homes,Adult & Families
Blackpool Council,1096663,Feng Shui House Care Home,3895804,175428I,20/06/2018,2306.64,0,MFC,75-84,4505,Residential Homes,Adult & Families
Blackpool Council,1096663,Feng Shui House Care Home,3895806,175445I,20/06/2018,2329.92,0,MVC,75-84,4505,Residential Homes,Adult & Families
Blackpool Council,1096663,Feng Shui House Care Home,3895808,175093I,20/06/2018,1973.44,0,MGC,75-84,4505,Residential Homes,Adult & Families
Blackpool Council,1096663,Feng Shui House Care Home,3895810,174848I,20/06/2018,2267.48,0,MGC,75-84,4505,Residential Homes,Adult & Families
Blackpool Council,1096663,Feng Shui House Care Home,3895812,175031I,20/06/2018,1973.44,0,MVD,85+,4505,Residential Homes,Adult & Families
Blackpool Council,1096663,Feng Shui House Care Home,3895814,175062I,20/06/2018,1973.44,0,MGC,75-84,4505,Residential Homes,Adult & Families
Blackpool Council,1096663,Feng Shui House Care Home,3895816,174719I,20/06/2018,1796.2,0,MVD,85+,4505,Residential Homes,Adult & Families
Blackpool Council,1096663,Feng Shui House Care Home,3895818,174789I,20/06/2018,1796.2,0,MVD,85+,4505,Residential Homes,Adult & Families
Blackpool Council,1096663,Feng Shui House Care Home,3895820,174797I,20/06/2018,1973.44,0,MVD,85+,4505,Residential Homes,Adult & Families
Blackpool Council,1096663,Feng Shui House Care Home,3895822,174817I,20/06/2018,2329.92,0,MGB,65-74,4505,Residential Homes,Adult & Families
Blackpool Council,1096663,Feng Shui House Care Home,3895824,174832I,20/06/2018,1973.44,0,MVD,85+,4505,Residential Homes,Adult & Families
Blackpool Council,1096663,Feng Shui House Care Home,3895826,174545I,20/06/2018,2306.64,0,MGC,75-84,4505,Residential Homes,Adult & Families
Blackpool Council,1096663,Feng Shui House Care Home,3895828,175591I,20/06/2018,970.91,0,MGD,85+,4505,Residential Homes,Adult & Families
Blackpool Council,1007516,Phoenix Commercial Collections Ltd,3896004,100082,08/06/2018,8181.51,1363.57,FBBEA,"Income, Recovery & Debtors",3807,Legal & Court Costs,Resources
Blackpool Council,1011551,Black Box Security Alarm Systems Ltd,3896381,173514,06/06/2018,1177.37,196.23,AEB,Buildings,1171,Alarms,Resources
Blackpool Council,1011702,J & J Decorating Services,3896382,7699,20/06/2018,474,79,AEB,Buildings,1012,Premises Maint-Priv.Contractor,Resources
Blackpool Council,1011702,J & J Decorating Services,3896384,7692,15/06/2018,720,120,AEB,Buildings,1012,Premises Maint-Priv.Contractor,Resources
Blackpool Council,1011702,J & J Decorating Services,3896386,7695,15/06/2018,750,125,AEB,Buildings,1012,Premises Maint-Priv.Contractor,Resources
Blackpool Council,1015204,M (Uk) Ltd,3896394,1036,15/06/2018,5311.2,885.2,AEB,Buildings,1012,Premises Maint-Priv.Contractor,Resources
Blackpool Council,1020179,The James Mercer Group Ltd,3896395,112506,08/06/2018,1429.7,238.28,AEB,Buildings,1121,Heating & Ventilation,Resources
Blackpool Council,1068896,Barnardos Services Ltd (Vat Invoices Only),3896443,241001183,08/06/2018,1092.77,182.13,JEA,Senior Management,4820,Theraoy,Children'S Services
Blackpool Council,1068896,Barnardos Services Ltd (Vat Invoices Only),3896445,241001185,08/06/2018,819.58,136.6,JEA,Senior Management,4820,Theraoy,Children'S Services
Blackpool Council,1068896,Barnardos Services Ltd (Vat Invoices Only),3896446,241001182,08/06/2018,614.66,102.44,JEA,Senior Management,4820,Theraoy,Children'S Services
Blackpool Council,1097363,REDACTED PERSONAL DATA,3896453,248530,01/06/2018,1980,330,JEA,Senior Management,3807,Legal & Court Costs,Children'S Services
Blackpool Council,1092524,Dwf Llp,3896495,1934883,14/06/2018,3996,666,RK6005,Gallagher Bassett Pl,3807,Legal & Court Costs,Internal Insurance
Blackpool Council,1092524,Dwf Llp,3896498,1894892,14/06/2018,2341.8,390.3,RK6005,Gallagher Bassett Pl,3807,Legal & Court Costs,Internal Insurance
Blackpool Council,1007814,Water Plus Limited,3896547,INV03485788,05/06/2018,2975.21,0,AEZ,To Be Recharged,1401,Water Charges-Metered,Resources
Blackpool Council,1007814,Water Plus Limited,3896548,INV03345556,05/06/2018,8837.36,0,AEZ,To Be Recharged,1401,Water Charges-Metered,Resources
Blackpool Council,1007814,Water Plus Limited,3896552,INV03490623,05/06/2018,84237.3,0,AEZ,To Be Recharged,1401,Water Charges-Metered,Resources
Blackpool Council,1007814,Water Plus Limited,3896553,INV03468148,05/06/2018,173138.57,0,AEZ,To Be Recharged,1401,Water Charges-Metered,Resources
Blackpool Council,1007814,Water Plus Limited,3896554,INV03459026,05/06/2018,1746.51,0,AEZ,To Be Recharged,1401,Water Charges-Metered,Resources
Blackpool Council,1007814,Water Plus Limited,3896555,INV03490626,05/06/2018,177316.73,0,AEZ,To Be Recharged,1401,Water Charges-Metered,Resources
Blackpool Council,1024640,REDACTED PERSONAL DATA,3896719,406468,13/06/2018,900,150,JEA,Senior Management,3807,Legal & Court Costs,Children'S Services
Blackpool Council,1008304,REDACTED PERSONAL DATA,3896720,250040,01/06/2018,1200,200,JEA,Senior Management,3807,Legal & Court Costs,Children'S Services
Blackpool Council,1059592,John Macadam & Son (Rescue) Ltd,3896753,BLA/04,06/06/2018,2070,345,FV6707,Macadams,7366,Car Parking Fees,Budgets Outside Cash Limits
Blackpool Council,1024640,REDACTED PERSONAL DATA,3896754,396269,08/06/2018,273.6,45.6,JEA,Senior Management,3807,Legal & Court Costs,Children'S Services
Blackpool Council,1024640,REDACTED PERSONAL DATA,3896755,406703,01/06/2018,630,105,JEA,Senior Management,3807,Legal & Court Costs,Children'S Services
Blackpool Council,1109814,Nickelodeon Uk Limited,3897889,1800000333,13/06/2018,139200,23200,PRD,Switch On,3401,General Services,Places
Blackpool Council,1103450,Blackpool Entertainment Company Limited,3897890,INV003557,15/06/2018,600,100,TSICT,Transforming Schools Ict,1301,Rent & Hire Of Premises,Resources
Blackpool Council,1007516,Phoenix Commercial Collections Ltd,3897891,100203,15/06/2018,9878.8,1646.5,FBBEA,"Income, Recovery & Debtors",3807,Legal & Court Costs,Resources
Blackpool Council,1007516,Phoenix Commercial Collections Ltd,3897892,100204,15/06/2018,1426.47,237.76,FBBEA,"Income, Recovery & Debtors",3807,Legal & Court Costs,Resources
Blackpool Council,1011730,Metric Group Limited,3897893,156590,20/06/2018,535.63,89.27,PARADM,Parking Administration,1012,Premises Maint-Priv.Contractor,Budgets Outside Cash Limits
Blackpool Council,1100041,Exbos Limited,3897895,0094,25/06/2018,3601.2,600.2,CS0738,Community Information Portal,6501,Contract Payments,Capital - Adult Social Care
Blackpool Council,1112656,Dr Patricia Bennett,3897896,5033,06/06/2018,1300,0,CWAN,Children With Additional Needs,3408,Services To Clients,Children'S Services
Blackpool Council,1050152,Wings Education Ltd,3897897,180099-W1SU,06/06/2018,37625,0,CWAN,Children With Additional Needs,4501,Private Contractors,Children'S Services
Blackpool Council,1050152,Wings Education Ltd,3897897,180099-W1SU,06/06/2018,17553,0,JEA,Senior Management,4501,Private Contractors,Children'S Services
Blackpool Council,1032062,REDACTED PERSONAL DATA,3897904,75,04/06/2018,350,0,HOPB,Housing Options,1704,Bed & Breakfast Accomm.,Chief Executive
Blackpool Council,1032062,REDACTED PERSONAL DATA,3897905,76,04/06/2018,462,0,HOPB,Housing Options,1704,Bed & Breakfast Accomm.,Chief Executive
Blackpool Council,1108610,The Leisure Pass Group Ltd,3897908,0000533331,06/06/2018,2071.8,345.3,PRG,Tourism General,3535,Website Costs,Places
Blackpool Council,1041219,Abelglass Trade Supplies Ltd,3897911,INV-1023,01/06/2018,652.56,108.76,CXB71,Hra Capital Programme 2018/19,6501,Contract Payments,Capital - Places
Blackpool Council,1041219,Abelglass Trade Supplies Ltd,3897914,INV-1022,01/06/2018,1978.88,329.81,CXB71,Hra Capital Programme 2018/19,6501,Contract Payments,Capital - Places
Blackpool Council,1115999,Beepea,3898038,BP20080019,06/06/2018,295,0,AEH,Built Heritage,3801,Other Expenses,Places
Blackpool Council,1007206,Road Safety Services Ltd,3898042,83162,06/06/2018,362.22,60.37,PAROPE,Parking Operational,4501,Private Contractors,Budgets Outside Cash Limits
Blackpool Council,1091610,Communicate Slt Cic,3898043,289,25/06/2018,17458,0,EP8002,Speech And Language,3801,Other Expenses,Children'S Services
Blackpool Council,1105003,Socal Healthcare Ltd,3898047,0518-173-176,01/06/2018,706.84,0,JDEAAA,Safeguarding Adults,4501,Private Contractors,Adult & Families
Blackpool Council,1106840,Hartshead Productions Ltd,3898052,HH1000001218,06/06/2018,460,0,MUSIC,Music & Cultural Education,3822,Photography,Children'S Services
Blackpool Council,1115494,Linden House Residential & Dementia Care Home,3898053,0002,13/06/2018,5026.62,0,MFC,75-84,4505,Residential Homes,Adult & Families
Blackpool Council,1087549,Merlin Entertainments (Blackpool) Ltd,3898055,BC-S05605,04/06/2018,980.86,163.48,ZX0501,"Tourism,Promotions & Conferen.",9687,Tourism Sale Of Tickets,Place Directorate
Blackpool Council,1077392,Reed Specialist Recruitment Ltd,3898058,E020726981M,18/06/2018,974.5,162.42,ALDA,Learning Disability Team,0791,Temp/Relief (Bureau Staff),Adult & Families
Blackpool Council,1077392,Reed Specialist Recruitment Ltd,3898058,E020726981M,18/06/2018,561.63,93.61,BLCLEA,Building Cleaning,0791,Temp/Relief (Bureau Staff),Community & Env Services
Blackpool Council,1077392,Reed Specialist Recruitment Ltd,3898058,E020726981M,18/06/2018,430.65,71.78,JA0502,Principal Social Worker,0791,Temp/Relief (Bureau Staff),Children'S Services
Blackpool Council,1077392,Reed Specialist Recruitment Ltd,3898058,E020726981M,18/06/2018,1350.29,225.05,JA1531,Independent Reviewing Officers,0791,Temp/Relief (Bureau Staff),Children'S Services
Blackpool Council,1077392,Reed Specialist Recruitment Ltd,3898058,E020726981M,18/06/2018,1449.34,241.56,JAB,Locality,0791,Temp/Relief (Bureau Staff),Children'S Services
Blackpool Council,1077392,Reed Specialist Recruitment Ltd,3898058,E020726981M,18/06/2018,1228.49,204.75,JBT,Looked After Children,0791,Temp/Relief (Bureau Staff),Children'S Services
Blackpool Council,1077392,Reed Specialist Recruitment Ltd,3898058,E020726981M,18/06/2018,1739.75,289.95,JEA,Senior Management,0791,Temp/Relief (Bureau Staff),Children'S Services
Blackpool Council,1077392,Reed Specialist Recruitment Ltd,3898058,E020726981M,18/06/2018,2009.39,334.89,SSDA,Social Services Direct,0791,Temp/Relief (Bureau Staff),Adult & Families
Blackpool Council,1077392,Reed Specialist Recruitment Ltd,3898058,E020726981M,18/06/2018,1090.95,181.82,VA0010,Vah Management & Admin,0791,Temp/Relief (Bureau Staff),Children'S Services
Blackpool Council,1088102,Whistl Uk Limited,3898062,IN18US18004029,18/06/2018,5216.69,869.45,FCADA,Customer Services,3511,Postages,Resources
Blackpool Council,1006471,T-Print Ltd,3898066,0000425572,04/06/2018,1105.2,184.2,PRC,Visitor Services,3808,Souvenirs & Gifts,Places
Blackpool Council,1113165,Target Psychology Ltd,3898070,5/18/1081,15/06/2018,1877.26,312.88,JEA,Senior Management,3807,Legal & Court Costs,Children'S Services
Blackpool Council,1088331,Iken Business Ltd,3898071,IK25873,04/06/2018,6300,1050,BAAA,Legal Services,3532,Comp-Running & License Costs,Governance & Partnerships
Blackpool Council,1112371,Ravenscroft Psychology Services,3898075,OLDFIELD_BBC,15/06/2018,2006.21,334.36,JEA,Senior Management,3807,Legal & Court Costs,Children'S Services
Blackpool Council,1112371,Ravenscroft Psychology Services,3898076,CANTLEY_BBC,15/06/2018,2150.18,358.36,JEA,Senior Management,3807,Legal & Court Costs,Children'S Services
Blackpool Council,1103692,Calico Enterprise Limited,3898092,SINV20/00000228,05/06/2018,1296,216,FC1802,Social Fund - Client,5210,Community Care Support,Resources
Blackpool Council,1050152,Wings Education Ltd,3898094,180135-W1SU,06/06/2018,16859,0,CWAN,Children With Additional Needs,4501,Private Contractors,Children'S Services
Blackpool Council,1006099,Blackpool Teaching Hospitals Nhs Ft,3898099,1110038181,06/06/2018,3060.38,0,BEA,Democratic Services & Admin,0191,Wages-Other,Governance & Partnerships
Blackpool Council,1114192,Acorn House (Fostering Services) Limited,3898100,18/2827,08/06/2018,3071.25,0,JEA,Senior Management,4501,Private Contractors,Children'S Services
Blackpool Council,1032673,Eversheds Sutherland (International) Llp,3898109,91706886,12/06/2018,1161,193.5,BAAA,Legal Services,3413,Consultants,Governance & Partnerships
Blackpool Council,1100221,Forensic Testing Service Ltd,3898113,27226,08/06/2018,288.78,48.13,JEA,Senior Management,3807,Legal & Court Costs,Children'S Services
Blackpool Council,1007183,Royal Mail Group Ltd,3898116,9056620051,18/06/2018,254.36,42.39,LH2073,Energy Efficiency,3511,Postages,Public Health
Blackpool Council,1041219,Abelglass Trade Supplies Ltd,3898138,INV-1033,01/06/2018,1215.54,202.59,CXB71,Hra Capital Programme 2018/19,6501,Contract Payments,Capital - Places
Blackpool Council,1110132,Health Assured Ltd,3898143,SF-017805,08/06/2018,1862.18,310.36,FK0013,Corporate Health,0992,Medical Fees (Employee),Chief Executive
Blackpool Council,1007535,Pip (Play Inclusion Project),3898144,BAC145,22/06/2018,3102.04,0,CWAN,Children With Additional Needs,3801,Other Expenses,Children'S Services
Blackpool Council,1098994,Alpha Plus Fostering,3898174,7078,01/06/2018,2871.3,0,JEA,Senior Management,4501,Private Contractors,Children'S Services
Blackpool Council,1103152,Tree House Care Fostering Solutions Ltd,3898176,7922,01/06/2018,5460,0,JEA,Senior Management,4501,Private Contractors,Children'S Services
Blackpool Council,1060595,Lorimer Foster Services,3898178,SFLOYD48A,01/06/2018,3321.43,0,JEA,Senior Management,4501,Private Contractors,Children'S Services
Blackpool Council,1060595,Lorimer Foster Services,3898179,TWINSON48A,01/06/2018,3255,0,JEA,Senior Management,4501,Private Contractors,Children'S Services
Blackpool Council,1060595,Lorimer Foster Services,3898180,MWINSON48A,01/06/2018,3321.43,0,JEA,Senior Management,4501,Private Contractors,Children'S Services
Blackpool Council,1037403,Barnardo Services Ltd (Non Vat Invoices),3898181,146520127,01/06/2018,3428.57,0,JEA,Senior Management,4501,Private Contractors,Children'S Services
Blackpool Council,1037403,Barnardo Services Ltd (Non Vat Invoices),3898183,146520125,01/06/2018,3053.57,0,JEA,Senior Management,4501,Private Contractors,Children'S Services
Blackpool Council,1103676,Foster Cares Ltd,3898184,132797,01/06/2018,850,0,JEA,Senior Management,4501,Private Contractors,Children'S Services
Blackpool Council,1103676,Foster Cares Ltd,3898185,132740,01/06/2018,850,0,JEA,Senior Management,4501,Private Contractors,Children'S Services
Blackpool Council,1103676,Foster Cares Ltd,3898188,132682,01/06/2018,850,0,JEA,Senior Management,4501,Private Contractors,Children'S Services
Blackpool Council,1103676,Foster Cares Ltd,3898190,132592,01/06/2018,850,0,JEA,Senior Management,4501,Private Contractors,Children'S Services
Blackpool Council,1103676,Foster Cares Ltd,3898191,132536,01/06/2018,850,0,JEA,Senior Management,4501,Private Contractors,Children'S Services
Blackpool Council,1012163,Roland Robinsons And Fentons Solicitors,3898211,90039-2,01/06/2018,271.08,0,JEA,Senior Management,3807,Legal & Court Costs,Children'S Services
Blackpool Council,1114920,REDACTED PERSONAL DATA,3898212,1074563,01/06/2018,1320,220,JEA,Senior Management,3807,Legal & Court Costs,Children'S Services
Blackpool Council,1100652,Fylde Law,3898214,SHJAC1051B4689,01/06/2018,2259.23,0,JEA,Senior Management,3807,Legal & Court Costs,Children'S Services
Blackpool Council,1041543,REDACTED PERSONAL DATA,3898215,252540,01/06/2018,1200,200,JEA,Senior Management,3807,Legal & Court Costs,Children'S Services
Blackpool Council,1111245,REDACTED PERSONAL DATA,3898218,251118,01/06/2018,600,100,JEA,Senior Management,3807,Legal & Court Costs,Children'S Services
Blackpool Council,1012034,REDACTED PERSONAL DATA,3898219,252178,01/06/2018,1500,250,JEA,Senior Management,3807,Legal & Court Costs,Children'S Services
Blackpool Council,1007467,Premier Paper Group Ltd,3898226,9258231,08/06/2018,285.17,47.53,PRINTS,Corporate Print Services,3344,Paper,Places
Blackpool Council,1008158,Mail Solutions Uk Ltd (Envelopes),3898229,364110,08/06/2018,477.6,79.6,PRINTS,Corporate Print Services,3408,Services To Clients,Places
Blackpool Council,1008540,Konica Minolta Business (Uk) Ltd,3898230,1137529990,29/06/2018,2488.86,414.81,PRINTS,Corporate Print Services,2221,Operating Leases,Places
Blackpool Council,1010104,Canon (Uk ) Ltd,3898231,44093669,08/06/2018,255.6,42.6,PRINTS,Corporate Print Services,3344,Paper,Places
Blackpool Council,1010104,Canon (Uk ) Ltd,3898232,401990018,08/06/2018,1627.64,271.27,PRINTS,Corporate Print Services,3001,Office Equipment Purchase,Places
Blackpool Council,1026185,British Printing Industries Federation,3898233,5201812609,01/06/2018,297,49.5,PRINTS,Corporate Print Services,3801,Other Expenses,Places
Blackpool Council,1012034,REDACTED PERSONAL DATA,3898241,252662,01/06/2018,420,70,JEA,Senior Management,3807,Legal & Court Costs,Children'S Services
Blackpool Council,1097363,REDACTED PERSONAL DATA,3898242,252448,01/06/2018,660,110,JEA,Senior Management,3807,Legal & Court Costs,Children'S Services
Blackpool Council,1097363,REDACTED PERSONAL DATA,3898243,252448,01/06/2018,1200,200,JEA,Senior Management,3807,Legal & Court Costs,Children'S Services
Blackpool Council,1114999,REDACTED PERSONAL DATA,3898244,252837,01/06/2018,300,50,JEA,Senior Management,3807,Legal & Court Costs,Children'S Services
Blackpool Council,1007612,REDACTED PERSONAL DATA,3898245,249625,01/06/2018,810,135,JEA,Senior Management,3807,Legal & Court Costs,Children'S Services
Blackpool Council,1024640,REDACTED PERSONAL DATA,3898246,403611,01/06/2018,1170,195,JEA,Senior Management,3807,Legal & Court Costs,Children'S Services
Blackpool Council,1086620,REDACTED PERSONAL DATA,3898250,402413,01/06/2018,750,125,JEA,Senior Management,3807,Legal & Court Costs,Children'S Services
Blackpool Council,1093061,REDACTED PERSONAL DATA,3898257,392802,01/06/2018,420,70,JEA,Senior Management,3807,Legal & Court Costs,Children'S Services
Blackpool Council,1113252,REDACTED PERSONAL DATA,3898261,392802,01/06/2018,780,130,JEA,Senior Management,3807,Legal & Court Costs,Children'S Services
Blackpool Council,1108182,REDACTED PERSONAL DATA,3898263,10,01/06/2018,300,0,JEA,Senior Management,5507,Personal,Children'S Services
Blackpool Council,1115051,REDACTED PERSONAL DATA,3898374,396757,01/06/2018,480,80,JEA,Senior Management,3807,Legal & Court Costs,Children'S Services
Blackpool Council,1088063,REDACTED PERSONAL DATA,3898375,397270,01/06/2018,1020,170,JEA,Senior Management,3807,Legal & Court Costs,Children'S Services
Blackpool Council,1024640,REDACTED PERSONAL DATA,3898376,404109,01/06/2018,630,105,JEA,Senior Management,3807,Legal & Court Costs,Children'S Services
Blackpool Council,1024640,REDACTED PERSONAL DATA,3898377,396757,01/06/2018,390,65,JEA,Senior Management,3807,Legal & Court Costs,Children'S Services
Blackpool Council,1086620,REDACTED PERSONAL DATA,3898378,392628,01/06/2018,780,130,JEA,Senior Management,3807,Legal & Court Costs,Children'S Services
Blackpool Council,1086620,REDACTED PERSONAL DATA,3898379,402836,01/06/2018,720,120,JEA,Senior Management,3807,Legal & Court Costs,Children'S Services
Blackpool Council,1086620,REDACTED PERSONAL DATA,3898380,391592,01/06/2018,1050,175,JEA,Senior Management,3807,Legal & Court Costs,Children'S Services
Blackpool Council,1008630,REDACTED PERSONAL DATA,3898381,390137,01/06/2018,1200,200,JEA,Senior Management,3807,Legal & Court Costs,Children'S Services
Blackpool Council,1093061,REDACTED PERSONAL DATA,3898382,405475,01/06/2018,330,55,JEA,Senior Management,3807,Legal & Court Costs,Children'S Services
Blackpool Council,1093061,REDACTED PERSONAL DATA,3898383,392802,01/06/2018,960,160,JEA,Senior Management,3807,Legal & Court Costs,Children'S Services
Blackpool Council,1106677,REDACTED PERSONAL DATA,3898384,402413,01/06/2018,720,120,JEA,Senior Management,3807,Legal & Court Costs,Children'S Services
Blackpool Council,1099154,REDACTED PERSONAL DATA,3898385,403353,01/06/2018,780,130,JEA,Senior Management,3807,Legal & Court Costs,Children'S Services
Blackpool Council,1050674,REDACTED PERSONAL DATA,3898386,391247,01/06/2018,2280,380,JEA,Senior Management,3807,Legal & Court Costs,Children'S Services
Blackpool Council,1050674,REDACTED PERSONAL DATA,3898387,396269,01/06/2018,1080,180,JEA,Senior Management,3807,Legal & Court Costs,Children'S Services
Blackpool Council,1050674,REDACTED PERSONAL DATA,3898388,396269,01/06/2018,1230,205,JEA,Senior Management,3807,Legal & Court Costs,Children'S Services
Blackpool Council,1114862,Bancroft Amenities Ltd,3898400,19977,06/06/2018,672,112,AEB,Buildings,1012,Premises Maint-Priv.Contractor,Resources
Blackpool Council,1008450,Lawrence Vehicles Ltd T/A Lancashire Daf,3898439,1560271,21/06/2018,349.57,58.26,CVMU,Cvmu,3041,Other Materials,Community & Env Services
Blackpool Council,1008450,Lawrence Vehicles Ltd T/A Lancashire Daf,3898441,1560238,21/06/2018,264,44,CVMU,Cvmu,3041,Other Materials,Community & Env Services
Blackpool Council,1029067,Johnston Sweepers Limited,3898485,61619002,14/06/2018,465.29,77.55,CVMU,Cvmu,3041,Other Materials,Community & Env Services
Blackpool Council,1085392,Enterprise Rent-A-Car Uk Ltd,3898496,13000093582,14/06/2018,409.14,0,CVMU,Cvmu,4501,Private Contractors,Community & Env Services
Blackpool Council,1104155,Snap On Diagnostics,3898505,ARV/11442907,13/06/2018,462,77,CVMU,Cvmu,3001,Office Equipment Purchase,Community & Env Services
Blackpool Council,1087253,Routes Healthcare North Limited,3898518,41915,01/06/2018,2674.44,0,CWAN,Children With Additional Needs,5507,Personal,Children'S Services
Blackpool Council,1116050,REDACTED PERSONAL DATA,3898524,304122,01/06/2018,1000,0,JEA,Senior Management,3807,Legal & Court Costs,Children'S Services
Blackpool Council,1087253,Routes Healthcare North Limited,3898537,41362,01/06/2018,2662.49,0,CWAN,Children With Additional Needs,5507,Personal,Children'S Services
Blackpool Council,1055947,Cherish Uk Limited,3898538,15760,01/06/2018,317.04,0,CWAN,Children With Additional Needs,5507,Personal,Children'S Services
Blackpool Council,1055947,Cherish Uk Limited,3898539,15752,01/06/2018,317.04,0,CWAN,Children With Additional Needs,5507,Personal,Children'S Services
Blackpool Council,1055947,Cherish Uk Limited,3898540,15745,01/06/2018,317.04,0,CWAN,Children With Additional Needs,5507,Personal,Children'S Services
Blackpool Council,1055947,Cherish Uk Limited,3898541,15747,01/06/2018,422.72,0,CWAN,Children With Additional Needs,5507,Personal,Children'S Services
Blackpool Council,1055947,Cherish Uk Limited,3898542,15762,01/06/2018,1188.9,0,CWAN,Children With Additional Needs,5507,Personal,Children'S Services
Blackpool Council,1055947,Cherish Uk Limited,3898543,15756,01/06/2018,1268.16,0,CWAN,Children With Additional Needs,5507,Personal,Children'S Services
Blackpool Council,1055947,Cherish Uk Limited,3898544,15754,01/06/2018,2100.39,0,CWAN,Children With Additional Needs,5507,Personal,Children'S Services
Blackpool Council,1114004,REDACTED PERSONAL DATA,3898553,KH/CH EMERGENCY,01/06/2018,300,0,JBR,Lac - Placements,4801,Gen (Ie Wkly Basic),Children'S Services
Blackpool Council,1116055,Holmes Chapel Comprehensive School,3898555,0000000487,06/06/2018,9117,0,CWAN,Children With Additional Needs,3801,Other Expenses,Children'S Services
Blackpool Council,1020145,Paul James Photography,3898556,202343,12/06/2018,490,0,BCA,Corp And Member Services,3801,Other Expenses,Governance & Partnerships
Blackpool Council,1009824,Acorn Care & Education Ltd,3898561,20958,21/06/2018,10956.67,0,CWAN,Children With Additional Needs,4501,Private Contractors,Children'S Services
Blackpool Council,1094002,Waterloo Primary Academy,3898562,HNFSPRING2018,06/06/2018,2985,0,CWAN,Children With Additional Needs,4403,Special Needs - Children,Children'S Services
Blackpool Council,1099746,Unity Academy,3898563,HNFSPRING2018,06/06/2018,10706,0,CWAN,Children With Additional Needs,4403,Special Needs - Children,Children'S Services
Blackpool Council,1096806,Thames School Academy,3898564,HNFSPRING2018,06/06/2018,1559,0,CWAN,Children With Additional Needs,4403,Special Needs - Children,Children'S Services
Blackpool Council,1021388,Cidari Education Ltd T/A St Georges School,3898565,HNFSPRING2018,06/06/2018,4145,0,CWAN,Children With Additional Needs,4403,Special Needs - Children,Children'S Services
Blackpool Council,1101124,South Shore Academy,3898566,HNFSPRING2018,06/06/2018,3650,0,CWAN,Children With Additional Needs,4403,Special Needs - Children,Children'S Services
Blackpool Council,1096486,Roseacre Primary Academy,3898567,HNFSPRING2018,06/06/2018,1493,0,CWAN,Children With Additional Needs,4403,Special Needs - Children,Children'S Services
Blackpool Council,1038738,Layton Primary School,3898568,HNFSPRING2018,06/06/2018,1825,0,CWAN,Children With Additional Needs,4403,Special Needs - Children,Children'S Services
Blackpool Council,1035614,Marton Academy,3898569,HNFSPRING2018,06/06/2018,5475,0,CWAN,Children With Additional Needs,4403,Special Needs - Children,Children'S Services
Blackpool Council,1023478,Highfield Leadership Academy,3898570,HNFSPRING2018,06/06/2018,10344,0,CWAN,Children With Additional Needs,4403,Special Needs - Children,Children'S Services
Blackpool Council,1110952,Mereside Primary Academy,3898571,HNFSPRING2018,06/06/2018,2194,0,CWAN,Children With Additional Needs,4403,Special Needs - Children,Children'S Services
Blackpool Council,1071918,St Cuthberts Catholic Academy,3898572,HNFSPRING2018,06/06/2018,1160,0,CWAN,Children With Additional Needs,4403,Special Needs - Children,Children'S Services
Blackpool Council,1102328,Revoe Learning Academy,3898573,HNFSPRING2018,06/06/2018,3007,0,CWAN,Children With Additional Needs,4403,Special Needs - Children,Children'S Services
Blackpool Council,1096150,Norbreck Primary Academy,3898574,HNFSPRING2018,06/06/2018,9051,0,CWAN,Children With Additional Needs,4403,Special Needs - Children,Children'S Services
Blackpool Council,1095986,Hawes Side Academy,3898575,HNFSPRING2018,06/06/2018,1825,0,CWAN,Children With Additional Needs,4403,Special Needs - Children,Children'S Services
Blackpool Council,1099749,Devonshire Primary Academy,3898576,HNFSPRING2018,06/06/2018,8615,0,CWAN,Children With Additional Needs,4403,Special Needs - Children,Children'S Services
Blackpool Council,1098193,Westminster Primary Academy,3898577,HNFSPRING2018,06/06/2018,1818,0,CWAN,Children With Additional Needs,4403,Special Needs - Children,Children'S Services
Blackpool Council,1010372,Christ The King Catholic Academy,3898578,HNFSPRING2018,06/06/2018,4566,0,CWAN,Children With Additional Needs,4403,Special Needs - Children,Children'S Services
Blackpool Council,1010554,Baines Endowed Ce Academy & Nursery,3898579,HNFSPRING2018,06/06/2018,4367,0,CWAN,Children With Additional Needs,4403,Special Needs - Children,Children'S Services
Blackpool Council,1104384,Blackpool Aspire Academy & Highfurlong School,3898580,HNFSPRING2018,06/06/2018,7396,0,CWAN,Children With Additional Needs,4403,Special Needs - Children,Children'S Services
Blackpool Council,1007516,Phoenix Commercial Collections Ltd,3898581,100315,22/06/2018,7873.15,1312.19,FBBEA,"Income, Recovery & Debtors",3807,Legal & Court Costs,Resources
Blackpool Council,1007516,Phoenix Commercial Collections Ltd,3898582,100316,22/06/2018,717.37,119.55,FBBEA,"Income, Recovery & Debtors",3807,Legal & Court Costs,Resources
Blackpool Council,1099546,Park Community Academy,3898586,INVPCA66,07/06/2018,40000,0,CEAMED,New Pupil Plcs - Prmry 2016-17,6502,Grants & Advances,Capital - Childrens
Blackpool Council,1007516,Phoenix Commercial Collections Ltd,3898587,100317,22/06/2018,3733.29,622.21,FV6705,Phoenix Commercial Collection,7366,Car Parking Fees,Budgets Outside Cash Limits
Blackpool Council,1052929,REDACTED PERSONAL DATA,3898592,243786,15/06/2018,600,100,BAAA,Legal Services,3807,Legal & Court Costs,Governance & Partnerships
Blackpool Council,1022793,Scottish Hydro Electric,3898744,11727931/0005,13/06/2018,2295.03,382.5,AEZ,To Be Recharged,1202,Electricity,Resources
Blackpool Council,1098532,Hampson Hughes Solicitors,3898750,PI113160.001/PM,01/06/2018,11500,0,RK7003,Damages Plh,3801,Other Expenses,Internal Insurance
Blackpool Council,1058544,Opus Energy Limited,3898751,63580799,13/06/2018,404.29,67.38,FMAA,Retail Units,1202,Electricity,Resources
Blackpool Council,1011719,Allcool (Nw) Ltd,3898757,64398,01/06/2018,336,56,AEB,Buildings,1012,Premises Maint-Priv.Contractor,Resources
Blackpool Council,1011719,Allcool (Nw) Ltd,3898758,64293,01/06/2018,459.24,76.54,AEB,Buildings,1012,Premises Maint-Priv.Contractor,Resources
Blackpool Council,1011719,Allcool (Nw) Ltd,3898761,64346,01/06/2018,1183.2,197.2,AEB,Buildings,1012,Premises Maint-Priv.Contractor,Resources
Blackpool Council,1011719,Allcool (Nw) Ltd,3898763,64396,01/06/2018,1842,307,AEB,Buildings,1012,Premises Maint-Priv.Contractor,Resources
Blackpool Council,1011719,Allcool (Nw) Ltd,3898765,64294,01/06/2018,795,132.5,AEB,Buildings,1012,Premises Maint-Priv.Contractor,Resources
Blackpool Council,1020179,The James Mercer Group Ltd,3898773,112830,22/06/2018,367.2,61.2,AEB,Buildings,1012,Premises Maint-Priv.Contractor,Resources
Blackpool Council,1020179,The James Mercer Group Ltd,3898784,112423,01/06/2018,421.2,70.2,AEB,Buildings,1121,Heating & Ventilation,Resources
Blackpool Council,1020179,The James Mercer Group Ltd,3898785,112422,01/06/2018,344.4,57.4,AEB,Buildings,1121,Heating & Ventilation,Resources
Blackpool Council,1020179,The James Mercer Group Ltd,3898787,112078A,01/06/2018,413.51,68.92,FMAB,Commercial Propereties,1012,Premises Maint-Priv.Contractor,Resources
Blackpool Council,1037705,Walker Fire (Uk) Ltd,3898795,295171,15/06/2018,798.12,133.02,AEB,Buildings,1069,Fire Precautions,Resources
Blackpool Council,1037705,Walker Fire (Uk) Ltd,3898795,295171,15/06/2018,463.74,77.29,CEMCRE,Cems Crems Etc,1069,Fire Precautions,Governance & Partnerships
Blackpool Council,1037705,Walker Fire (Uk) Ltd,3898795,295171,15/06/2018,424.68,70.78,FMAB,Commercial Propereties,1069,Fire Precautions,Resources
Blackpool Council,1062296,J & J Electrical Services,3898801,6256,01/06/2018,1677.14,279.52,AEB,Buildings,1012,Premises Maint-Priv.Contractor,Resources
Blackpool Council,1070476,Jg Kelley Fleetwood Ltd T/A Eas Electrical,3898802,31852,01/06/2018,320.4,53.4,AEB,Buildings,1012,Premises Maint-Priv.Contractor,Resources
Blackpool Council,1087305,Ellis & York Ltd,3898804,4115,04/06/2018,5352,892,AEB,Buildings,1012,Premises Maint-Priv.Contractor,Resources
Blackpool Council,1094411,Fox Fire Security Limited,3898810,2403,15/06/2018,6053.62,1008.94,AEB,Buildings,1012,Premises Maint-Priv.Contractor,Resources
Blackpool Council,1114648,REDACTED PERSONAL DATA,3898818,REDACTED PERSONAL DATA,01/06/2018,783,0,JEA,Senior Management,3807,Legal & Court Costs,Children'S Services
Blackpool Council,1070948,REDACTED PERSONAL DATA,3898821,FEENOTE130518,01/06/2018,786.7,0,JEA,Senior Management,3807,Legal & Court Costs,Children'S Services
Blackpool Council,1033987,Berrymans Lace Mawer Llp,3898822,V2380080\BLACOU,05/06/2018,2293.8,382.3,RK8003,Costs Plh,3807,Legal & Court Costs,Internal Insurance
Blackpool Council,1102377,Clarke & Co Property Ltd (Client A/C),3898824,B-JM RENT,01/06/2018,340,0,JEA,Senior Management,5551,Rent & Rent Bonds,Children'S Services
Blackpool Council,1114788,Queen Street Unit Trust Ltd,3898831,25172560 NNDR,01/06/2018,1032.44,0,YCNRE,Nndr Refunds,5721,Rcpts From Council Tax Payers,Non Domestic Rates
Blackpool Council,1111656,REDACTED PERSONAL DATA,3898835,JH290518-300618,01/06/2018,674.14,0,JEA,Senior Management,4809,Special Guardianship,Children'S Services
Blackpool Council,1005266,REDACTED PERSONAL DATA,3898836,175880,01/06/2018,612.86,0,JEA,Senior Management,4809,Special Guardianship,Children'S Services
Blackpool Council,1005947,REDACTED PERSONAL DATA,3898837,175946,01/06/2018,1194.86,0,JEA,Senior Management,4809,Special Guardianship,Children'S Services
Blackpool Council,1005947,REDACTED PERSONAL DATA,3898838,175945,01/06/2018,1194.86,0,JEA,Senior Management,4809,Special Guardianship,Children'S Services
Blackpool Council,1005947,REDACTED PERSONAL DATA,3898839,175844,01/06/2018,1194.86,0,JEA,Senior Management,4809,Special Guardianship,Children'S Services
Blackpool Council,1005947,REDACTED PERSONAL DATA,3898840,175845,01/06/2018,1391.57,0,JEA,Senior Management,4809,Special Guardianship,Children'S Services
Blackpool Council,1005947,REDACTED PERSONAL DATA,3898841,175846,01/06/2018,1041.86,0,JEA,Senior Management,4809,Special Guardianship,Children'S Services
Blackpool Council,1006685,REDACTED PERSONAL DATA,3898842,175951,01/06/2018,741.77,0,JEA,Senior Management,4809,Special Guardianship,Children'S Services
Blackpool Council,1006685,REDACTED PERSONAL DATA,3898843,175847,01/06/2018,741.77,0,JEA,Senior Management,4809,Special Guardianship,Children'S Services
Blackpool Council,1006685,REDACTED PERSONAL DATA,3898844,175950,01/06/2018,741.77,0,JEA,Senior Management,4809,Special Guardianship,Children'S Services
Blackpool Council,1007093,REDACTED PERSONAL DATA,3898845,175840,01/06/2018,1260,0,JEA,Senior Management,4809,Special Guardianship,Children'S Services
Blackpool Council,1007093,REDACTED PERSONAL DATA,3898846,175839,01/06/2018,1170,0,JEA,Senior Management,4809,Special Guardianship,Children'S Services
Blackpool Council,1007093,REDACTED PERSONAL DATA,3898847,175943,01/06/2018,1170,0,JEA,Senior Management,4809,Special Guardianship,Children'S Services
Blackpool Council,1007513,REDACTED PERSONAL DATA,3898848,175842,01/06/2018,692.83,0,JBR,Lac - Placements,4814,Adoption Allowances,Children'S Services
Blackpool Council,1010522,REDACTED PERSONAL DATA,3898849,175690,01/06/2018,702.86,0,JEA,Senior Management,4809,Special Guardianship,Children'S Services
Blackpool Council,1010522,REDACTED PERSONAL DATA,3898850,175882,01/06/2018,612.86,0,JEA,Senior Management,4809,Special Guardianship,Children'S Services
Blackpool Council,1010597,REDACTED PERSONAL DATA,3898851,175682,01/06/2018,818.57,0,JEA,Senior Management,4811,Residence Orders,Children'S Services
Blackpool Council,1018980,REDACTED PERSONAL DATA,3898852,175809,01/06/2018,1260,0,JBR,Lac - Placements,4814,Adoption Allowances,Children'S Services
Blackpool Council,1023504,REDACTED PERSONAL DATA,3898853,175754,01/06/2018,702.86,0,JEA,Senior Management,4809,Special Guardianship,Children'S Services
Blackpool Council,1025390,REDACTED PERSONAL DATA,3898854,175870,01/06/2018,702.86,0,JEA,Senior Management,4811,Residence Orders,Children'S Services
Blackpool Council,1029378,REDACTED PERSONAL DATA,3898855,175872,01/06/2018,818.57,0,JEA,Senior Management,4811,Residence Orders,Children'S Services
Blackpool Council,1029378,REDACTED PERSONAL DATA,3898856,175967,01/06/2018,818.57,0,JEA,Senior Management,4811,Residence Orders,Children'S Services
Blackpool Council,1032584,REDACTED PERSONAL DATA,3898857,175736,01/06/2018,702.86,0,JBR,Lac - Placements,4814,Adoption Allowances,Children'S Services
Blackpool Council,1038672,REDACTED PERSONAL DATA,3898858,175957,01/06/2018,544.29,0,JBR,Lac - Placements,4814,Adoption Allowances,Children'S Services
Blackpool Council,1038672,REDACTED PERSONAL DATA,3898859,175732,01/06/2018,544.29,0,JBR,Lac - Placements,4814,Adoption Allowances,Children'S Services
Blackpool Council,1039147,REDACTED PERSONAL DATA,3898860,175871,01/06/2018,818.57,0,JEA,Senior Management,4811,Residence Orders,Children'S Services
Blackpool Council,1041065,REDACTED PERSONAL DATA,3898861,175780,01/06/2018,544.29,0,JEA,Senior Management,4809,Special Guardianship,Children'S Services
Blackpool Council,1042600,REDACTED PERSONAL DATA,3898862,175683,01/06/2018,702.86,0,JEA,Senior Management,4811,Residence Orders,Children'S Services
Blackpool Council,1043459,REDACTED PERSONAL DATA,3898863,175738,01/06/2018,921.43,0,JBR,Lac - Placements,4814,Adoption Allowances,Children'S Services
Blackpool Council,1043651,REDACTED PERSONAL DATA,3898864,175734,01/06/2018,544.29,0,JBR,Lac - Placements,4814,Adoption Allowances,Children'S Services
Blackpool Council,1043651,REDACTED PERSONAL DATA,3898865,175722,01/06/2018,544.29,0,JBR,Lac - Placements,4814,Adoption Allowances,Children'S Services
Blackpool Council,1043651,REDACTED PERSONAL DATA,3898866,175864,01/06/2018,557.14,0,JBR,Lac - Placements,4814,Adoption Allowances,Children'S Services
Blackpool Council,1043955,REDACTED PERSONAL DATA,3898867,176005,01/06/2018,818.57,0,JEA,Senior Management,4809,Special Guardianship,Children'S Services
Blackpool Council,1043955,REDACTED PERSONAL DATA,3898868,175715,01/06/2018,702.86,0,JEA,Senior Management,4809,Special Guardianship,Children'S Services
Blackpool Council,1044018,REDACTED PERSONAL DATA,3898869,175673,01/06/2018,544.29,0,JBR,Lac - Placements,4814,Adoption Allowances,Children'S Services
Blackpool Council,1048741,REDACTED PERSONAL DATA,3898870,176043,01/06/2018,702.86,0,JEA,Senior Management,4809,Special Guardianship,Children'S Services
Blackpool Council,1048947,REDACTED PERSONAL DATA,3898871,175742,01/06/2018,702.86,0,JEA,Senior Management,4811,Residence Orders,Children'S Services
Blackpool Council,1049626,REDACTED PERSONAL DATA,3898872,176030,01/06/2018,612.86,0,JEA,Senior Management,4809,Special Guardianship,Children'S Services
Blackpool Council,1049626,REDACTED PERSONAL DATA,3898873,176001,01/06/2018,612.86,0,JEA,Senior Management,4809,Special Guardianship,Children'S Services
Blackpool Council,1049626,REDACTED PERSONAL DATA,3898874,175808,01/06/2018,612.86,0,JEA,Senior Management,4809,Special Guardianship,Children'S Services
Blackpool Council,1049626,REDACTED PERSONAL DATA,3898875,175807,01/06/2018,702.86,0,JEA,Senior Management,4809,Special Guardianship,Children'S Services
Blackpool Council,1052328,REDACTED PERSONAL DATA,3898876,175968,01/06/2018,702.86,0,JEA,Senior Management,4811,Residence Orders,Children'S Services
Blackpool Council,1054536,REDACTED PERSONAL DATA,3898877,176016,01/06/2018,702.86,0,JEA,Senior Management,4811,Residence Orders,Children'S Services
Blackpool Council,1054614,REDACTED PERSONAL DATA,3898878,175802,01/06/2018,702.86,0,JEA,Senior Management,4809,Special Guardianship,Children'S Services
Blackpool Council,1055795,REDACTED PERSONAL DATA,3898879,175743,01/06/2018,818.57,0,JEA,Senior Management,4811,Residence Orders,Children'S Services
Blackpool Council,1057277,REDACTED PERSONAL DATA,3898880,175861,01/06/2018,612.86,0,JBR,Lac - Placements,4814,Adoption Allowances,Children'S Services
Blackpool Council,1058573,REDACTED PERSONAL DATA,3898881,175820,01/06/2018,702.86,0,JEA,Senior Management,4809,Special Guardianship,Children'S Services
Blackpool Council,1059285,REDACTED PERSONAL DATA,3898882,175739,01/06/2018,977.15,0,JBR,Lac - Placements,4814,Adoption Allowances,Children'S Services
Blackpool Council,1059285,REDACTED PERSONAL DATA,3898883,175679,01/06/2018,1024.29,0,JBR,Lac - Placements,4814,Adoption Allowances,Children'S Services
Blackpool Council,1059285,REDACTED PERSONAL DATA,3898884,175817,01/06/2018,1024.29,0,JBR,Lac - Placements,4814,Adoption Allowances,Children'S Services
Blackpool Council,1061307,REDACTED PERSONAL DATA,3898885,175686,01/06/2018,544.29,0,JEA,Senior Management,4809,Special Guardianship,Children'S Services
Blackpool Council,1062123,REDACTED PERSONAL DATA,3898886,175964,01/06/2018,612.86,0,JBR,Lac - Placements,4814,Adoption Allowances,Children'S Services
Blackpool Council,1063757,REDACTED PERSONAL DATA,3898887,175888,01/06/2018,702.86,0,JEA,Senior Management,4809,Special Guardianship,Children'S Services
Blackpool Council,1063757,REDACTED PERSONAL DATA,3898888,175887,01/06/2018,818.57,0,JEA,Senior Management,4809,Special Guardianship,Children'S Services
Blackpool Council,1064011,REDACTED PERSONAL DATA,3898889,175875,01/06/2018,544.29,0,JEA,Senior Management,4809,Special Guardianship,Children'S Services
Blackpool Council,1066475,REDACTED PERSONAL DATA,3898890,175958,01/06/2018,544.29,0,JBR,Lac - Placements,4814,Adoption Allowances,Children'S Services
Blackpool Council,1068480,REDACTED PERSONAL DATA,3898891,175970,01/06/2018,544.29,0,JEA,Senior Management,4809,Special Guardianship,Children'S Services
Blackpool Council,1068524,REDACTED PERSONAL DATA,3898892,175876,01/06/2018,544.29,0,JEA,Senior Management,4809,Special Guardianship,Children'S Services
Blackpool Council,1068906,REDACTED PERSONAL DATA,3898893,175856,01/06/2018,544.29,0,JBR,Lac - Placements,4814,Adoption Allowances,Children'S Services
Blackpool Council,1068906,REDACTED PERSONAL DATA,3898894,175855,01/06/2018,544.29,0,JBR,Lac - Placements,4814,Adoption Allowances,Children'S Services
Blackpool Council,1068906,REDACTED PERSONAL DATA,3898895,175854,01/06/2018,544.29,0,JBR,Lac - Placements,4814,Adoption Allowances,Children'S Services
Blackpool Council,1068968,REDACTED PERSONAL DATA,3898896,175733,01/06/2018,544.29,0,JBR,Lac - Placements,4814,Adoption Allowances,Children'S Services
Blackpool Council,1069176,REDACTED PERSONAL DATA,3898897,175969,01/06/2018,544.29,0,JEA,Senior Management,4809,Special Guardianship,Children'S Services
Blackpool Council,1069176,REDACTED PERSONAL DATA,3898898,175874,01/06/2018,544.29,0,JEA,Senior Management,4809,Special Guardianship,Children'S Services
Blackpool Council,1070512,REDACTED PERSONAL DATA,3898899,175902,01/06/2018,557.14,0,JEA,Senior Management,4809,Special Guardianship,Children'S Services
Blackpool Council,1070602,REDACTED PERSONAL DATA,3898900,175971,01/06/2018,544.29,0,JEA,Senior Management,4809,Special Guardianship,Children'S Services
Blackpool Council,1071018,REDACTED PERSONAL DATA,3898901,175674,01/06/2018,544.29,0,JBR,Lac - Placements,4814,Adoption Allowances,Children'S Services
Blackpool Council,1071018,REDACTED PERSONAL DATA,3898902,175959,01/06/2018,544.29,0,JBR,Lac - Placements,4814,Adoption Allowances,Children'S Services
Blackpool Council,1071018,REDACTED PERSONAL DATA,3898903,175857,01/06/2018,544.29,0,JBR,Lac - Placements,4814,Adoption Allowances,Children'S Services
Blackpool Council,1071683,REDACTED PERSONAL DATA,3898904,175746,01/06/2018,544.29,0,JEA,Senior Management,4809,Special Guardianship,Children'S Services
Blackpool Council,1071683,REDACTED PERSONAL DATA,3898905,175974,01/06/2018,544.29,0,JEA,Senior Management,4809,Special Guardianship,Children'S Services
Blackpool Council,1072770,REDACTED PERSONAL DATA,3898906,175972,01/06/2018,544.29,0,JEA,Senior Management,4809,Special Guardianship,Children'S Services
Blackpool Council,1074231,REDACTED PERSONAL DATA,3898907,176017,01/06/2018,544.29,0,JEA,Senior Management,4811,Residence Orders,Children'S Services
Blackpool Council,1076446,REDACTED PERSONAL DATA,3898908,175744,01/06/2018,544.29,0,JEA,Senior Management,4811,Residence Orders,Children'S Services
Blackpool Council,1076446,REDACTED PERSONAL DATA,3898909,175685,01/06/2018,544.29,0,JEA,Senior Management,4811,Residence Orders,Children'S Services
Blackpool Council,1077446,REDACTED PERSONAL DATA,3898910,175960,01/06/2018,544.29,0,JBR,Lac - Placements,4814,Adoption Allowances,Children'S Services
Blackpool Council,1077610,REDACTED PERSONAL DATA,3898911,175745,01/06/2018,544.29,0,JEA,Senior Management,4809,Special Guardianship,Children'S Services
Blackpool Council,1078284,REDACTED PERSONAL DATA,3898912,175688,01/06/2018,544.29,0,JEA,Senior Management,4809,Special Guardianship,Children'S Services
Blackpool Council,1079501,REDACTED PERSONAL DATA,3898913,175835,01/06/2018,544.29,0,JEA,Senior Management,4809,Special Guardianship,Children'S Services
Blackpool Council,1079745,REDACTED PERSONAL DATA,3898914,175973,01/06/2018,544.29,0,JEA,Senior Management,4809,Special Guardianship,Children'S Services
Blackpool Council,1080101,REDACTED PERSONAL DATA,3898915,175687,01/06/2018,544.29,0,JEA,Senior Management,4809,Special Guardianship,Children'S Services
Blackpool Council,1080411,REDACTED PERSONAL DATA,3898916,175675,01/06/2018,544.29,0,JBR,Lac - Placements,4814,Adoption Allowances,Children'S Services
Blackpool Council,1081971,REDACTED PERSONAL DATA,3898917,175695,01/06/2018,977.15,0,JEA,Senior Management,4809,Special Guardianship,Children'S Services
Blackpool Council,1081971,REDACTED PERSONAL DATA,3898918,175753,01/06/2018,977.15,0,JEA,Senior Management,4809,Special Guardianship,Children'S Services
Blackpool Council,1082124,REDACTED PERSONAL DATA,3898919,175708,01/06/2018,544.29,0,JEA,Senior Management,4809,Special Guardianship,Children'S Services
Blackpool Council,1082476,REDACTED PERSONAL DATA,3898920,175993,01/06/2018,977.15,0,JEA,Senior Management,4809,Special Guardianship,Children'S Services
Blackpool Council,1082476,REDACTED PERSONAL DATA,3898921,175905,01/06/2018,977.15,0,JEA,Senior Management,4809,Special Guardianship,Children'S Services
Blackpool Council,1082476,REDACTED PERSONAL DATA,3898922,175768,01/06/2018,977.15,0,JEA,Senior Management,4809,Special Guardianship,Children'S Services
Blackpool Council,1082803,REDACTED PERSONAL DATA,3898923,176039,01/06/2018,612.86,0,JEA,Senior Management,4811,Residence Orders,Children'S Services
Blackpool Council,1082803,REDACTED PERSONAL DATA,3898924,175815,01/06/2018,544.29,0,JEA,Senior Management,4811,Residence Orders,Children'S Services
Blackpool Council,1083419,REDACTED PERSONAL DATA,3898925,175837,01/06/2018,612.86,0,JEA,Senior Management,4809,Special Guardianship,Children'S Services
Blackpool Council,1083907,REDACTED PERSONAL DATA,3898926,175805,01/06/2018,544.29,0,JEA,Senior Management,4809,Special Guardianship,Children'S Services
Blackpool Council,1083907,REDACTED PERSONAL DATA,3898927,175806,01/06/2018,544.29,0,JEA,Senior Management,4809,Special Guardianship,Children'S Services
Blackpool Council,1083907,REDACTED PERSONAL DATA,3898928,176034,01/06/2018,544.29,0,JEA,Senior Management,4809,Special Guardianship,Children'S Services
Blackpool Council,1085922,REDACTED PERSONAL DATA,3898929,175877,01/06/2018,544.29,0,JEA,Senior Management,4809,Special Guardianship,Children'S Services
Blackpool Council,1085923,REDACTED PERSONAL DATA,3898930,175724,01/06/2018,977.15,0,JBR,Lac - Placements,4814,Adoption Allowances,Children'S Services
Blackpool Council,1085923,REDACTED PERSONAL DATA,3898931,175677,01/06/2018,557.14,0,JBR,Lac - Placements,4814,Adoption Allowances,Children'S Services
Blackpool Council,1085923,REDACTED PERSONAL DATA,3898932,176033,01/06/2018,1067.15,0,JBR,Lac - Placements,4814,Adoption Allowances,Children'S Services
Blackpool Council,1085923,REDACTED PERSONAL DATA,3898933,175947,01/06/2018,934.29,0,JEA,Senior Management,4809,Special Guardianship,Children'S Services
Blackpool Council,1085928,REDACTED PERSONAL DATA,3898934,175693,01/06/2018,612.86,0,JEA,Senior Management,4809,Special Guardianship,Children'S Services
Blackpool Council,1085928,REDACTED PERSONAL DATA,3898935,175878,01/06/2018,544.29,0,JEA,Senior Management,4809,Special Guardianship,Children'S Services
Blackpool Council,1085931,REDACTED PERSONAL DATA,3898936,175749,01/06/2018,702.86,0,JEA,Senior Management,4809,Special Guardianship,Children'S Services
Blackpool Council,1085931,REDACTED PERSONAL DATA,3898937,175977,01/06/2018,702.86,0,JEA,Senior Management,4809,Special Guardianship,Children'S Services
Blackpool Council,1086638,REDACTED PERSONAL DATA,3898938,175859,01/06/2018,544.29,0,JBR,Lac - Placements,4814,Adoption Allowances,Children'S Services
Blackpool Council,1087223,REDACTED PERSONAL DATA,3898939,175858,01/06/2018,544.29,0,JBR,Lac - Placements,4814,Adoption Allowances,Children'S Services
Blackpool Council,1087223,REDACTED PERSONAL DATA,3898940,175723,01/06/2018,544.29,0,JBR,Lac - Placements,4814,Adoption Allowances,Children'S Services
Blackpool Council,1088072,REDACTED PERSONAL DATA,3898941,175767,01/06/2018,557.14,0,JEA,Senior Management,4809,Special Guardianship,Children'S Services
Blackpool Council,1088081,REDACTED PERSONAL DATA,3898942,175799,01/06/2018,612.86,0,JEA,Senior Management,4809,Special Guardianship,Children'S Services
Blackpool Council,1088106,REDACTED PERSONAL DATA,3898943,175884,01/06/2018,612.86,0,JEA,Senior Management,4809,Special Guardianship,Children'S Services
Blackpool Council,1088246,REDACTED PERSONAL DATA,3898944,175962,01/06/2018,612.86,0,JBR,Lac - Placements,4814,Adoption Allowances,Children'S Services
Blackpool Council,1088614,REDACTED PERSONAL DATA,3898945,175860,01/06/2018,544.29,0,JBR,Lac - Placements,4814,Adoption Allowances,Children'S Services
Blackpool Council,1088741,REDACTED PERSONAL DATA,3898946,175735,01/06/2018,612.86,0,JBR,Lac - Placements,4814,Adoption Allowances,Children'S Services
Blackpool Council,1088744,REDACTED PERSONAL DATA,3898947,175818,01/06/2018,612.86,0,JEA,Senior Management,4809,Special Guardianship,Children'S Services
Blackpool Council,1089503,REDACTED PERSONAL DATA,3898948,175895,01/06/2018,612.86,0,JEA,Senior Management,4809,Special Guardianship,Children'S Services
Blackpool Council,1089504,REDACTED PERSONAL DATA,3898949,175689,01/06/2018,612.86,0,JEA,Senior Management,4809,Special Guardianship,Children'S Services
Blackpool Council,1089505,REDACTED PERSONAL DATA,3898950,175881,01/06/2018,612.86,0,JEA,Senior Management,4809,Special Guardianship,Children'S Services
Blackpool Council,1089980,REDACTED PERSONAL DATA,3898951,175981,01/06/2018,612.86,0,JEA,Senior Management,4809,Special Guardianship,Children'S Services
Blackpool Council,1090278,REDACTED PERSONAL DATA,3898952,175676,01/06/2018,612.86,0,JBR,Lac - Placements,4814,Adoption Allowances,Children'S Services
Blackpool Council,1090507,REDACTED PERSONAL DATA,3898953,175961,01/06/2018,544.29,0,JBR,Lac - Placements,4814,Adoption Allowances,Children'S Services
Blackpool Council,1090553,REDACTED PERSONAL DATA,3898954,175816,01/06/2018,544.29,0,JEA,Senior Management,4811,Residence Orders,Children'S Services
Blackpool Council,1090574,REDACTED PERSONAL DATA,3898955,175790,01/06/2018,1170,0,JEA,Senior Management,4809,Special Guardianship,Children'S Services
Blackpool Council,1090574,REDACTED PERSONAL DATA,3898956,176014,01/06/2018,1114.28,0,JEA,Senior Management,4809,Special Guardianship,Children'S Services
Blackpool Council,1090630,REDACTED PERSONAL DATA,3898957,175748,01/06/2018,642.86,0,JEA,Senior Management,4809,Special Guardianship,Children'S Services
Blackpool Council,1090630,REDACTED PERSONAL DATA,3898958,175691,01/06/2018,612.86,0,JEA,Senior Management,4809,Special Guardianship,Children'S Services
Blackpool Council,1091208,REDACTED PERSONAL DATA,3898959,175948,01/06/2018,612.86,0,JEA,Senior Management,4809,Special Guardianship,Children'S Services
Blackpool Council,1092226,REDACTED PERSONAL DATA,3898960,175975,01/06/2018,612.86,0,JEA,Senior Management,4809,Special Guardianship,Children'S Services
Blackpool Council,1092955,REDACTED PERSONAL DATA,3898961,175886,01/06/2018,612.86,0,JEA,Senior Management,4809,Special Guardianship,Children'S Services
Blackpool Council,1093033,REDACTED PERSONAL DATA,3898962,175879,01/06/2018,612.86,0,JEA,Senior Management,4809,Special Guardianship,Children'S Services
Blackpool Council,1093432,REDACTED PERSONAL DATA,3898963,175751,01/06/2018,702.86,0,JEA,Senior Management,4809,Special Guardianship,Children'S Services
Blackpool Council,1093432,REDACTED PERSONAL DATA,3898964,175885,01/06/2018,612.86,0,JEA,Senior Management,4809,Special Guardianship,Children'S Services
Blackpool Council,1093556,REDACTED PERSONAL DATA,3898965,175692,01/06/2018,612.86,0,JEA,Senior Management,4809,Special Guardianship,Children'S Services
Blackpool Council,1093573,REDACTED PERSONAL DATA,3898966,175832,01/06/2018,702.86,0,JEA,Senior Management,4809,Special Guardianship,Children'S Services
Blackpool Council,1094329,REDACTED PERSONAL DATA,3898967,175980,01/06/2018,612.86,0,JEA,Senior Management,4809,Special Guardianship,Children'S Services
Blackpool Council,1095249,REDACTED PERSONAL DATA,3898968,175941,01/06/2018,612.86,0,JEA,Senior Management,4809,Special Guardianship,Children'S Services
Blackpool Council,1095249,REDACTED PERSONAL DATA,3898969,175834,01/06/2018,612.86,0,JEA,Senior Management,4809,Special Guardianship,Children'S Services
Blackpool Council,1095249,REDACTED PERSONAL DATA,3898970,175833,01/06/2018,642.86,0,JEA,Senior Management,4809,Special Guardianship,Children'S Services
Blackpool Council,1095280,REDACTED PERSONAL DATA,3898971,176042,01/06/2018,612.86,0,JEA,Senior Management,4811,Residence Orders,Children'S Services
Blackpool Council,1095280,REDACTED PERSONAL DATA,3898972,175849,01/06/2018,702.86,0,JEA,Senior Management,4811,Residence Orders,Children'S Services
Blackpool Council,1095510,REDACTED PERSONAL DATA,3898973,175769,01/06/2018,702.86,0,JEA,Senior Management,4809,Special Guardianship,Children'S Services
Blackpool Council,1095510,REDACTED PERSONAL DATA,3898974,175995,01/06/2018,702.86,0,JEA,Senior Management,4809,Special Guardianship,Children'S Services
Blackpool Council,1095873,REDACTED PERSONAL DATA,3898975,175699,01/06/2018,741.43,0,JEA,Senior Management,4809,Special Guardianship,Children'S Services
Blackpool Council,1095873,REDACTED PERSONAL DATA,3898976,175985,01/06/2018,612.86,0,JEA,Senior Management,4809,Special Guardianship,Children'S Services
Blackpool Council,1095956,REDACTED PERSONAL DATA,3898977,175750,01/06/2018,612.86,0,JEA,Senior Management,4809,Special Guardianship,Children'S Services
Blackpool Council,1096099,REDACTED PERSONAL DATA,3898978,175696,01/06/2018,612.86,0,JEA,Senior Management,4809,Special Guardianship,Children'S Services
Blackpool Council,1096099,REDACTED PERSONAL DATA,3898979,175697,01/06/2018,612.86,0,JEA,Senior Management,4809,Special Guardianship,Children'S Services
Blackpool Council,1096411,REDACTED PERSONAL DATA,3898980,175701,01/06/2018,612.86,0,JEA,Senior Management,4809,Special Guardianship,Children'S Services
Blackpool Council,1096411,REDACTED PERSONAL DATA,3898981,175900,01/06/2018,612.86,0,JEA,Senior Management,4809,Special Guardianship,Children'S Services
Blackpool Council,1096569,REDACTED PERSONAL DATA,3898982,175747,01/06/2018,612.86,0,JEA,Senior Management,4809,Special Guardianship,Children'S Services
Blackpool Council,1096576,REDACTED PERSONAL DATA,3898983,175976,01/06/2018,612.86,0,JEA,Senior Management,4809,Special Guardianship,Children'S Services
Blackpool Council,1096776,REDACTED PERSONAL DATA,3898984,175694,01/06/2018,702.86,0,JEA,Senior Management,4809,Special Guardianship,Children'S Services
Blackpool Council,1096875,REDACTED PERSONAL DATA,3898985,175760,01/06/2018,557.14,0,JEA,Senior Management,4809,Special Guardianship,Children'S Services
Blackpool Council,1096875,REDACTED PERSONAL DATA,3898986,175883,01/06/2018,612.86,0,JEA,Senior Management,4809,Special Guardianship,Children'S Services
Blackpool Council,1097143,REDACTED PERSONAL DATA,3898987,176036,01/06/2018,702.86,0,JBR,Lac - Placements,4814,Adoption Allowances,Children'S Services
Blackpool Council,1097143,REDACTED PERSONAL DATA,3898988,176035,01/06/2018,612.86,0,JBR,Lac - Placements,4814,Adoption Allowances,Children'S Services
Blackpool Council,1097161,REDACTED PERSONAL DATA,3898989,175963,01/06/2018,645.86,0,JBR,Lac - Placements,4814,Adoption Allowances,Children'S Services
Blackpool Council,1097279,REDACTED PERSONAL DATA,3898990,175759,01/06/2018,612.86,0,JEA,Senior Management,4809,Special Guardianship,Children'S Services
Blackpool Council,1097279,REDACTED PERSONAL DATA,3898991,175899,01/06/2018,612.86,0,JEA,Senior Management,4809,Special Guardianship,Children'S Services
Blackpool Council,1097279,REDACTED PERSONAL DATA,3898992,175898,01/06/2018,702.86,0,JEA,Senior Management,4809,Special Guardianship,Children'S Services
Blackpool Council,1097281,REDACTED PERSONAL DATA,3898993,175986,01/06/2018,612.86,0,JEA,Senior Management,4809,Special Guardianship,Children'S Services
Blackpool Council,1097474,REDACTED PERSONAL DATA,3898994,175978,01/06/2018,612.86,0,JEA,Senior Management,4809,Special Guardianship,Children'S Services
Blackpool Council,1097474,REDACTED PERSONAL DATA,3898995,175719,01/06/2018,557.14,0,JEA,Senior Management,4809,Special Guardianship,Children'S Services
Blackpool Council,1097980,REDACTED PERSONAL DATA,3898996,175702,01/06/2018,612.86,0,JEA,Senior Management,4809,Special Guardianship,Children'S Services
Blackpool Council,1098016,REDACTED PERSONAL DATA,3898997,175889,01/06/2018,612.86,0,JEA,Senior Management,4809,Special Guardianship,Children'S Services
Blackpool Council,1098016,REDACTED PERSONAL DATA,3898998,175752,01/06/2018,612.86,0,JEA,Senior Management,4809,Special Guardianship,Children'S Services
Blackpool Council,1098048,REDACTED PERSONAL DATA,3898999,175873,01/06/2018,612.86,0,JEA,Senior Management,4811,Residence Orders,Children'S Services
Blackpool Council,1098051,REDACTED PERSONAL DATA,3899000,175952,01/06/2018,612.86,0,JBR,Lac - Placements,4814,Adoption Allowances,Children'S Services
Blackpool Council,1098264,REDACTED PERSONAL DATA,3899001,175843,01/06/2018,857.14,0,JBR,Lac - Placements,4814,Adoption Allowances,Children'S Services
Blackpool Council,1098406,REDACTED PERSONAL DATA,3899002,175891,01/06/2018,612.86,0,JEA,Senior Management,4809,Special Guardianship,Children'S Services
Blackpool Council,1098406,REDACTED PERSONAL DATA,3899003,175755,01/06/2018,612.86,0,JEA,Senior Management,4809,Special Guardianship,Children'S Services
Blackpool Council,1098564,REDACTED PERSONAL DATA,3899004,175984,01/06/2018,612.86,0,JEA,Senior Management,4809,Special Guardianship,Children'S Services
Blackpool Council,1098564,REDACTED PERSONAL DATA,3899005,175698,01/06/2018,612.86,0,JEA,Senior Management,4809,Special Guardianship,Children'S Services
Blackpool Council,1098878,REDACTED PERSONAL DATA,3899006,176041,01/06/2018,1036.16,0,JEA,Senior Management,4809,Special Guardianship,Children'S Services
Blackpool Council,1099199,REDACTED PERSONAL DATA,3899007,175851,01/06/2018,557.14,0,JEA,Senior Management,4809,Special Guardianship,Children'S Services
Blackpool Council,1099199,REDACTED PERSONAL DATA,3899008,176045,01/06/2018,544.29,0,JEA,Senior Management,4809,Special Guardianship,Children'S Services
Blackpool Council,1099323,REDACTED PERSONAL DATA,3899009,175940,01/06/2018,702.86,0,JEA,Senior Management,4809,Special Guardianship,Children'S Services
Blackpool Council,1099331,REDACTED PERSONAL DATA,3899010,175979,01/06/2018,612.86,0,JEA,Senior Management,4809,Special Guardianship,Children'S Services
Blackpool Council,1099340,REDACTED PERSONAL DATA,3899011,175810,01/06/2018,702.86,0,JBR,Lac - Placements,4814,Adoption Allowances,Children'S Services
Blackpool Council,1099367,REDACTED PERSONAL DATA,3899012,175987,01/06/2018,702.86,0,JEA,Senior Management,4809,Special Guardianship,Children'S Services
Blackpool Council,1099367,REDACTED PERSONAL DATA,3899013,175897,01/06/2018,702.86,0,JEA,Senior Management,4809,Special Guardianship,Children'S Services
Blackpool Council,1099431,REDACTED PERSONAL DATA,3899014,175757,01/06/2018,612.86,0,JEA,Senior Management,4809,Special Guardianship,Children'S Services
Blackpool Council,1099431,REDACTED PERSONAL DATA,3899015,175893,01/06/2018,612.86,0,JEA,Senior Management,4809,Special Guardianship,Children'S Services
Blackpool Council,1099523,REDACTED PERSONAL DATA,3899016,175892,01/06/2018,612.86,0,JEA,Senior Management,4809,Special Guardianship,Children'S Services
Blackpool Council,1099523,REDACTED PERSONAL DATA,3899017,175756,01/06/2018,612.86,0,JEA,Senior Management,4809,Special Guardianship,Children'S Services
Blackpool Council,1099523,REDACTED PERSONAL DATA,3899018,175982,01/06/2018,612.86,0,JEA,Senior Management,4809,Special Guardianship,Children'S Services
Blackpool Council,1099900,REDACTED PERSONAL DATA,3899019,175911,01/06/2018,977.15,0,JEA,Senior Management,4809,Special Guardianship,Children'S Services
Blackpool Council,1099900,REDACTED PERSONAL DATA,3899020,175998,01/06/2018,977.15,0,JEA,Senior Management,4809,Special Guardianship,Children'S Services
Blackpool Council,1099918,REDACTED PERSONAL DATA,3899021,175894,01/06/2018,612.86,0,JEA,Senior Management,4809,Special Guardianship,Children'S Services
Blackpool Council,1100098,REDACTED PERSONAL DATA,3899022,176024,01/06/2018,612.86,0,JEA,Senior Management,4809,Special Guardianship,Children'S Services
Blackpool Council,1100098,REDACTED PERSONAL DATA,3899023,176025,01/06/2018,612.86,0,JEA,Senior Management,4809,Special Guardianship,Children'S Services
Blackpool Council,1100450,REDACTED PERSONAL DATA,3899024,176046,01/06/2018,1859,0,JBR,Lac - Placements,4814,Adoption Allowances,Children'S Services
Blackpool Council,1100450,REDACTED PERSONAL DATA,3899025,175956,01/06/2018,1937,0,JBR,Lac - Placements,4814,Adoption Allowances,Children'S Services
Blackpool Council,1100455,REDACTED PERSONAL DATA,3899026,176044,01/06/2018,557.14,0,JBR,Lac - Placements,4814,Adoption Allowances,Children'S Services
Blackpool Council,1100455,REDACTED PERSONAL DATA,3899027,175954,01/06/2018,557.14,0,JBR,Lac - Placements,4814,Adoption Allowances,Children'S Services
Blackpool Council,1100685,REDACTED PERSONAL DATA,3899028,175763,01/06/2018,612.86,0,JEA,Senior Management,4809,Special Guardianship,Children'S Services
Blackpool Council,1100963,REDACTED PERSONAL DATA,3899029,175983,01/06/2018,605.42,0,JEA,Senior Management,4809,Special Guardianship,Children'S Services
Blackpool Council,1101353,REDACTED PERSONAL DATA,3899030,175990,01/06/2018,612.86,0,JEA,Senior Management,4809,Special Guardianship,Children'S Services
Blackpool Council,1101354,REDACTED PERSONAL DATA,3899031,175700,01/06/2018,612.86,0,JEA,Senior Management,4809,Special Guardianship,Children'S Services
Blackpool Council,1101713,REDACTED PERSONAL DATA,3899032,175798,01/06/2018,702.86,0,JEA,Senior Management,4809,Special Guardianship,Children'S Services
Blackpool Council,1101713,REDACTED PERSONAL DATA,3899033,175933,01/06/2018,557.14,0,JEA,Senior Management,4809,Special Guardianship,Children'S Services
Blackpool Council,1101877,REDACTED PERSONAL DATA,3899034,175988,01/06/2018,612.86,0,JEA,Senior Management,4809,Special Guardianship,Children'S Services
Blackpool Council,1102002,REDACTED PERSONAL DATA,3899035,175740,01/06/2018,702.86,0,JEA,Senior Management,4811,Residence Orders,Children'S Services
Blackpool Council,1102142,REDACTED PERSONAL DATA,3899036,175896,01/06/2018,603.56,0,JEA,Senior Management,4809,Special Guardianship,Children'S Services
Blackpool Council,1102145,REDACTED PERSONAL DATA,3899037,175890,01/06/2018,612.86,0,JEA,Senior Management,4809,Special Guardianship,Children'S Services
Blackpool Council,1102685,REDACTED PERSONAL DATA,3899039,175848,01/06/2018,593.4,0,JEA,Senior Management,4809,Special Guardianship,Children'S Services
Blackpool Council,1102721,REDACTED PERSONAL DATA,3899040,175921,01/06/2018,544.29,0,JEA,Senior Management,4809,Special Guardianship,Children'S Services
